Workbook

Sheet Settings
A1: Settings | C1: Version: 2.14
A3: Event Name | B3: DM 2017 | C3: The Name of the Event with year. Please use short term. i.e.: "FPAW 2015"
A4: Subtitle | B4: Deutsche Freestyle Frisbee Meisterschaften | C4: Full name of the Event. i.e.: "European Freetyle Championships in Karlsruhe"
A5: Place | B5: Karlsruhe, Germany | C5: Here you can put the Location Info
A6: Category | B6: Regular (100%) | C6: (optional) Depends on the number of Competitors of the tournament: > 20 : 100% ; >14 :80%; >9:65%; > 4: 60%;
A7: Number of Teams | C7: The number of teams in this Round (Row count will be adjusted)
A8: Number of Judges | C8: The number of Judges (Column count will be adjusted)
A9: Input Mode | C9: If you want to enter all single points and let the computer calculate the final results than choose "all Marks". If you want to enter only the results the judges had calculated, than choose "only Results". At this option you can edit the results table directly and don't fill every single category scoresheet.
A11: Actions | C11: Prints all scoresheets! Please make sure that the Printer you want to use is set as "default printer" in your printersettings!
C12: Attention! This option should only be used by the Administrator. It enables the override protection of formulas!
C13: This function save the results as text file (to default users documents directory) for publishing on your website
A15: Scoresheet Contact | B15: Florian Hess | C15: Please Note:
B16: +49 (0) 157 75744571 | C16: Always enable Makro!
B17: flo@freestylefrisbee.de | C17: The full functionnality is only available with an official Microsoft Office version on Windows computers!
C18: If you have technical problems or questions, feel free to contact Flo!
C19: Please help to improve this sheets and report all problems or bugs!
A22: Send to | B22: freestyle_ranking@googlegroups.com | C22: Important:
A23: World Rankings | C23: Please send this Excel file (and all the files from the other rounds) as attachment to this email adress!

Sheet Starterlist
A1: =Settings!B3 -> DM 2017
A2: =Settings!B4 -> Deutsche Freestyle Frisbee Meisterschaften
B3: Division | D3: Round | F3: Pool | I3: Date: | J3: 2015-11-14
B4: Open Pairs | D4: Semi-Final | F4: A | I4: Time: | J4: 14:00:00
I5: Minutes: | J5: 4
I6: Head Judge:
I7: Division Director(s):
I9: Judging Committee:
A10: Teams | I10: Judges
A12: # | B12: Player 1 | D12: Player 2 | F12: Player 3
A13: 1 | C13: =IF(ISNA(VLOOKUP(B13,Rankings!C:E,2,FALSE)),0,VLOOKUP(B13,Rankings!C:E,2,FALSE)) -> 0 | E13: =IF(ISNA(VLOOKUP(D13,Rankings!C:E,2,FALSE)),0,VLOOKUP(D13,Rankings!C:E,2,FALSE)) -> 0 | G13: =IF(ISNA(VLOOKUP(F13,Rankings!C:E,2,FALSE)),0,VLOOKUP(F13,Rankings!C:E,2,FALSE)) -> 0 | I13: Execution | K13: =IF(ISNA(VLOOKUP(J13,Rankings!C:E,2,FALSE)),0,VLOOKUP(J13,Rankings!C:E,2,FALSE)) -> 0
A14: 2 | C14: =IF(ISNA(VLOOKUP(B14,Rankings!C:E,2,FALSE)),0,VLOOKUP(B14,Rankings!C:E,2,FALSE)) -> 0 | E14: =IF(ISNA(VLOOKUP(D14,Rankings!C:E,2,FALSE)),0,VLOOKUP(D14,Rankings!C:E,2,FALSE)) -> 0 | G14: =IF(ISNA(VLOOKUP(F14,Rankings!C:E,2,FALSE)),0,VLOOKUP(F14,Rankings!C:E,2,FALSE)) -> 0 | K14: =IF(ISNA(VLOOKUP(J14,Rankings!C:E,2,FALSE)),0,VLOOKUP(J14,Rankings!C:E,2,FALSE)) -> 0
A15: 3 | C15: =IF(ISNA(VLOOKUP(B15,Rankings!C:E,2,FALSE)),0,VLOOKUP(B15,Rankings!C:E,2,FALSE)) -> 0 | E15: =IF(ISNA(VLOOKUP(D15,Rankings!C:E,2,FALSE)),0,VLOOKUP(D15,Rankings!C:E,2,FALSE)) -> 0 | G15: =IF(ISNA(VLOOKUP(F15,Rankings!C:E,2,FALSE)),0,VLOOKUP(F15,Rankings!C:E,2,FALSE)) -> 0 | K15: =IF(ISNA(VLOOKUP(J15,Rankings!C:E,2,FALSE)),0,VLOOKUP(J15,Rankings!C:E,2,FALSE)) -> 0
A16: 4 | C16: =IF(ISNA(VLOOKUP(B16,Rankings!C:E,2,FALSE)),0,VLOOKUP(B16,Rankings!C:E,2,FALSE)) -> 0 | E16: =IF(ISNA(VLOOKUP(D16,Rankings!C:E,2,FALSE)),0,VLOOKUP(D16,Rankings!C:E,2,FALSE)) -> 0 | G16: =IF(ISNA(VLOOKUP(F16,Rankings!C:E,2,FALSE)),0,VLOOKUP(F16,Rankings!C:E,2,FALSE)) -> 0 | I16: Artistic Impression | K16: =IF(ISNA(VLOOKUP(J16,Rankings!C:E,2,FALSE)),0,VLOOKUP(J16,Rankings!C:E,2,FALSE)) -> 0
A17: 5 | C17: =IF(ISNA(VLOOKUP(B17,Rankings!C:E,2,FALSE)),0,VLOOKUP(B17,Rankings!C:E,2,FALSE)) -> 0 | E17: =IF(ISNA(VLOOKUP(D17,Rankings!C:E,2,FALSE)),0,VLOOKUP(D17,Rankings!C:E,2,FALSE)) -> 0 | G17: =IF(ISNA(VLOOKUP(F17,Rankings!C:E,2,FALSE)),0,VLOOKUP(F17,Rankings!C:E,2,FALSE)) -> 0 | K17: =IF(ISNA(VLOOKUP(J17,Rankings!C:E,2,FALSE)),0,VLOOKUP(J17,Rankings!C:E,2,FALSE)) -> 0
A18: 6 | C18: =IF(ISNA(VLOOKUP(B18,Rankings!C:E,2,FALSE)),0,VLOOKUP(B18,Rankings!C:E,2,FALSE)) -> 0 | E18: =IF(ISNA(VLOOKUP(D18,Rankings!C:E,2,FALSE)),0,VLOOKUP(D18,Rankings!C:E,2,FALSE)) -> 0 | G18: =IF(ISNA(VLOOKUP(F18,Rankings!C:E,2,FALSE)),0,VLOOKUP(F18,Rankings!C:E,2,FALSE)) -> 0 | K18: =IF(ISNA(VLOOKUP(J18,Rankings!C:E,2,FALSE)),0,VLOOKUP(J18,Rankings!C:E,2,FALSE)) -> 0
A19: 7 | C19: =IF(ISNA(VLOOKUP(B19,Rankings!C:E,2,FALSE)),0,VLOOKUP(B19,Rankings!C:E,2,FALSE)) -> 0 | E19: =IF(ISNA(VLOOKUP(D19,Rankings!C:E,2,FALSE)),0,VLOOKUP(D19,Rankings!C:E,2,FALSE)) -> 0 | G19: =IF(ISNA(VLOOKUP(F19,Rankings!C:E,2,FALSE)),0,VLOOKUP(F19,Rankings!C:E,2,FALSE)) -> 0 | I19: Difficulty | K19: =IF(ISNA(VLOOKUP(J19,Rankings!C:E,2,FALSE)),0,VLOOKUP(J19,Rankings!C:E,2,FALSE)) -> 0
A20: 8 | C20: =IF(ISNA(VLOOKUP(B20,Rankings!C:E,2,FALSE)),0,VLOOKUP(B20,Rankings!C:E,2,FALSE)) -> 0 | E20: =IF(ISNA(VLOOKUP(D20,Rankings!C:E,2,FALSE)),0,VLOOKUP(D20,Rankings!C:E,2,FALSE)) -> 0 | G20: =IF(ISNA(VLOOKUP(F20,Rankings!C:E,2,FALSE)),0,VLOOKUP(F20,Rankings!C:E,2,FALSE)) -> 0 | K20: =IF(ISNA(VLOOKUP(J20,Rankings!C:E,2,FALSE)),0,VLOOKUP(J20,Rankings!C:E,2,FALSE)) -> 0
A21: 9 | C21: =IF(ISNA(VLOOKUP(B21,Rankings!C:E,2,FALSE)),0,VLOOKUP(B21,Rankings!C:E,2,FALSE)) -> 0 | E21: =IF(ISNA(VLOOKUP(D21,Rankings!C:E,2,FALSE)),0,VLOOKUP(D21,Rankings!C:E,2,FALSE)) -> 0 | G21: =IF(ISNA(VLOOKUP(F21,Rankings!C:E,2,FALSE)),0,VLOOKUP(F21,Rankings!C:E,2,FALSE)) -> 0 | K21: =IF(ISNA(VLOOKUP(J21,Rankings!C:E,2,FALSE)),0,VLOOKUP(J21,Rankings!C:E,2,FALSE)) -> 0
A22: 10 | C22: =IF(ISNA(VLOOKUP(B22,Rankings!C:E,2,FALSE)),0,VLOOKUP(B22,Rankings!C:E,2,FALSE)) -> 0 | E22: =IF(ISNA(VLOOKUP(D22,Rankings!C:E,2,FALSE)),0,VLOOKUP(D22,Rankings!C:E,2,FALSE)) -> 0 | G22: =IF(ISNA(VLOOKUP(F22,Rankings!C:E,2,FALSE)),0,VLOOKUP(F22,Rankings!C:E,2,FALSE)) -> 0

Sheet EX 1
A1: =Starterlist!A1 -> DM 2017 | C1: Division | E1: Round | G1: =Starterlist!F3 -> Pool | H1: Judge
A2: =Starterlist!A2 -> Deutsche Freestyle Frisbee Meisterschaften | C2: =Starterlist!B4 -> Open Pairs | E2: =Starterlist!D4 -> Semi-Final | G2: =Starterlist!F4 -> A | H2: =Starterlist!J13 -> 0
C4: Minor Error | D4: Intermediate Error | E4: Major Error | F4: Severe Error | G4: Deductions | H4: Score | I4: Rank
A5: # | B5: Team | C5: -0.1 | D5: -0.2 | E5: -0.3 | F5: -0.5 | H5: 10 - Deductions
A6: 1 | B6: =(Starterlist!B13)&CHAR(10)&(Starterlist!D13)&CHAR(10)&(Starterlist!F13) ->  | G6: =(0.1*C6)+(0.2*D6)+(0.3*E6)+(0.5*F6) -> 0 | H6: =IF(G6=0,"",10-G6) ->  | I6: =IF(H6="","",RANK(H6,H$5:H$15)) -> 
A7: 2 | B7: =(Starterlist!B14)&CHAR(10)&(Starterlist!D14)&CHAR(10)&(Starterlist!F14) ->  | G7: 0 | I7: =IF(H7="","",RANK(H7,H$5:H$15)) -> 
A8: 3 | B8: =(Starterlist!B15)&CHAR(10)&(Starterlist!D15)&CHAR(10)&(Starterlist!F15) ->  | G8: 0
A9: 4 | B9: =(Starterlist!B16)&CHAR(10)&(Starterlist!D16)&CHAR(10)&(Starterlist!F16) ->  | G9: 0
A10: 5 | B10: =(Starterlist!B17)&CHAR(10)&(Starterlist!D17)&CHAR(10)&(Starterlist!F17) ->  | G10: 0
A11: 6 | B11: =(Starterlist!B18)&CHAR(10)&(Starterlist!D18)&CHAR(10)&(Starterlist!F18) ->  | G11: 0
A12: 7 | B12: =(Starterlist!B19)&CHAR(10)&(Starterlist!D19)&CHAR(10)&(Starterlist!F19) ->  | G12: 0
A13: 8 | B13: =(Starterlist!B20)&CHAR(10)&(Starterlist!D20)&CHAR(10)&(Starterlist!F20) ->  | G13: 0
A14: 9 | B14: =(Starterlist!B21)&CHAR(10)&(Starterlist!D21)&CHAR(10)&(Starterlist!F21) ->  | G14: =(0.1*C14)+(0.2*D14)+(0.3*E14)+(0.5*F14) -> 0 | H14: =IF(G14=0,"",10-G14) -> 
A15: 10 | B15: =(Starterlist!B22)&CHAR(10)&(Starterlist!D22)&CHAR(10)&(Starterlist!F22) ->  | G15: =(0.1*C15)+(0.2*D15)+(0.3*E15)+(0.5*F15) -> 0 | H15: =IF(G15=0,"",10-G15) -> 

Sheet EX 2
A1: =Starterlist!A1 -> DM 2017 | C1: Division | E1: Round | G1: =Starterlist!F3 -> Pool | H1: Judge
A2: =Starterlist!A2 -> Deutsche Freestyle Frisbee Meisterschaften | C2: =Starterlist!B4 -> Open Pairs | E2: =Starterlist!D4 -> Semi-Final | G2: =Starterlist!F4 -> A | H2: =Starterlist!J14 -> 0
C4: Minor Error | D4: Intermediate Error | E4: Major Error | F4: Severe Error | G4: Deductions | H4: Score | I4: Rank
A5: # | B5: Team | C5: -0.1 | D5: -0.2 | E5: -0.3 | F5: -0.5 | H5: 10 - Deductions
A6: 1 | B6: =(Starterlist!B13)&CHAR(10)&(Starterlist!D13)&CHAR(10)&(Starterlist!F13) ->  | G6: =(0.1*C6)+(0.2*D6)+(0.3*E6)+(0.5*F6) -> 0 | H6: =IF(G6=0,"",10-G6) ->  | I6: =IF(H6="","",RANK(H6,H$5:H$15)) -> 
A7: 2 | B7: =(Starterlist!B14)&CHAR(10)&(Starterlist!D14)&CHAR(10)&(Starterlist!F14) ->  | G7: 0 | H7: =IF(G7=0,"",10-G7) ->  | I7: =IF(H7="","",RANK(H7,H$5:H$15)) -> 
A8: 3 | B8: =(Starterlist!B15)&CHAR(10)&(Starterlist!D15)&CHAR(10)&(Starterlist!F15) ->  | G8: 0 | H8: =IF(G8=0,"",10-G8) -> 
A9: 4 | B9: =(Starterlist!B16)&CHAR(10)&(Starterlist!D16)&CHAR(10)&(Starterlist!F16) ->  | G9: 0
A10: 5 | B10: =(Starterlist!B17)&CHAR(10)&(Starterlist!D17)&CHAR(10)&(Starterlist!F17) ->  | G10: 0
A11: 6 | B11: =(Starterlist!B18)&CHAR(10)&(Starterlist!D18)&CHAR(10)&(Starterlist!F18) ->  | G11: 0
A12: 7 | B12: =(Starterlist!B19)&CHAR(10)&(Starterlist!D19)&CHAR(10)&(Starterlist!F19) ->  | G12: 0
A13: 8 | B13: =(Starterlist!B20)&CHAR(10)&(Starterlist!D20)&CHAR(10)&(Starterlist!F20) ->  | G13: 0
A14: 9 | B14: =(Starterlist!B21)&CHAR(10)&(Starterlist!D21)&CHAR(10)&(Starterlist!F21) ->  | G14: =(0.1*C14)+(0.2*D14)+(0.3*E14)+(0.5*F14) -> 0 | H14: =IF(G14=0,"",10-G14) -> 
A15: 10 | B15: =(Starterlist!B22)&CHAR(10)&(Starterlist!D22)&CHAR(10)&(Starterlist!F22) ->  | G15: =(0.1*C15)+(0.2*D15)+(0.3*E15)+(0.5*F15) -> 0 | H15: =IF(G15=0,"",10-G15) -> 

Sheet EX 3 (hidden)
A1: =Starterlist!A1 -> DM 2017 | C1: Division | E1: Round | G1: =Starterlist!F3 -> Pool | H1: Judge
A2: =Starterlist!A2 -> Deutsche Freestyle Frisbee Meisterschaften | C2: =Starterlist!B4 -> Open Pairs | E2: =Starterlist!D4 -> Semi-Final | G2: =Starterlist!F4 -> A | H2: =Starterlist!J15 -> 0
C4: Minor Error | D4: Intermediate Error | E4: Major Error | F4: Severe Error | G4: Deductions | H4: Score | I4: Rank
A5: # | B5: Team | C5: -0.1 | D5: -0.2 | E5: -0.3 | F5: -0.5 | H5: 10 - Deductions
A6: 1 | B6: =(Starterlist!B13)&CHAR(10)&(Starterlist!D13)&CHAR(10)&(Starterlist!F13) ->  | G6: =(0.1*C6)+(0.2*D6)+(0.3*E6)+(0.5*F6) -> 0 | H6: =IF(G6=0,"",10-G6) ->  | I6: =IF(H6="","",RANK(H6,H$5:H$15)) -> 
A7: 2 | B7: =(Starterlist!B14)&CHAR(10)&(Starterlist!D14)&CHAR(10)&(Starterlist!F14) ->  | G7: 0 | H7: =IF(G7=0,"",10-G7) ->  | I7: =IF(H7="","",RANK(H7,H$5:H$15)) -> 
A8: 3 | B8: =(Starterlist!B15)&CHAR(10)&(Starterlist!D15)&CHAR(10)&(Starterlist!F15) ->  | G8: 0 | H8: =IF(G8=0,"",10-G8) -> 
A9: 4 | B9: =(Starterlist!B16)&CHAR(10)&(Starterlist!D16)&CHAR(10)&(Starterlist!F16) ->  | G9: 0
A10: 5 | B10: =(Starterlist!B17)&CHAR(10)&(Starterlist!D17)&CHAR(10)&(Starterlist!F17) ->  | G10: 0
A11: 6 | B11: =(Starterlist!B18)&CHAR(10)&(Starterlist!D18)&CHAR(10)&(Starterlist!F18) ->  | G11: 0
A12: 7 | B12: =(Starterlist!B19)&CHAR(10)&(Starterlist!D19)&CHAR(10)&(Starterlist!F19) ->  | G12: 0
A13: 8 | B13: =(Starterlist!B20)&CHAR(10)&(Starterlist!D20)&CHAR(10)&(Starterlist!F20) ->  | G13: 0
A14: 9 | B14: =(Starterlist!B21)&CHAR(10)&(Starterlist!D21)&CHAR(10)&(Starterlist!F21) ->  | G14: =(0.1*C14)+(0.2*D14)+(0.3*E14)+(0.5*F14) -> 0 | H14: =IF(G14=0,"",10-G14) -> 
A15: 10 | B15: =(Starterlist!B22)&CHAR(10)&(Starterlist!D22)&CHAR(10)&(Starterlist!F22) ->  | G15: =(0.1*C15)+(0.2*D15)+(0.3*E15)+(0.5*F15) -> 0 | H15: =IF(G15=0,"",10-G15) -> 

Sheet AI 1
A1: =Starterlist!A1 -> DM 2017 | C1: Division | E1: Round | G1: =Starterlist!F3 -> Pool | I1: Judge
A2: =Starterlist!A2 -> Deutsche Freestyle Frisbee Meisterschaften | C2: =Starterlist!B4 -> Open Pairs | E2: =Starterlist!D4 -> Semi-Final | G2: =Starterlist!F4 -> A | I2: =Starterlist!J16 -> 0
C4: Variety | D4: Teamwork | E4: Music Choreographie | F4: Flow | G4: Form | H4: General Impression | I4: Sum | J4: Score | K4: Rank
A5: # | B5: Team | C5: 0.0 - 10.0 | D5: 0.0 - 10.0 | E5: 0.0 - 10.0 | F5: 0.0 - 10.0 | G5: 0.0 - 10.0 | H5: 0.0 - 10.0 | I5: 0.0 - 60.0 | J5: Sum / 6
A6: 1 | B6: =(Starterlist!B13)&CHAR(10)&(Starterlist!D13)&CHAR(10)&(Starterlist!F13) ->  | I6: =SUM(C6:H6) -> 0 | J6: =I6/6 -> 0 | K6: =IF(J6=0,"",RANK(J6,J$6:J$15)) -> 
A7: 2 | B7: =(Starterlist!B14)&CHAR(10)&(Starterlist!D14)&CHAR(10)&(Starterlist!F14) ->  | I7: =SUM(C7:H7) -> 0 | J7: =I7/6 -> 0 | K7: =IF(J7=0,"",RANK(J7,J$6:J$15)) -> 
A8: 3 | B8: =(Starterlist!B15)&CHAR(10)&(Starterlist!D15)&CHAR(10)&(Starterlist!F15) ->  | I8: 0 | J8: 0
A9: 4 | B9: =(Starterlist!B16)&CHAR(10)&(Starterlist!D16)&CHAR(10)&(Starterlist!F16) ->  | I9: 0 | J9: 0
A10: 5 | B10: =(Starterlist!B17)&CHAR(10)&(Starterlist!D17)&CHAR(10)&(Starterlist!F17) ->  | I10: 0 | J10: 0
A11: 6 | B11: =(Starterlist!B18)&CHAR(10)&(Starterlist!D18)&CHAR(10)&(Starterlist!F18) ->  | I11: 0 | J11: 0
A12: 7 | B12: =(Starterlist!B19)&CHAR(10)&(Starterlist!D19)&CHAR(10)&(Starterlist!F19) ->  | I12: 0 | J12: 0
A13: 8 | B13: =(Starterlist!B20)&CHAR(10)&(Starterlist!D20)&CHAR(10)&(Starterlist!F20) ->  | I13: 0 | J13: 0
A14: 9 | B14: =(Starterlist!B21)&CHAR(10)&(Starterlist!D21)&CHAR(10)&(Starterlist!F21) ->  | I14: 0 | J14: 0
A15: 10 | B15: =(Starterlist!B22)&CHAR(10)&(Starterlist!D22)&CHAR(10)&(Starterlist!F22) ->  | I15: 0 | J15: 0

Sheet AI 2
A1: =Starterlist!A1 -> DM 2017 | C1: Division | E1: Round | G1: =Starterlist!F3 -> Pool | I1: Judge
A2: =Starterlist!A2 -> Deutsche Freestyle Frisbee Meisterschaften | C2: =Starterlist!B4 -> Open Pairs | E2: =Starterlist!D4 -> Semi-Final | G2: =Starterlist!F4 -> A | I2: =Starterlist!J17 -> 0
C4: Variety | D4: Teamwork | E4: Music Choreographie | F4: Flow | G4: Form | H4: General Impression | I4: Sum | J4: Score | K4: Rank
A5: # | B5: Team | C5: 0.0 - 10.0 | D5: 0.0 - 10.0 | E5: 0.0 - 10.0 | F5: 0.0 - 10.0 | G5: 0.0 - 10.0 | H5: 0.0 - 10.0 | I5: 0.0 - 60.0 | J5: Sum / 6
A6: 1 | B6: =(Starterlist!B13)&CHAR(10)&(Starterlist!D13)&CHAR(10)&(Starterlist!F13) ->  | I6: =SUM(C6:H6) -> 0 | J6: =I6/6 -> 0 | K6: =IF(J6=0,"",RANK(J6,J$6:J$15)) -> 
A7: 2 | B7: =(Starterlist!B14)&CHAR(10)&(Starterlist!D14)&CHAR(10)&(Starterlist!F14) ->  | I7: =SUM(C7:H7) -> 0 | J7: =I7/6 -> 0 | K7: =IF(J7=0,"",RANK(J7,J$6:J$15)) -> 
A8: 3 | B8: =(Starterlist!B15)&CHAR(10)&(Starterlist!D15)&CHAR(10)&(Starterlist!F15) ->  | I8: 0 | J8: 0
A9: 4 | B9: =(Starterlist!B16)&CHAR(10)&(Starterlist!D16)&CHAR(10)&(Starterlist!F16) ->  | I9: 0 | J9: 0
A10: 5 | B10: =(Starterlist!B17)&CHAR(10)&(Starterlist!D17)&CHAR(10)&(Starterlist!F17) ->  | I10: 0 | J10: 0
A11: 6 | B11: =(Starterlist!B18)&CHAR(10)&(Starterlist!D18)&CHAR(10)&(Starterlist!F18) ->  | I11: 0 | J11: 0
A12: 7 | B12: =(Starterlist!B19)&CHAR(10)&(Starterlist!D19)&CHAR(10)&(Starterlist!F19) ->  | I12: 0 | J12: 0
A13: 8 | B13: =(Starterlist!B20)&CHAR(10)&(Starterlist!D20)&CHAR(10)&(Starterlist!F20) ->  | I13: 0 | J13: 0
A14: 9 | B14: =(Starterlist!B21)&CHAR(10)&(Starterlist!D21)&CHAR(10)&(Starterlist!F21) ->  | I14: 0 | J14: 0
A15: 10 | B15: =(Starterlist!B22)&CHAR(10)&(Starterlist!D22)&CHAR(10)&(Starterlist!F22) ->  | I15: 0 | J15: 0

Sheet AI 3 (hidden)
A1: =Starterlist!A1 -> DM 2017 | C1: Division | E1: Round | G1: =Starterlist!F3 -> Pool | I1: Judge
A2: =Starterlist!A2 -> Deutsche Freestyle Frisbee Meisterschaften | C2: =Starterlist!B4 -> Open Pairs | E2: =Starterlist!D4 -> Semi-Final | G2: =Starterlist!F4 -> A | I2: =Starterlist!J18 -> 0
C4: Variety | D4: Teamwork | E4: Music Choreographie | F4: Flow | G4: Form | H4: General Impression | I4: Sum | J4: Score | K4: Rank
A5: # | B5: Team | C5: 0.0 - 10.0 | D5: 0.0 - 10.0 | E5: 0.0 - 10.0 | F5: 0.0 - 10.0 | G5: 0.0 - 10.0 | H5: 0.0 - 10.0 | I5: 0.0 - 60.0 | J5: Sum / 6
A6: 1 | B6: =(Starterlist!B13)&CHAR(10)&(Starterlist!D13)&CHAR(10)&(Starterlist!F13) ->  | I6: =SUM(C6:H6) -> 0 | J6: =I6/6 -> 0 | K6: =IF(J6=0,"",RANK(J6,J$6:J$15)) -> 
A7: 2 | B7: =(Starterlist!B14)&CHAR(10)&(Starterlist!D14)&CHAR(10)&(Starterlist!F14) ->  | I7: =SUM(C7:H7) -> 0 | J7: =I7/6 -> 0 | K7: =IF(J7=0,"",RANK(J7,J$6:J$15)) -> 
A8: 3 | B8: =(Starterlist!B15)&CHAR(10)&(Starterlist!D15)&CHAR(10)&(Starterlist!F15) ->  | I8: 0 | J8: 0
A9: 4 | B9: =(Starterlist!B16)&CHAR(10)&(Starterlist!D16)&CHAR(10)&(Starterlist!F16) ->  | I9: 0 | J9: 0
A10: 5 | B10: =(Starterlist!B17)&CHAR(10)&(Starterlist!D17)&CHAR(10)&(Starterlist!F17) ->  | I10: 0 | J10: 0
A11: 6 | B11: =(Starterlist!B18)&CHAR(10)&(Starterlist!D18)&CHAR(10)&(Starterlist!F18) ->  | I11: 0 | J11: 0
A12: 7 | B12: =(Starterlist!B19)&CHAR(10)&(Starterlist!D19)&CHAR(10)&(Starterlist!F19) ->  | I12: 0 | J12: 0
A13: 8 | B13: =(Starterlist!B20)&CHAR(10)&(Starterlist!D20)&CHAR(10)&(Starterlist!F20) ->  | I13: 0 | J13: 0
A14: 9 | B14: =(Starterlist!B21)&CHAR(10)&(Starterlist!D21)&CHAR(10)&(Starterlist!F21) ->  | I14: 0 | J14: 0
A15: 10 | B15: =(Starterlist!B22)&CHAR(10)&(Starterlist!D22)&CHAR(10)&(Starterlist!F22) ->  | I15: 0 | J15: 0

Sheet DIF 1
A1: =Starterlist!A1 -> DM 2017 | C1: Division | J1: Round | Q1: =Starterlist!F3 -> Pool | U1: Judge
A2: =Starterlist!A2 -> Deutsche Freestyle Frisbee Meisterschaften | C2: =Starterlist!B4 -> Open Pairs | J2: =Starterlist!D4 -> Semi-Final | Q2: =Starterlist!F4 -> A | U2: =Starterlist!J19 -> 0
C4: Mark bonus for consecutivity with + in the first row | N4: 3 min | R4: 4 min | V4: 5 min | Y4: (Sum + Bonus) : Count-1) * 1,5 = Score
A5: # | B5: Team | C5: 1 | D5: 2 | E5: 3 | F5: 4 | G5: 5 | H5: 6 | I5: 7 | J5: 8 | K5: 9 | L5: 10 | M5: 11 | N5: 12 | O5: 13 | P5: 14 | Q5: 15 | R5: 16 | S5: 17 | T5: 18 | U5: 19 | V5: 20 | W5: Consec. Bonus Sum of Points | X5: Dropped Mark | Y5: Score | Z5: Rank
A6: 1 | B6: =(Starterlist!B13)&CHAR(10)&(Starterlist!D13)&CHAR(10)&(Starterlist!F13) ->  | W6: =SUM(SUM(LEN(C6:V6))-SUM(LEN(SUBSTITUTE(C6:V6,"+",""))),ABS(SUM(LEN(C6:V6))-SUM(LEN(SUBSTITUTE(C6:V6,"-",""))) )*-1) -> 0 | X6: =IF(COUNTA(C7:V7)>0,IF(Starterlist!J$5=3,SMALL(C7:N7,1),IF(Starterlist!J$5=4,SMALL(C7:R7,1),IF(Starterlist!J$5=5,SMALL(C7:V7,1)))),"") ->  | Y6: =IF(COUNTA(C7:V7)=(Starterlist!J$5*4),ROUND(((W7-X6+W6)/((Starterlist!J$5*4)-1))*1.5,1),"") ->  | Z6: =IF(Y6="","",RANK(Y6,Y$6:Y$25)) -> 
W7: =IF(COUNTA(C7:V7)>0,IF(Starterlist!J$5=3,SUM(C7:N7),IF(Starterlist!J$5=4,SUM(C7:R7)-X7,IF(Starterlist!J$5=5,SUM(C7:V7),""))),"") -> 
A8: 2 | B8: =(Starterlist!B14)&CHAR(10)&(Starterlist!D14)&CHAR(10)&(Starterlist!F14) ->  | W8: =SUM(SUM(LEN(C8:V8))-SUM(LEN(SUBSTITUTE(C8:V8,"+",""))),ABS(SUM(LEN(C8:V8))-SUM(LEN(SUBSTITUTE(C8:V8,"-",""))) )*-1) -> 0 | X8: =IF(COUNTA(C9:V9)>0,IF(Starterlist!J$5=3,SMALL(C9:N9,1),IF(Starterlist!J$5=4,SMALL(C9:R9,1),IF(Starterlist!J$5=5,SMALL(C9:V9,1)))),"") ->  | Y8: =IF(COUNTA(C9:V9)=(Starterlist!J$5*4),ROUND(((W9-X8+W8)/((Starterlist!J$5*4)-1))*1.5,1),"") ->  | Z8: =IF(Y8="","",RANK(Y8,Y$6:Y$25)) -> 
W9: =IF(COUNTA(C9:V9)>0,IF(Starterlist!J$5=3,SUM(C9:N9),IF(Starterlist!J$5=4,SUM(C9:R9)-X9,IF(Starterlist!J$5=5,SUM(C9:V9),""))),"") -> 
A10: 3 | B10: =(Starterlist!B15)&CHAR(10)&(Starterlist!D15)&CHAR(10)&(Starterlist!F15) ->  | W10: =SUM(SUM(LEN(C10:V10))-SUM(LEN(SUBSTITUTE(C10:V10,"+",""))),ABS(SUM(LEN(C10:V10))-SUM(LEN(SUBSTITUTE(C10:V10,"-",""))) )*-1) -> 0 | X10: =IF(COUNTA(C11:V11)>0,IF(Starterlist!J$5=3,SMALL(C11:N11,1),IF(Starterlist!J$5=4,SMALL(C11:R11,1),IF(Starterlist!J$5=5,SMALL(C11:V11,1)))),"") ->  | Y10: =IF(COUNTA(C11:V11)=(Starterlist!J$5*4),ROUND(((W11-X10+W10)/((Starterlist!J$5*4)-1))*1.5,1),"") ->  | Z10: =IF(Y10="","",RANK(Y10,Y$6:Y$25)) -> 
W11: =IF(COUNTA(C11:V11)>0,IF(Starterlist!J$5=3,SUM(C11:N11),IF(Starterlist!J$5=4,SUM(C11:R11)-X11,IF(Starterlist!J$5=5,SUM(C11:V11),""))),"") -> 
A12: 4 | B12: =(Starterlist!B16)&CHAR(10)&(Starterlist!D16)&CHAR(10)&(Starterlist!F16) ->  | W12: =SUM(SUM(LEN(C12:V12))-SUM(LEN(SUBSTITUTE(C12:V12,"+",""))),ABS(SUM(LEN(C12:V12))-SUM(LEN(SUBSTITUTE(C12:V12,"-",""))) )*-1) -> 0 | X12: =IF(COUNTA(C13:V13)>0,IF(Starterlist!J$5=3,SMALL(C13:N13,1),IF(Starterlist!J$5=4,SMALL(C13:R13,1),IF(Starterlist!J$5=5,SMALL(C13:V13,1)))),"") ->  | Y12: =IF(COUNTA(C13:V13)=(Starterlist!J$5*4),ROUND(((W13-X12+W12)/((Starterlist!J$5*4)-1))*1.5,1),"") ->  | Z12: =IF(Y12="","",RANK(Y12,Y$6:Y$25)) -> 
W13: =IF(COUNTA(C13:V13)>0,IF(Starterlist!J$5=3,SUM(C13:N13),IF(Starterlist!J$5=4,SUM(C13:R13)-X13,IF(Starterlist!J$5=5,SUM(C13:V13),""))),"") -> 
A14: 5 | B14: =(Starterlist!B17)&CHAR(10)&(Starterlist!D17)&CHAR(10)&(Starterlist!F17) ->  | W14: =SUM(SUM(LEN(C14:V14))-SUM(LEN(SUBSTITUTE(C14:V14,"+",""))),ABS(SUM(LEN(C14:V14))-SUM(LEN(SUBSTITUTE(C14:V14,"-",""))) )*-1) -> 0 | X14: =IF(COUNTA(C15:V15)>0,IF(Starterlist!J$5=3,SMALL(C15:N15,1),IF(Starterlist!J$5=4,SMALL(C15:R15,1),IF(Starterlist!J$5=5,SMALL(C15:V15,1)))),"") ->  | Y14: =IF(COUNTA(C15:V15)=(Starterlist!J$5*4),ROUND(((W15-X14+W14)/((Starterlist!J$5*4)-1))*1.5,1),"") ->  | Z14: =IF(Y14="","",RANK(Y14,Y$6:Y$25)) -> 
W15: =IF(COUNTA(C15:V15)>0,IF(Starterlist!J$5=3,SUM(C15:N15),IF(Starterlist!J$5=4,SUM(C15:R15)-X15,IF(Starterlist!J$5=5,SUM(C15:V15),""))),"") -> 
A16: 6 | B16: =(Starterlist!B18)&CHAR(10)&(Starterlist!D18)&CHAR(10)&(Starterlist!F18) ->  | W16: =SUM(SUM(LEN(C16:V16))-SUM(LEN(SUBSTITUTE(C16:V16,"+",""))),ABS(SUM(LEN(C16:V16))-SUM(LEN(SUBSTITUTE(C16:V16,"-",""))) )*-1) -> 0 | X16: =IF(COUNTA(C17:V17)>0,IF(Starterlist!J$5=3,SMALL(C17:N17,1),IF(Starterlist!J$5=4,SMALL(C17:R17,1),IF(Starterlist!J$5=5,SMALL(C17:V17,1)))),"") ->  | Y16: =IF(COUNTA(C17:V17)=(Starterlist!J$5*4),ROUND(((W17-X16+W16)/((Starterlist!J$5*4)-1))*1.5,1),"") ->  | Z16: =IF(Y16="","",RANK(Y16,Y$6:Y$25)) -> 
W17: =IF(COUNTA(C17:V17)>0,IF(Starterlist!J$5=3,SUM(C17:N17),IF(Starterlist!J$5=4,SUM(C17:R17)-X17,IF(Starterlist!J$5=5,SUM(C17:V17),""))),"") -> 
A18: 7 | B18: =(Starterlist!B19)&CHAR(10)&(Starterlist!D19)&CHAR(10)&(Starterlist!F19) ->  | W18: =SUM(SUM(LEN(C18:V18))-SUM(LEN(SUBSTITUTE(C18:V18,"+",""))),ABS(SUM(LEN(C18:V18))-SUM(LEN(SUBSTITUTE(C18:V18,"-",""))) )*-1) -> 0 | X18: =IF(COUNTA(C19:V19)>0,IF(Starterlist!J$5=3,SMALL(C19:N19,1),IF(Starterlist!J$5=4,SMALL(C19:R19,1),IF(Starterlist!J$5=5,SMALL(C19:V19,1)))),"") ->  | Y18: =IF(COUNTA(C19:V19)=(Starterlist!J$5*4),ROUND(((W19-X18+W18)/((Starterlist!J$5*4)-1))*1.5,1),"") ->  | Z18: =IF(Y18="","",RANK(Y18,Y$6:Y$25)) -> 
W19: =IF(COUNTA(C19:V19)>0,IF(Starterlist!J$5=3,SUM(C19:N19),IF(Starterlist!J$5=4,SUM(C19:R19),IF(Starterlist!J$5=5,SUM(C19:V19),""))),"") -> 
A20: 8 | B20: =(Starterlist!B20)&CHAR(10)&(Starterlist!D20)&CHAR(10)&(Starterlist!F20) ->  | W20: =SUM(SUM(LEN(C20:V20))-SUM(LEN(SUBSTITUTE(C20:V20,"+",""))),ABS(SUM(LEN(C20:V20))-SUM(LEN(SUBSTITUTE(C20:V20,"-",""))) )*-1) -> 0 | X20: =IF(COUNTA(C21:V21)>0,IF(Starterlist!J$5=3,SMALL(C21:N21,1),IF(Starterlist!J$5=4,SMALL(C21:R21,1),IF(Starterlist!J$5=5,SMALL(C21:V21,1)))),"") ->  | Y20: =IF(COUNTA(C21:V21)=(Starterlist!J$5*4),ROUND(((W21-X20+W20)/((Starterlist!J$5*4)-1))*1.5,1),"") ->  | Z20: =IF(Y20="","",RANK(Y20,Y$6:Y$25)) -> 
W21: =IF(COUNTA(C21:V21)>0,IF(Starterlist!J$5=3,SUM(C21:N21),IF(Starterlist!J$5=4,SUM(C21:R21),IF(Starterlist!J$5=5,SUM(C21:V21),""))),"") -> 
A22: 9 | B22: =(Starterlist!B21)&CHAR(10)&(Starterlist!D21)&CHAR(10)&(Starterlist!F21) ->  | W22: =SUM(SUM(LEN(C22:V22))-SUM(LEN(SUBSTITUTE(C22:V22,"+",""))),ABS(SUM(LEN(C22:V22))-SUM(LEN(SUBSTITUTE(C22:V22,"-",""))) )*-1) -> 0 | X22: =IF(COUNTA(C23:V23)>0,IF(Starterlist!J$5=3,SMALL(C23:N23,1),IF(Starterlist!J$5=4,SMALL(C23:R23,1),IF(Starterlist!J$5=5,SMALL(C23:V23,1)))),"") ->  | Y22: =IF(COUNTA(C23:V23)=(Starterlist!J$5*4),ROUND(((W23-X22+W22)/((Starterlist!J$5*4)-1))*1.5,1),"") ->  | Z22: =IF(Y22="","",RANK(Y22,Y$6:Y$25)) -> 
W23: =IF(COUNTA(C23:V23)>0,IF(Starterlist!J$5=3,SUM(C23:N23),IF(Starterlist!J$5=4,SUM(C23:R23),IF(Starterlist!J$5=5,SUM(C23:V23),""))),"") -> 
A24: 10 | B24: =(Starterlist!B22)&CHAR(10)&(Starterlist!D22)&CHAR(10)&(Starterlist!F22) ->  | W24: =SUM(SUM(LEN(C24:V24))-SUM(LEN(SUBSTITUTE(C24:V24,"+",""))),ABS(SUM(LEN(C24:V24))-SUM(LEN(SUBSTITUTE(C24:V24,"-",""))) )*-1) -> 0 | X24: =IF(COUNTA(C25:V25)>0,IF(Starterlist!J$5=3,SMALL(C25:N25,1),IF(Starterlist!J$5=4,SMALL(C25:R25,1),IF(Starterlist!J$5=5,SMALL(C25:V25,1)))),"") ->  | Y24: =IF(COUNTA(C25:V25)=(Starterlist!J$5*4),ROUND(((W25-X24+W24)/((Starterlist!J$5*4)-1))*1.5,1),"") ->  | Z24: =IF(Y24="","",RANK(Y24,Y$6:Y$25)) -> 
W25: =IF(COUNTA(C25:V25)>0,IF(Starterlist!J$5=3,SUM(C25:N25),IF(Starterlist!J$5=4,SUM(C25:R25),IF(Starterlist!J$5=5,SUM(C25:V25),""))),"") -> 

Sheet DIF 2
A1: =Starterlist!A1 -> DM 2017 | C1: Division | J1: Round | Q1: =Starterlist!F3 -> Pool | U1: Judge
A2: =Starterlist!A2 -> Deutsche Freestyle Frisbee Meisterschaften | C2: =Starterlist!B4 -> Open Pairs | J2: =Starterlist!D4 -> Semi-Final | Q2: =Starterlist!F4 -> A | U2: =Starterlist!J20 -> 0
C4: Mark bonus for consecutivity with + in the first row | N4: 3 min | R4: 4 min | V4: 5 min | Y4: (Sum + Bonus) : Count-1) * 1,5 = Score
A5: # | B5: Team | C5: 1 | D5: 2 | E5: 3 | F5: 4 | G5: 5 | H5: 6 | I5: 7 | J5: 8 | K5: 9 | L5: 10 | M5: 11 | N5: 12 | O5: 13 | P5: 14 | Q5: 15 | R5: 16 | S5: 17 | T5: 18 | U5: 19 | V5: 20 | W5: Consec. Bonus Sum of Points | X5: Dropped Mark | Y5: Score | Z5: Rank
A6: 1 | B6: =(Starterlist!B13)&CHAR(10)&(Starterlist!D13)&CHAR(10)&(Starterlist!F13) ->  | W6: =SUM(SUM(LEN(C6:V6))-SUM(LEN(SUBSTITUTE(C6:V6,"+",""))),ABS(SUM(LEN(C6:V6))-SUM(LEN(SUBSTITUTE(C6:V6,"-",""))) )*-1) -> 0 | X6: =IF(COUNTA(C7:V7)>0,IF(Starterlist!J$5=3,SMALL(C7:N7,1),IF(Starterlist!J$5=4,SMALL(C7:R7,1),IF(Starterlist!J$5=5,SMALL(C7:V7,1)))),"") ->  | Y6: =IF(COUNTA(C7:V7)=(Starterlist!J$5*4),ROUND(((W7-X6+W6)/((Starterlist!J$5*4)-1))*1.5,1),"") ->  | Z6: =IF(Y6="","",RANK(Y6,Y$6:Y$25)) -> 
W7: =IF(COUNTA(C7:V7)>0,IF(Starterlist!J$5=3,SUM(C7:N7),IF(Starterlist!J$5=4,SUM(C7:R7)-X7,IF(Starterlist!J$5=5,SUM(C7:V7),""))),"") -> 
A8: 2 | B8: =(Starterlist!B14)&CHAR(10)&(Starterlist!D14)&CHAR(10)&(Starterlist!F14) ->  | W8: =SUM(SUM(LEN(C8:V8))-SUM(LEN(SUBSTITUTE(C8:V8,"+",""))),ABS(SUM(LEN(C8:V8))-SUM(LEN(SUBSTITUTE(C8:V8,"-",""))) )*-1) -> 0 | X8: =IF(COUNTA(C9:V9)>0,IF(Starterlist!J$5=3,SMALL(C9:N9,1),IF(Starterlist!J$5=4,SMALL(C9:R9,1),IF(Starterlist!J$5=5,SMALL(C9:V9,1)))),"") ->  | Y8: =IF(COUNTA(C9:V9)=(Starterlist!J$5*4),ROUND(((W9-X8+W8)/((Starterlist!J$5*4)-1))*1.5,1),"") ->  | Z8: =IF(Y8="","",RANK(Y8,Y$6:Y$25)) -> 
W9: =IF(COUNTA(C9:V9)>0,IF(Starterlist!J$5=3,SUM(C9:N9),IF(Starterlist!J$5=4,SUM(C9:R9)-X9,IF(Starterlist!J$5=5,SUM(C9:V9),""))),"") -> 
A10: 3 | B10: =(Starterlist!B15)&CHAR(10)&(Starterlist!D15)&CHAR(10)&(Starterlist!F15) ->  | W10: =SUM(SUM(LEN(C10:V10))-SUM(LEN(SUBSTITUTE(C10:V10,"+",""))),ABS(SUM(LEN(C10:V10))-SUM(LEN(SUBSTITUTE(C10:V10,"-",""))) )*-1) -> 0 | X10: =IF(COUNTA(C11:V11)>0,IF(Starterlist!J$5=3,SMALL(C11:N11,1),IF(Starterlist!J$5=4,SMALL(C11:R11,1),IF(Starterlist!J$5=5,SMALL(C11:V11,1)))),"") ->  | Y10: =IF(COUNTA(C11:V11)=(Starterlist!J$5*4),ROUND(((W11-X10+W10)/((Starterlist!J$5*4)-1))*1.5,1),"") ->  | Z10: =IF(Y10="","",RANK(Y10,Y$6:Y$25)) -> 
W11: =IF(COUNTA(C11:V11)>0,IF(Starterlist!J$5=3,SUM(C11:N11),IF(Starterlist!J$5=4,SUM(C11:R11)-X11,IF(Starterlist!J$5=5,SUM(C11:V11),""))),"") -> 
A12: 4 | B12: =(Starterlist!B16)&CHAR(10)&(Starterlist!D16)&CHAR(10)&(Starterlist!F16) ->  | W12: =SUM(SUM(LEN(C12:V12))-SUM(LEN(SUBSTITUTE(C12:V12,"+",""))),ABS(SUM(LEN(C12:V12))-SUM(LEN(SUBSTITUTE(C12:V12,"-",""))) )*-1) -> 0 | X12: =IF(COUNTA(C13:V13)>0,IF(Starterlist!J$5=3,SMALL(C13:N13,1),IF(Starterlist!J$5=4,SMALL(C13:R13,1),IF(Starterlist!J$5=5,SMALL(C13:V13,1)))),"") ->  | Y12: =IF(COUNTA(C13:V13)=(Starterlist!J$5*4),ROUND(((W13-X12+W12)/((Starterlist!J$5*4)-1))*1.5,1),"") ->  | Z12: =IF(Y12="","",RANK(Y12,Y$6:Y$25)) -> 
W13: =IF(COUNTA(C13:V13)>0,IF(Starterlist!J$5=3,SUM(C13:N13),IF(Starterlist!J$5=4,SUM(C13:R13)-X13,IF(Starterlist!J$5=5,SUM(C13:V13),""))),"") -> 
A14: 5 | B14: =(Starterlist!B17)&CHAR(10)&(Starterlist!D17)&CHAR(10)&(Starterlist!F17) ->  | W14: =SUM(SUM(LEN(C14:V14))-SUM(LEN(SUBSTITUTE(C14:V14,"+",""))),ABS(SUM(LEN(C14:V14))-SUM(LEN(SUBSTITUTE(C14:V14,"-",""))) )*-1) -> 0 | X14: =IF(COUNTA(C15:V15)>0,IF(Starterlist!J$5=3,SMALL(C15:N15,1),IF(Starterlist!J$5=4,SMALL(C15:R15,1),IF(Starterlist!J$5=5,SMALL(C15:V15,1)))),"") ->  | Y14: =IF(COUNTA(C15:V15)=(Starterlist!J$5*4),ROUND(((W15-X14+W14)/((Starterlist!J$5*4)-1))*1.5,1),"") ->  | Z14: =IF(Y14="","",RANK(Y14,Y$6:Y$25)) -> 
W15: =IF(COUNTA(C15:V15)>0,IF(Starterlist!J$5=3,SUM(C15:N15),IF(Starterlist!J$5=4,SUM(C15:R15)-X15,IF(Starterlist!J$5=5,SUM(C15:V15),""))),"") -> 
A16: 6 | B16: =(Starterlist!B18)&CHAR(10)&(Starterlist!D18)&CHAR(10)&(Starterlist!F18) ->  | W16: =SUM(SUM(LEN(C16:V16))-SUM(LEN(SUBSTITUTE(C16:V16,"+",""))),ABS(SUM(LEN(C16:V16))-SUM(LEN(SUBSTITUTE(C16:V16,"-",""))) )*-1) -> 0 | X16: =IF(COUNTA(C17:V17)>0,IF(Starterlist!J$5=3,SMALL(C17:N17,1),IF(Starterlist!J$5=4,SMALL(C17:R17,1),IF(Starterlist!J$5=5,SMALL(C17:V17,1)))),"") ->  | Y16: =IF(COUNTA(C17:V17)=(Starterlist!J$5*4),ROUND(((W17-X16+W16)/((Starterlist!J$5*4)-1))*1.5,1),"") ->  | Z16: =IF(Y16="","",RANK(Y16,Y$6:Y$25)) -> 
W17: =IF(COUNTA(C17:V17)>0,IF(Starterlist!J$5=3,SUM(C17:N17),IF(Starterlist!J$5=4,SUM(C17:R17)-X17,IF(Starterlist!J$5=5,SUM(C17:V17),""))),"") -> 
A18: 7 | B18: =(Starterlist!B19)&CHAR(10)&(Starterlist!D19)&CHAR(10)&(Starterlist!F19) ->  | W18: =SUM(SUM(LEN(C18:V18))-SUM(LEN(SUBSTITUTE(C18:V18,"+",""))),ABS(SUM(LEN(C18:V18))-SUM(LEN(SUBSTITUTE(C18:V18,"-",""))) )*-1) -> 0 | X18: =IF(COUNTA(C19:V19)>0,IF(Starterlist!J$5=3,SMALL(C19:N19,1),IF(Starterlist!J$5=4,SMALL(C19:R19,1),IF(Starterlist!J$5=5,SMALL(C19:V19,1)))),"") ->  | Y18: =IF(COUNTA(C19:V19)=(Starterlist!J$5*4),ROUND(((W19-X18+W18)/((Starterlist!J$5*4)-1))*1.5,1),"") ->  | Z18: =IF(Y18="","",RANK(Y18,Y$6:Y$25)) -> 
W19: =IF(COUNTA(C19:V19)>0,IF(Starterlist!J$5=3,SUM(C19:N19),IF(Starterlist!J$5=4,SUM(C19:R19),IF(Starterlist!J$5=5,SUM(C19:V19),""))),"") -> 
A20: 8 | B20: =(Starterlist!B20)&CHAR(10)&(Starterlist!D20)&CHAR(10)&(Starterlist!F20) ->  | W20: =SUM(SUM(LEN(C20:V20))-SUM(LEN(SUBSTITUTE(C20:V20,"+",""))),ABS(SUM(LEN(C20:V20))-SUM(LEN(SUBSTITUTE(C20:V20,"-",""))) )*-1) -> 0 | X20: =IF(COUNTA(C21:V21)>0,IF(Starterlist!J$5=3,SMALL(C21:N21,1),IF(Starterlist!J$5=4,SMALL(C21:R21,1),IF(Starterlist!J$5=5,SMALL(C21:V21,1)))),"") ->  | Y20: =IF(COUNTA(C21:V21)=(Starterlist!J$5*4),ROUND(((W21-X20+W20)/((Starterlist!J$5*4)-1))*1.5,1),"") ->  | Z20: =IF(Y20="","",RANK(Y20,Y$6:Y$25)) -> 
W21: =IF(COUNTA(C21:V21)>0,IF(Starterlist!J$5=3,SUM(C21:N21),IF(Starterlist!J$5=4,SUM(C21:R21),IF(Starterlist!J$5=5,SUM(C21:V21),""))),"") -> 
A22: 9 | B22: =(Starterlist!B21)&CHAR(10)&(Starterlist!D21)&CHAR(10)&(Starterlist!F21) ->  | W22: =SUM(SUM(LEN(C22:V22))-SUM(LEN(SUBSTITUTE(C22:V22,"+",""))),ABS(SUM(LEN(C22:V22))-SUM(LEN(SUBSTITUTE(C22:V22,"-",""))) )*-1) -> 0 | X22: =IF(COUNTA(C23:V23)>0,IF(Starterlist!J$5=3,SMALL(C23:N23,1),IF(Starterlist!J$5=4,SMALL(C23:R23,1),IF(Starterlist!J$5=5,SMALL(C23:V23,1)))),"") ->  | Y22: =IF(COUNTA(C23:V23)=(Starterlist!J$5*4),ROUND(((W23-X22+W22)/((Starterlist!J$5*4)-1))*1.5,1),"") ->  | Z22: =IF(Y22="","",RANK(Y22,Y$6:Y$25)) -> 
W23: =IF(COUNTA(C23:V23)>0,IF(Starterlist!J$5=3,SUM(C23:N23),IF(Starterlist!J$5=4,SUM(C23:R23),IF(Starterlist!J$5=5,SUM(C23:V23),""))),"") -> 
A24: 10 | B24: =(Starterlist!B22)&CHAR(10)&(Starterlist!D22)&CHAR(10)&(Starterlist!F22) ->  | W24: =SUM(SUM(LEN(C24:V24))-SUM(LEN(SUBSTITUTE(C24:V24,"+",""))),ABS(SUM(LEN(C24:V24))-SUM(LEN(SUBSTITUTE(C24:V24,"-",""))) )*-1) -> 0 | X24: =IF(COUNTA(C25:V25)>0,IF(Starterlist!J$5=3,SMALL(C25:N25,1),IF(Starterlist!J$5=4,SMALL(C25:R25,1),IF(Starterlist!J$5=5,SMALL(C25:V25,1)))),"") ->  | Y24: =IF(COUNTA(C25:V25)=(Starterlist!J$5*4),ROUND(((W25-X24+W24)/((Starterlist!J$5*4)-1))*1.5,1),"") ->  | Z24: =IF(Y24="","",RANK(Y24,Y$6:Y$25)) -> 
W25: =IF(COUNTA(C25:V25)>0,IF(Starterlist!J$5=3,SUM(C25:N25),IF(Starterlist!J$5=4,SUM(C25:R25),IF(Starterlist!J$5=5,SUM(C25:V25),""))),"") -> 

Sheet DIF 3 (hidden)
A1: =Starterlist!A1 -> DM 2017 | C1: Division | J1: Round | Q1: =Starterlist!F3 -> Pool | U1: Judge
A2: =Starterlist!A2 -> Deutsche Freestyle Frisbee Meisterschaften | C2: =Starterlist!B4 -> Open Pairs | J2: =Starterlist!D4 -> Semi-Final | Q2: =Starterlist!F4 -> A | U2: =Starterlist!J21 -> 0
C4: Mark bonus for consecutivity with + in the first row | N4: 3 min | R4: 4 min | V4: 5 min | Y4: (Sum + Bonus) : Count-1) * 1,5 = Score
A5: # | B5: Team | C5: 1 | D5: 2 | E5: 3 | F5: 4 | G5: 5 | H5: 6 | I5: 7 | J5: 8 | K5: 9 | L5: 10 | M5: 11 | N5: 12 | O5: 13 | P5: 14 | Q5: 15 | R5: 16 | S5: 17 | T5: 18 | U5: 19 | V5: 20 | W5: Consec. Bonus Sum of Points | X5: Dropped Mark | Y5: Score | Z5: Rank
A6: 1 | B6: =(Starterlist!B13)&CHAR(10)&(Starterlist!D13)&CHAR(10)&(Starterlist!F13) ->  | W6: =SUM(SUM(LEN(C6:V6))-SUM(LEN(SUBSTITUTE(C6:V6,"+",""))),ABS(SUM(LEN(C6:V6))-SUM(LEN(SUBSTITUTE(C6:V6,"-",""))) )*-1) -> 0 | X6: =IF(COUNTA(C7:V7)>0,IF(Starterlist!J$5=3,SMALL(C7:N7,1),IF(Starterlist!J$5=4,SMALL(C7:R7,1),IF(Starterlist!J$5=5,SMALL(C7:V7,1)))),"") ->  | Y6: =IF(COUNTA(C7:V7)=(Starterlist!J$5*4),ROUND(((W7-X6+W6)/((Starterlist!J$5*4)-1))*1.5,1),"") ->  | Z6: =IF(Y6="","",RANK(Y6,Y$6:Y$25)) -> 
W7: =IF(COUNTA(C7:V7)>0,IF(Starterlist!J$5=3,SUM(C7:N7),IF(Starterlist!J$5=4,SUM(C7:R7)-X7,IF(Starterlist!J$5=5,SUM(C7:V7),""))),"") -> 
A8: 2 | B8: =(Starterlist!B14)&CHAR(10)&(Starterlist!D14)&CHAR(10)&(Starterlist!F14) ->  | W8: =SUM(SUM(LEN(C8:V8))-SUM(LEN(SUBSTITUTE(C8:V8,"+",""))),ABS(SUM(LEN(C8:V8))-SUM(LEN(SUBSTITUTE(C8:V8,"-",""))) )*-1) -> 0 | X8: =IF(COUNTA(C9:V9)>0,IF(Starterlist!J$5=3,SMALL(C9:N9,1),IF(Starterlist!J$5=4,SMALL(C9:R9,1),IF(Starterlist!J$5=5,SMALL(C9:V9,1)))),"") ->  | Y8: =IF(COUNTA(C9:V9)=(Starterlist!J$5*4),ROUND(((W9-X8+W8)/((Starterlist!J$5*4)-1))*1.5,1),"") ->  | Z8: =IF(Y8="","",RANK(Y8,Y$6:Y$25)) -> 
W9: =IF(COUNTA(C9:V9)>0,IF(Starterlist!J$5=3,SUM(C9:N9),IF(Starterlist!J$5=4,SUM(C9:R9)-X9,IF(Starterlist!J$5=5,SUM(C9:V9),""))),"") -> 
A10: 3 | B10: =(Starterlist!B15)&CHAR(10)&(Starterlist!D15)&CHAR(10)&(Starterlist!F15) ->  | W10: =SUM(SUM(LEN(C10:V10))-SUM(LEN(SUBSTITUTE(C10:V10,"+",""))),ABS(SUM(LEN(C10:V10))-SUM(LEN(SUBSTITUTE(C10:V10,"-",""))) )*-1) -> 0 | X10: =IF(COUNTA(C11:V11)>0,IF(Starterlist!J$5=3,SMALL(C11:N11,1),IF(Starterlist!J$5=4,SMALL(C11:R11,1),IF(Starterlist!J$5=5,SMALL(C11:V11,1)))),"") ->  | Y10: =IF(COUNTA(C11:V11)=(Starterlist!J$5*4),ROUND(((W11-X10+W10)/((Starterlist!J$5*4)-1))*1.5,1),"") ->  | Z10: =IF(Y10="","",RANK(Y10,Y$6:Y$25)) -> 
W11: =IF(COUNTA(C11:V11)>0,IF(Starterlist!J$5=3,SUM(C11:N11),IF(Starterlist!J$5=4,SUM(C11:R11)-X11,IF(Starterlist!J$5=5,SUM(C11:V11),""))),"") -> 
A12: 4 | B12: =(Starterlist!B16)&CHAR(10)&(Starterlist!D16)&CHAR(10)&(Starterlist!F16) ->  | W12: =SUM(SUM(LEN(C12:V12))-SUM(LEN(SUBSTITUTE(C12:V12,"+",""))),ABS(SUM(LEN(C12:V12))-SUM(LEN(SUBSTITUTE(C12:V12,"-",""))) )*-1) -> 0 | X12: =IF(COUNTA(C13:V13)>0,IF(Starterlist!J$5=3,SMALL(C13:N13,1),IF(Starterlist!J$5=4,SMALL(C13:R13,1),IF(Starterlist!J$5=5,SMALL(C13:V13,1)))),"") ->  | Y12: =IF(COUNTA(C13:V13)=(Starterlist!J$5*4),ROUND(((W13-X12+W12)/((Starterlist!J$5*4)-1))*1.5,1),"") ->  | Z12: =IF(Y12="","",RANK(Y12,Y$6:Y$25)) -> 
W13: =IF(COUNTA(C13:V13)>0,IF(Starterlist!J$5=3,SUM(C13:N13),IF(Starterlist!J$5=4,SUM(C13:R13)-X13,IF(Starterlist!J$5=5,SUM(C13:V13),""))),"") -> 
A14: 5 | B14: =(Starterlist!B17)&CHAR(10)&(Starterlist!D17)&CHAR(10)&(Starterlist!F17) ->  | W14: =SUM(SUM(LEN(C14:V14))-SUM(LEN(SUBSTITUTE(C14:V14,"+",""))),ABS(SUM(LEN(C14:V14))-SUM(LEN(SUBSTITUTE(C14:V14,"-",""))) )*-1) -> 0 | X14: =IF(COUNTA(C15:V15)>0,IF(Starterlist!J$5=3,SMALL(C15:N15,1),IF(Starterlist!J$5=4,SMALL(C15:R15,1),IF(Starterlist!J$5=5,SMALL(C15:V15,1)))),"") ->  | Y14: =IF(COUNTA(C15:V15)=(Starterlist!J$5*4),ROUND(((W15-X14+W14)/((Starterlist!J$5*4)-1))*1.5,1),"") ->  | Z14: =IF(Y14="","",RANK(Y14,Y$6:Y$25)) -> 
W15: =IF(COUNTA(C15:V15)>0,IF(Starterlist!J$5=3,SUM(C15:N15),IF(Starterlist!J$5=4,SUM(C15:R15)-X15,IF(Starterlist!J$5=5,SUM(C15:V15),""))),"") -> 
A16: 6 | B16: =(Starterlist!B18)&CHAR(10)&(Starterlist!D18)&CHAR(10)&(Starterlist!F18) ->  | W16: =SUM(SUM(LEN(C16:V16))-SUM(LEN(SUBSTITUTE(C16:V16,"+",""))),ABS(SUM(LEN(C16:V16))-SUM(LEN(SUBSTITUTE(C16:V16,"-",""))) )*-1) -> 0 | X16: =IF(COUNTA(C17:V17)>0,IF(Starterlist!J$5=3,SMALL(C17:N17,1),IF(Starterlist!J$5=4,SMALL(C17:R17,1),IF(Starterlist!J$5=5,SMALL(C17:V17,1)))),"") ->  | Y16: =IF(COUNTA(C17:V17)=(Starterlist!J$5*4),ROUND(((W17-X16+W16)/((Starterlist!J$5*4)-1))*1.5,1),"") ->  | Z16: =IF(Y16="","",RANK(Y16,Y$6:Y$25)) -> 
W17: =IF(COUNTA(C17:V17)>0,IF(Starterlist!J$5=3,SUM(C17:N17),IF(Starterlist!J$5=4,SUM(C17:R17)-X17,IF(Starterlist!J$5=5,SUM(C17:V17),""))),"") -> 
A18: 7 | B18: =(Starterlist!B19)&CHAR(10)&(Starterlist!D19)&CHAR(10)&(Starterlist!F19) ->  | W18: =SUM(SUM(LEN(C18:V18))-SUM(LEN(SUBSTITUTE(C18:V18,"+",""))),ABS(SUM(LEN(C18:V18))-SUM(LEN(SUBSTITUTE(C18:V18,"-",""))) )*-1) -> 0 | X18: =IF(COUNTA(C19:V19)>0,IF(Starterlist!J$5=3,SMALL(C19:N19,1),IF(Starterlist!J$5=4,SMALL(C19:R19,1),IF(Starterlist!J$5=5,SMALL(C19:V19,1)))),"") ->  | Y18: =IF(COUNTA(C19:V19)=(Starterlist!J$5*4),ROUND(((W19-X18+W18)/((Starterlist!J$5*4)-1))*1.5,1),"") ->  | Z18: =IF(Y18="","",RANK(Y18,Y$6:Y$25)) -> 
W19: =IF(COUNTA(C19:V19)>0,IF(Starterlist!J$5=3,SUM(C19:N19),IF(Starterlist!J$5=4,SUM(C19:R19),IF(Starterlist!J$5=5,SUM(C19:V19),""))),"") -> 
A20: 8 | B20: =(Starterlist!B20)&CHAR(10)&(Starterlist!D20)&CHAR(10)&(Starterlist!F20) ->  | W20: =SUM(SUM(LEN(C20:V20))-SUM(LEN(SUBSTITUTE(C20:V20,"+",""))),ABS(SUM(LEN(C20:V20))-SUM(LEN(SUBSTITUTE(C20:V20,"-",""))) )*-1) -> 0 | X20: =IF(COUNTA(C21:V21)>0,IF(Starterlist!J$5=3,SMALL(C21:N21,1),IF(Starterlist!J$5=4,SMALL(C21:R21,1),IF(Starterlist!J$5=5,SMALL(C21:V21,1)))),"") ->  | Y20: =IF(COUNTA(C21:V21)=(Starterlist!J$5*4),ROUND(((W21-X20+W20)/((Starterlist!J$5*4)-1))*1.5,1),"") ->  | Z20: =IF(Y20="","",RANK(Y20,Y$6:Y$25)) -> 
W21: =IF(COUNTA(C21:V21)>0,IF(Starterlist!J$5=3,SUM(C21:N21),IF(Starterlist!J$5=4,SUM(C21:R21),IF(Starterlist!J$5=5,SUM(C21:V21),""))),"") -> 
A22: 9 | B22: =(Starterlist!B21)&CHAR(10)&(Starterlist!D21)&CHAR(10)&(Starterlist!F21) ->  | W22: =SUM(SUM(LEN(C22:V22))-SUM(LEN(SUBSTITUTE(C22:V22,"+",""))),ABS(SUM(LEN(C22:V22))-SUM(LEN(SUBSTITUTE(C22:V22,"-",""))) )*-1) -> 0 | X22: =IF(COUNTA(C23:V23)>0,IF(Starterlist!J$5=3,SMALL(C23:N23,1),IF(Starterlist!J$5=4,SMALL(C23:R23,1),IF(Starterlist!J$5=5,SMALL(C23:V23,1)))),"") ->  | Y22: =IF(COUNTA(C23:V23)=(Starterlist!J$5*4),ROUND(((W23-X22+W22)/((Starterlist!J$5*4)-1))*1.5,1),"") ->  | Z22: =IF(Y22="","",RANK(Y22,Y$6:Y$25)) -> 
W23: =IF(COUNTA(C23:V23)>0,IF(Starterlist!J$5=3,SUM(C23:N23),IF(Starterlist!J$5=4,SUM(C23:R23),IF(Starterlist!J$5=5,SUM(C23:V23),""))),"") -> 
A24: 10 | B24: =(Starterlist!B22)&CHAR(10)&(Starterlist!D22)&CHAR(10)&(Starterlist!F22) ->  | W24: =SUM(SUM(LEN(C24:V24))-SUM(LEN(SUBSTITUTE(C24:V24,"+",""))),ABS(SUM(LEN(C24:V24))-SUM(LEN(SUBSTITUTE(C24:V24,"-",""))) )*-1) -> 0 | X24: =IF(COUNTA(C25:V25)>0,IF(Starterlist!J$5=3,SMALL(C25:N25,1),IF(Starterlist!J$5=4,SMALL(C25:R25,1),IF(Starterlist!J$5=5,SMALL(C25:V25,1)))),"") ->  | Y24: =IF(COUNTA(C25:V25)=(Starterlist!J$5*4),ROUND(((W25-X24+W24)/((Starterlist!J$5*4)-1))*1.5,1),"") ->  | Z24: =IF(Y24="","",RANK(Y24,Y$6:Y$25)) -> 
W25: =IF(COUNTA(C25:V25)>0,IF(Starterlist!J$5=3,SUM(C25:N25),IF(Starterlist!J$5=4,SUM(C25:R25),IF(Starterlist!J$5=5,SUM(C25:V25),""))),"") -> 

Sheet Anouncer
A1: =Starterlist!A1 -> DM 2017 | C1: Division | D1: Round | E1: =Starterlist!F3 -> Pool
A2: =Starterlist!A2 -> Deutsche Freestyle Frisbee Meisterschaften | C2: =Starterlist!B4 -> Open Pairs | D2: =Starterlist!D4 -> Semi-Final | E2: =Starterlist!F4 -> A
H4: Judges | I4: =Starterlist!J11 -> 0
A5: # | B5: Team | C5: Timecalls | D5: Receive Music | E5: Notes | F5: Time Penalty | H5: =Starterlist!I13 -> Execution | I5: =Starterlist!J13 -> 0
A6: 1 | B6: =(Starterlist!B13)&CHAR(10)&(Starterlist!D13)&CHAR(10)&(Starterlist!F13) ->  | H6: =Starterlist!I14 -> 0 | I6: =Starterlist!J14 -> 0
A7: 2 | B7: =(Starterlist!B14)&CHAR(10)&(Starterlist!D14)&CHAR(10)&(Starterlist!F14) ->  | H7: =Starterlist!I15 -> 0 | I7: =Starterlist!J15 -> 0
A8: 3 | B8: =(Starterlist!B15)&CHAR(10)&(Starterlist!D15)&CHAR(10)&(Starterlist!F15) ->  | H8: =Starterlist!I16 -> Artistic Impression | I8: =Starterlist!J16 -> 0
A9: 4 | B9: =(Starterlist!B16)&CHAR(10)&(Starterlist!D16)&CHAR(10)&(Starterlist!F16) ->  | H9: =Starterlist!I17 -> 0 | I9: =Starterlist!J17 -> 0
A10: 5 | B10: =(Starterlist!B17)&CHAR(10)&(Starterlist!D17)&CHAR(10)&(Starterlist!F17) ->  | H10: =Starterlist!I18 -> 0 | I10: =Starterlist!J18 -> 0
A11: 6 | B11: =(Starterlist!B18)&CHAR(10)&(Starterlist!D18)&CHAR(10)&(Starterlist!F18) ->  | H11: =Starterlist!I19 -> Difficulty | I11: =Starterlist!J19 -> 0
A12: 7 | B12: =(Starterlist!B19)&CHAR(10)&(Starterlist!D19)&CHAR(10)&(Starterlist!F19) ->  | H12: =Starterlist!I20 -> 0 | I12: =Starterlist!J20 -> 0
A13: 8 | B13: =(Starterlist!B20)&CHAR(10)&(Starterlist!D20)&CHAR(10)&(Starterlist!F20) ->  | H13: =Starterlist!I21 -> 0 | I13: =Starterlist!J21 -> 0
A14: 9 | B14: =(Starterlist!B21)&CHAR(10)&(Starterlist!D21)&CHAR(10)&(Starterlist!F21) -> 
A15: 10 | B15: =(Starterlist!B22)&CHAR(10)&(Starterlist!D22)&CHAR(10)&(Starterlist!F22) -> 

Sheet Competitors (hidden)
A1: =INDEX(Rankings!C$2:'Rankings'!C$1000,MATCH(SMALL(Rankings!H$2:'Rankings'!H$1000,ROW()),Rankings!H$2:'Rankings'!H$1000,0)) -> (John - Amsterjam 2006) | B1: =VLOOKUP(A1,Rankings!C:E,3,FALSE) -> 0
A2: =INDEX(Rankings!C$2:'Rankings'!C$1000,MATCH(SMALL(Rankings!H$2:'Rankings'!H$1000,ROW()),Rankings!H$2:'Rankings'!H$1000,0)) -> Abozar Hejdari | B2: =VLOOKUP(A2,Rankings!C:E,3,FALSE) -> 20.8
A3: =INDEX(Rankings!C$2:'Rankings'!C$1000,MATCH(SMALL(Rankings!H$2:'Rankings'!H$1000,ROW()),Rankings!H$2:'Rankings'!H$1000,0)) -> Adam Perry | B3: =VLOOKUP(A3,Rankings!C:E,3,FALSE) -> 36
A4: =INDEX(Rankings!C$2:'Rankings'!C$1000,MATCH(SMALL(Rankings!H$2:'Rankings'!H$1000,ROW()),Rankings!H$2:'Rankings'!H$1000,0)) -> Adam Zambo | B4: =VLOOKUP(A4,Rankings!C:E,3,FALSE) -> 0
A5: =INDEX(Rankings!C$2:'Rankings'!C$1000,MATCH(SMALL(Rankings!H$2:'Rankings'!H$1000,ROW()),Rankings!H$2:'Rankings'!H$1000,0)) -> Adrian Baer | B5: =VLOOKUP(A5,Rankings!C:E,3,FALSE) -> 0
A6: =INDEX(Rankings!C$2:'Rankings'!C$1000,MATCH(SMALL(Rankings!H$2:'Rankings'!H$1000,ROW()),Rankings!H$2:'Rankings'!H$1000,0)) -> Adrian Röder | B6: =VLOOKUP(A6,Rankings!C:E,3,FALSE) -> 41.05
A7: =INDEX(Rankings!C$2:'Rankings'!C$1000,MATCH(SMALL(Rankings!H$2:'Rankings'!H$1000,ROW()),Rankings!H$2:'Rankings'!H$1000,0)) -> Adrian Wainwright | B7: =VLOOKUP(A7,Rankings!C:E,3,FALSE) -> 0
A8: =INDEX(Rankings!C$2:'Rankings'!C$1000,MATCH(SMALL(Rankings!H$2:'Rankings'!H$1000,ROW()),Rankings!H$2:'Rankings'!H$1000,0)) -> Adrian Zeitner | B8: =VLOOKUP(A8,Rankings!C:E,3,FALSE) -> 0
A9: =INDEX(Rankings!C$2:'Rankings'!C$1000,MATCH(SMALL(Rankings!H$2:'Rankings'!H$1000,ROW()),Rankings!H$2:'Rankings'!H$1000,0)) -> Aiden Slaska | B9: =VLOOKUP(A9,Rankings!C:E,3,FALSE) -> 32
A10: =INDEX(Rankings!C$2:'Rankings'!C$1000,MATCH(SMALL(Rankings!H$2:'Rankings'!H$1000,ROW()),Rankings!H$2:'Rankings'!H$1000,0)) -> Akihito Goto | B10: =VLOOKUP(A10,Rankings!C:E,3,FALSE) -> 0
A11: =INDEX(Rankings!C$2:'Rankings'!C$1000,MATCH(SMALL(Rankings!H$2:'Rankings'!H$1000,ROW()),Rankings!H$2:'Rankings'!H$1000,0)) -> Akito Ueda | B11: =VLOOKUP(A11,Rankings!C:E,3,FALSE) -> 0
A12: =INDEX(Rankings!C$2:'Rankings'!C$1000,MATCH(SMALL(Rankings!H$2:'Rankings'!H$1000,ROW()),Rankings!H$2:'Rankings'!H$1000,0)) -> Alan Caplin | B12: =VLOOKUP(A12,Rankings!C:E,3,FALSE) -> 40.4
A13: =INDEX(Rankings!C$2:'Rankings'!C$1000,MATCH(SMALL(Rankings!H$2:'Rankings'!H$1000,ROW()),Rankings!H$2:'Rankings'!H$1000,0)) -> Alan Martinez | B13: =VLOOKUP(A13,Rankings!C:E,3,FALSE) -> 0
A14: =INDEX(Rankings!C$2:'Rankings'!C$1000,MATCH(SMALL(Rankings!H$2:'Rankings'!H$1000,ROW()),Rankings!H$2:'Rankings'!H$1000,0)) -> Alberto Baldelli | B14: =VLOOKUP(A14,Rankings!C:E,3,FALSE) -> 0
A15: =INDEX(Rankings!C$2:'Rankings'!C$1000,MATCH(SMALL(Rankings!H$2:'Rankings'!H$1000,ROW()),Rankings!H$2:'Rankings'!H$1000,0)) -> Albin Lindblad | B15: =VLOOKUP(A15,Rankings!C:E,3,FALSE) -> 37
A16: =INDEX(Rankings!C$2:'Rankings'!C$1000,MATCH(SMALL(Rankings!H$2:'Rankings'!H$1000,ROW()),Rankings!H$2:'Rankings'!H$1000,0)) -> Alejandra Estrada | B16: =VLOOKUP(A16,Rankings!C:E,3,FALSE) -> 0
A17: =INDEX(Rankings!C$2:'Rankings'!C$1000,MATCH(SMALL(Rankings!H$2:'Rankings'!H$1000,ROW()),Rankings!H$2:'Rankings'!H$1000,0)) -> Alena Vojtekova | B17: =VLOOKUP(A17,Rankings!C:E,3,FALSE) -> 0
A18: =INDEX(Rankings!C$2:'Rankings'!C$1000,MATCH(SMALL(Rankings!H$2:'Rankings'!H$1000,ROW()),Rankings!H$2:'Rankings'!H$1000,0)) -> Alena Zemanova | B18: =VLOOKUP(A18,Rankings!C:E,3,FALSE) -> 0
A19: =INDEX(Rankings!C$2:'Rankings'!C$1000,MATCH(SMALL(Rankings!H$2:'Rankings'!H$1000,ROW()),Rankings!H$2:'Rankings'!H$1000,0)) -> Alessandro Berra | B19: =VLOOKUP(A19,Rankings!C:E,3,FALSE) -> 0
A20: =INDEX(Rankings!C$2:'Rankings'!C$1000,MATCH(SMALL(Rankings!H$2:'Rankings'!H$1000,ROW()),Rankings!H$2:'Rankings'!H$1000,0)) -> Alessandro Collerà | B20: =VLOOKUP(A20,Rankings!C:E,3,FALSE) -> 0
A21: =INDEX(Rankings!C$2:'Rankings'!C$1000,MATCH(SMALL(Rankings!H$2:'Rankings'!H$1000,ROW()),Rankings!H$2:'Rankings'!H$1000,0)) -> Alessandro Damiano | B21: =VLOOKUP(A21,Rankings!C:E,3,FALSE) -> 194.5
A22: =INDEX(Rankings!C$2:'Rankings'!C$1000,MATCH(SMALL(Rankings!H$2:'Rankings'!H$1000,ROW()),Rankings!H$2:'Rankings'!H$1000,0)) -> Alessandro Fogazzi | B22: =VLOOKUP(A22,Rankings!C:E,3,FALSE) -> 0
A23: =INDEX(Rankings!C$2:'Rankings'!C$1000,MATCH(SMALL(Rankings!H$2:'Rankings'!H$1000,ROW()),Rankings!H$2:'Rankings'!H$1000,0)) -> Alessandro Provitali | B23: =VLOOKUP(A23,Rankings!C:E,3,FALSE) -> 0
A24: =INDEX(Rankings!C$2:'Rankings'!C$1000,MATCH(SMALL(Rankings!H$2:'Rankings'!H$1000,ROW()),Rankings!H$2:'Rankings'!H$1000,0)) -> Alessandro Vinciguerra | B24: =VLOOKUP(A24,Rankings!C:E,3,FALSE) -> 0
A25: =INDEX(Rankings!C$2:'Rankings'!C$1000,MATCH(SMALL(Rankings!H$2:'Rankings'!H$1000,ROW()),Rankings!H$2:'Rankings'!H$1000,0)) -> Alex Alexandrov | B25: =VLOOKUP(A25,Rankings!C:E,3,FALSE) -> 0
A26: =INDEX(Rankings!C$2:'Rankings'!C$1000,MATCH(SMALL(Rankings!H$2:'Rankings'!H$1000,ROW()),Rankings!H$2:'Rankings'!H$1000,0)) -> Alex Humphreys | B26: =VLOOKUP(A26,Rankings!C:E,3,FALSE) -> 0
A27: =INDEX(Rankings!C$2:'Rankings'!C$1000,MATCH(SMALL(Rankings!H$2:'Rankings'!H$1000,ROW()),Rankings!H$2:'Rankings'!H$1000,0)) -> Alex Leist | B27: =VLOOKUP(A27,Rankings!C:E,3,FALSE) -> 1659.25
A28: =INDEX(Rankings!C$2:'Rankings'!C$1000,MATCH(SMALL(Rankings!H$2:'Rankings'!H$1000,ROW()),Rankings!H$2:'Rankings'!H$1000,0)) -> Alexander Enhuber | B28: =VLOOKUP(A28,Rankings!C:E,3,FALSE) -> 110
A29: =INDEX(Rankings!C$2:'Rankings'!C$1000,MATCH(SMALL(Rankings!H$2:'Rankings'!H$1000,ROW()),Rankings!H$2:'Rankings'!H$1000,0)) -> Alexander Michnewitsch | B29: =VLOOKUP(A29,Rankings!C:E,3,FALSE) -> 0
A30: =INDEX(Rankings!C$2:'Rankings'!C$1000,MATCH(SMALL(Rankings!H$2:'Rankings'!H$1000,ROW()),Rankings!H$2:'Rankings'!H$1000,0)) -> Alexander Trenner | B30: =VLOOKUP(A30,Rankings!C:E,3,FALSE) -> 0
A31: =INDEX(Rankings!C$2:'Rankings'!C$1000,MATCH(SMALL(Rankings!H$2:'Rankings'!H$1000,ROW()),Rankings!H$2:'Rankings'!H$1000,0)) -> Alfonso Lopez Velez | B31: =VLOOKUP(A31,Rankings!C:E,3,FALSE) -> 61.5
A32: =INDEX(Rankings!C$2:'Rankings'!C$1000,MATCH(SMALL(Rankings!H$2:'Rankings'!H$1000,ROW()),Rankings!H$2:'Rankings'!H$1000,0)) -> Ali Dastrandj | B32: =VLOOKUP(A32,Rankings!C:E,3,FALSE) -> 0
A33: =INDEX(Rankings!C$2:'Rankings'!C$1000,MATCH(SMALL(Rankings!H$2:'Rankings'!H$1000,ROW()),Rankings!H$2:'Rankings'!H$1000,0)) -> Alice Tommazzini | B33: =VLOOKUP(A33,Rankings!C:E,3,FALSE) -> 20
A34: =INDEX(Rankings!C$2:'Rankings'!C$1000,MATCH(SMALL(Rankings!H$2:'Rankings'!H$1000,ROW()),Rankings!H$2:'Rankings'!H$1000,0)) -> Allan Clark | B34: =VLOOKUP(A34,Rankings!C:E,3,FALSE) -> 80.5
A35: =INDEX(Rankings!C$2:'Rankings'!C$1000,MATCH(SMALL(Rankings!H$2:'Rankings'!H$1000,ROW()),Rankings!H$2:'Rankings'!H$1000,0)) -> Amy Campbell | B35: =VLOOKUP(A35,Rankings!C:E,3,FALSE) -> 0
A36: =INDEX(Rankings!C$2:'Rankings'!C$1000,MATCH(SMALL(Rankings!H$2:'Rankings'!H$1000,ROW()),Rankings!H$2:'Rankings'!H$1000,0)) -> Amy Schiller | B36: =VLOOKUP(A36,Rankings!C:E,3,FALSE) -> 484.5
A37: =INDEX(Rankings!C$2:'Rankings'!C$1000,MATCH(SMALL(Rankings!H$2:'Rankings'!H$1000,ROW()),Rankings!H$2:'Rankings'!H$1000,0)) -> Anders Johnsson | B37: =VLOOKUP(A37,Rankings!C:E,3,FALSE) -> 0
A38: =INDEX(Rankings!C$2:'Rankings'!C$1000,MATCH(SMALL(Rankings!H$2:'Rankings'!H$1000,ROW()),Rankings!H$2:'Rankings'!H$1000,0)) -> André Hillman | B38: =VLOOKUP(A38,Rankings!C:E,3,FALSE) -> 0
A39: =INDEX(Rankings!C$2:'Rankings'!C$1000,MATCH(SMALL(Rankings!H$2:'Rankings'!H$1000,ROW()),Rankings!H$2:'Rankings'!H$1000,0)) -> Andre Zaharias | B39: =VLOOKUP(A39,Rankings!C:E,3,FALSE) -> 129
A40: =INDEX(Rankings!C$2:'Rankings'!C$1000,MATCH(SMALL(Rankings!H$2:'Rankings'!H$1000,ROW()),Rankings!H$2:'Rankings'!H$1000,0)) -> Andrea "Oddi" Furlan | B40: =VLOOKUP(A40,Rankings!C:E,3,FALSE) -> 0
A41: =INDEX(Rankings!C$2:'Rankings'!C$1000,MATCH(SMALL(Rankings!H$2:'Rankings'!H$1000,ROW()),Rankings!H$2:'Rankings'!H$1000,0)) -> Andrea Arfilli | B41: =VLOOKUP(A41,Rankings!C:E,3,FALSE) -> 0
A42: =INDEX(Rankings!C$2:'Rankings'!C$1000,MATCH(SMALL(Rankings!H$2:'Rankings'!H$1000,ROW()),Rankings!H$2:'Rankings'!H$1000,0)) -> Andrea Corizzo | B42: =VLOOKUP(A42,Rankings!C:E,3,FALSE) -> 0
A43: =INDEX(Rankings!C$2:'Rankings'!C$1000,MATCH(SMALL(Rankings!H$2:'Rankings'!H$1000,ROW()),Rankings!H$2:'Rankings'!H$1000,0)) -> Andrea Dini | B43: =VLOOKUP(A43,Rankings!C:E,3,FALSE) -> 0
A44: =INDEX(Rankings!C$2:'Rankings'!C$1000,MATCH(SMALL(Rankings!H$2:'Rankings'!H$1000,ROW()),Rankings!H$2:'Rankings'!H$1000,0)) -> Andrea Festi | B44: =VLOOKUP(A44,Rankings!C:E,3,FALSE) -> 53.5
A45: =INDEX(Rankings!C$2:'Rankings'!C$1000,MATCH(SMALL(Rankings!H$2:'Rankings'!H$1000,ROW()),Rankings!H$2:'Rankings'!H$1000,0)) -> Andrea Gallotti | B45: =VLOOKUP(A45,Rankings!C:E,3,FALSE) -> 0
A46: =INDEX(Rankings!C$2:'Rankings'!C$1000,MATCH(SMALL(Rankings!H$2:'Rankings'!H$1000,ROW()),Rankings!H$2:'Rankings'!H$1000,0)) -> Andrea Girodo | B46: =VLOOKUP(A46,Rankings!C:E,3,FALSE) -> 0
A47: =INDEX(Rankings!C$2:'Rankings'!C$1000,MATCH(SMALL(Rankings!H$2:'Rankings'!H$1000,ROW()),Rankings!H$2:'Rankings'!H$1000,0)) -> Andrea Izzo | B47: =VLOOKUP(A47,Rankings!C:E,3,FALSE) -> 178.75
A48: =INDEX(Rankings!C$2:'Rankings'!C$1000,MATCH(SMALL(Rankings!H$2:'Rankings'!H$1000,ROW()),Rankings!H$2:'Rankings'!H$1000,0)) -> Andrea Ludergnani | B48: =VLOOKUP(A48,Rankings!C:E,3,FALSE) -> 253.45
A49: =INDEX(Rankings!C$2:'Rankings'!C$1000,MATCH(SMALL(Rankings!H$2:'Rankings'!H$1000,ROW()),Rankings!H$2:'Rankings'!H$1000,0)) -> Andrea Lugli | B49: =VLOOKUP(A49,Rankings!C:E,3,FALSE) -> 0
A50: =INDEX(Rankings!C$2:'Rankings'!C$1000,MATCH(SMALL(Rankings!H$2:'Rankings'!H$1000,ROW()),Rankings!H$2:'Rankings'!H$1000,0)) -> Andrea Marciano | B50: =VLOOKUP(A50,Rankings!C:E,3,FALSE) -> 325.25
A51: =INDEX(Rankings!C$2:'Rankings'!C$1000,MATCH(SMALL(Rankings!H$2:'Rankings'!H$1000,ROW()),Rankings!H$2:'Rankings'!H$1000,0)) -> Andrea Meola | B51: =VLOOKUP(A51,Rankings!C:E,3,FALSE) -> 0
A52: =INDEX(Rankings!C$2:'Rankings'!C$1000,MATCH(SMALL(Rankings!H$2:'Rankings'!H$1000,ROW()),Rankings!H$2:'Rankings'!H$1000,0)) -> Andrea Mizzi | B52: =VLOOKUP(A52,Rankings!C:E,3,FALSE) -> 57.75
A53: =INDEX(Rankings!C$2:'Rankings'!C$1000,MATCH(SMALL(Rankings!H$2:'Rankings'!H$1000,ROW()),Rankings!H$2:'Rankings'!H$1000,0)) -> Andrea Pecchiari | B53: =VLOOKUP(A53,Rankings!C:E,3,FALSE) -> 183.75
A54: =INDEX(Rankings!C$2:'Rankings'!C$1000,MATCH(SMALL(Rankings!H$2:'Rankings'!H$1000,ROW()),Rankings!H$2:'Rankings'!H$1000,0)) -> Andrea Piemontese | B54: =VLOOKUP(A54,Rankings!C:E,3,FALSE) -> 262.15
A55: =INDEX(Rankings!C$2:'Rankings'!C$1000,MATCH(SMALL(Rankings!H$2:'Rankings'!H$1000,ROW()),Rankings!H$2:'Rankings'!H$1000,0)) -> Andrea Pietrangeli | B55: =VLOOKUP(A55,Rankings!C:E,3,FALSE) -> 0
A56: =INDEX(Rankings!C$2:'Rankings'!C$1000,MATCH(SMALL(Rankings!H$2:'Rankings'!H$1000,ROW()),Rankings!H$2:'Rankings'!H$1000,0)) -> Andrea Poli | B56: =VLOOKUP(A56,Rankings!C:E,3,FALSE) -> 485.35
A57: =INDEX(Rankings!C$2:'Rankings'!C$1000,MATCH(SMALL(Rankings!H$2:'Rankings'!H$1000,ROW()),Rankings!H$2:'Rankings'!H$1000,0)) -> Andrea Rimatori | B57: =VLOOKUP(A57,Rankings!C:E,3,FALSE) -> 713.65
A58: =INDEX(Rankings!C$2:'Rankings'!C$1000,MATCH(SMALL(Rankings!H$2:'Rankings'!H$1000,ROW()),Rankings!H$2:'Rankings'!H$1000,0)) -> Andrea Sarti | B58: =VLOOKUP(A58,Rankings!C:E,3,FALSE) -> 555.35
A59: =INDEX(Rankings!C$2:'Rankings'!C$1000,MATCH(SMALL(Rankings!H$2:'Rankings'!H$1000,ROW()),Rankings!H$2:'Rankings'!H$1000,0)) -> Andrea Stazi | B59: =VLOOKUP(A59,Rankings!C:E,3,FALSE) -> 51
A60: =INDEX(Rankings!C$2:'Rankings'!C$1000,MATCH(SMALL(Rankings!H$2:'Rankings'!H$1000,ROW()),Rankings!H$2:'Rankings'!H$1000,0)) -> Andreas Bochmann | B60: =VLOOKUP(A60,Rankings!C:E,3,FALSE) -> 40
A61: =INDEX(Rankings!C$2:'Rankings'!C$1000,MATCH(SMALL(Rankings!H$2:'Rankings'!H$1000,ROW()),Rankings!H$2:'Rankings'!H$1000,0)) -> Andreas Jaderyd | B61: =VLOOKUP(A61,Rankings!C:E,3,FALSE) -> 346.5
A62: =INDEX(Rankings!C$2:'Rankings'!C$1000,MATCH(SMALL(Rankings!H$2:'Rankings'!H$1000,ROW()),Rankings!H$2:'Rankings'!H$1000,0)) -> Andreas Nogay | B62: =VLOOKUP(A62,Rankings!C:E,3,FALSE) -> 0
A63: =INDEX(Rankings!C$2:'Rankings'!C$1000,MATCH(SMALL(Rankings!H$2:'Rankings'!H$1000,ROW()),Rankings!H$2:'Rankings'!H$1000,0)) -> Andres Rivera | B63: =VLOOKUP(A63,Rankings!C:E,3,FALSE) -> 0
A64: =INDEX(Rankings!C$2:'Rankings'!C$1000,MATCH(SMALL(Rankings!H$2:'Rankings'!H$1000,ROW()),Rankings!H$2:'Rankings'!H$1000,0)) -> Andres Serna | B64: =VLOOKUP(A64,Rankings!C:E,3,FALSE) -> 0
A65: =INDEX(Rankings!C$2:'Rankings'!C$1000,MATCH(SMALL(Rankings!H$2:'Rankings'!H$1000,ROW()),Rankings!H$2:'Rankings'!H$1000,0)) -> Andrew Lemann | B65: =VLOOKUP(A65,Rankings!C:E,3,FALSE) -> 97
A66: =INDEX(Rankings!C$2:'Rankings'!C$1000,MATCH(SMALL(Rankings!H$2:'Rankings'!H$1000,ROW()),Rankings!H$2:'Rankings'!H$1000,0)) -> Andrew Quinn | B66: =VLOOKUP(A66,Rankings!C:E,3,FALSE) -> 0
A67: =INDEX(Rankings!C$2:'Rankings'!C$1000,MATCH(SMALL(Rankings!H$2:'Rankings'!H$1000,ROW()),Rankings!H$2:'Rankings'!H$1000,0)) -> Andrew Van Lanen | B67: =VLOOKUP(A67,Rankings!C:E,3,FALSE) -> 0
A68: =INDEX(Rankings!C$2:'Rankings'!C$1000,MATCH(SMALL(Rankings!H$2:'Rankings'!H$1000,ROW()),Rankings!H$2:'Rankings'!H$1000,0)) -> Andy Absolom | B68: =VLOOKUP(A68,Rankings!C:E,3,FALSE) -> 216.75
A69: =INDEX(Rankings!C$2:'Rankings'!C$1000,MATCH(SMALL(Rankings!H$2:'Rankings'!H$1000,ROW()),Rankings!H$2:'Rankings'!H$1000,0)) -> Angela Goeller | B69: =VLOOKUP(A69,Rankings!C:E,3,FALSE) -> 0
A70: =INDEX(Rankings!C$2:'Rankings'!C$1000,MATCH(SMALL(Rankings!H$2:'Rankings'!H$1000,ROW()),Rankings!H$2:'Rankings'!H$1000,0)) -> Angelo Mancarella | B70: =VLOOKUP(A70,Rankings!C:E,3,FALSE) -> 0
A71: =INDEX(Rankings!C$2:'Rankings'!C$1000,MATCH(SMALL(Rankings!H$2:'Rankings'!H$1000,ROW()),Rankings!H$2:'Rankings'!H$1000,0)) -> Angelo Trevino | B71: =VLOOKUP(A71,Rankings!C:E,3,FALSE) -> 27.5
A72: =INDEX(Rankings!C$2:'Rankings'!C$1000,MATCH(SMALL(Rankings!H$2:'Rankings'!H$1000,ROW()),Rankings!H$2:'Rankings'!H$1000,0)) -> Anna Bragagnolo | B72: =VLOOKUP(A72,Rankings!C:E,3,FALSE) -> 218.8
A73: =INDEX(Rankings!C$2:'Rankings'!C$1000,MATCH(SMALL(Rankings!H$2:'Rankings'!H$1000,ROW()),Rankings!H$2:'Rankings'!H$1000,0)) -> Anna Duran-Korzycka | B73: =VLOOKUP(A73,Rankings!C:E,3,FALSE) -> 100.3
A74: =INDEX(Rankings!C$2:'Rankings'!C$1000,MATCH(SMALL(Rankings!H$2:'Rankings'!H$1000,ROW()),Rankings!H$2:'Rankings'!H$1000,0)) -> Anna Longoni | B74: =VLOOKUP(A74,Rankings!C:E,3,FALSE) -> 0
A75: =INDEX(Rankings!C$2:'Rankings'!C$1000,MATCH(SMALL(Rankings!H$2:'Rankings'!H$1000,ROW()),Rankings!H$2:'Rankings'!H$1000,0)) -> Anna Merlo | B75: =VLOOKUP(A75,Rankings!C:E,3,FALSE) -> 335
A76: =INDEX(Rankings!C$2:'Rankings'!C$1000,MATCH(SMALL(Rankings!H$2:'Rankings'!H$1000,ROW()),Rankings!H$2:'Rankings'!H$1000,0)) -> Anna Strait | B76: =VLOOKUP(A76,Rankings!C:E,3,FALSE) -> 0
A77: =INDEX(Rankings!C$2:'Rankings'!C$1000,MATCH(SMALL(Rankings!H$2:'Rankings'!H$1000,ROW()),Rankings!H$2:'Rankings'!H$1000,0)) -> Annalisa Bergonzoni | B77: =VLOOKUP(A77,Rankings!C:E,3,FALSE) -> 0
A78: =INDEX(Rankings!C$2:'Rankings'!C$1000,MATCH(SMALL(Rankings!H$2:'Rankings'!H$1000,ROW()),Rankings!H$2:'Rankings'!H$1000,0)) -> Ann-Charlotte Johansson | B78: =VLOOKUP(A78,Rankings!C:E,3,FALSE) -> 0
A79: =INDEX(Rankings!C$2:'Rankings'!C$1000,MATCH(SMALL(Rankings!H$2:'Rankings'!H$1000,ROW()),Rankings!H$2:'Rankings'!H$1000,0)) -> Anne Goh | B79: =VLOOKUP(A79,Rankings!C:E,3,FALSE) -> 0
A80: =INDEX(Rankings!C$2:'Rankings'!C$1000,MATCH(SMALL(Rankings!H$2:'Rankings'!H$1000,ROW()),Rankings!H$2:'Rankings'!H$1000,0)) -> Anneli André | B80: =VLOOKUP(A80,Rankings!C:E,3,FALSE) -> 44
A81: =INDEX(Rankings!C$2:'Rankings'!C$1000,MATCH(SMALL(Rankings!H$2:'Rankings'!H$1000,ROW()),Rankings!H$2:'Rankings'!H$1000,0)) -> Anton Capellmann | B81: =VLOOKUP(A81,Rankings!C:E,3,FALSE) -> 666.75
A82: =INDEX(Rankings!C$2:'Rankings'!C$1000,MATCH(SMALL(Rankings!H$2:'Rankings'!H$1000,ROW()),Rankings!H$2:'Rankings'!H$1000,0)) -> Anton Kappling | B82: =VLOOKUP(A82,Rankings!C:E,3,FALSE) -> 8.5
A83: =INDEX(Rankings!C$2:'Rankings'!C$1000,MATCH(SMALL(Rankings!H$2:'Rankings'!H$1000,ROW()),Rankings!H$2:'Rankings'!H$1000,0)) -> Anton Lindh | B83: =VLOOKUP(A83,Rankings!C:E,3,FALSE) -> 34
A84: =INDEX(Rankings!C$2:'Rankings'!C$1000,MATCH(SMALL(Rankings!H$2:'Rankings'!H$1000,ROW()),Rankings!H$2:'Rankings'!H$1000,0)) -> Antonio Attanasio | B84: =VLOOKUP(A84,Rankings!C:E,3,FALSE) -> 0
A85: =INDEX(Rankings!C$2:'Rankings'!C$1000,MATCH(SMALL(Rankings!H$2:'Rankings'!H$1000,ROW()),Rankings!H$2:'Rankings'!H$1000,0)) -> Antonio Caporale | B85: =VLOOKUP(A85,Rankings!C:E,3,FALSE) -> 0
A86: =INDEX(Rankings!C$2:'Rankings'!C$1000,MATCH(SMALL(Rankings!H$2:'Rankings'!H$1000,ROW()),Rankings!H$2:'Rankings'!H$1000,0)) -> Antonio Iannettone | B86: =VLOOKUP(A86,Rankings!C:E,3,FALSE) -> 5.55
A87: =INDEX(Rankings!C$2:'Rankings'!C$1000,MATCH(SMALL(Rankings!H$2:'Rankings'!H$1000,ROW()),Rankings!H$2:'Rankings'!H$1000,0)) -> Antonio Piccione Cusmá | B87: =VLOOKUP(A87,Rankings!C:E,3,FALSE) -> 513.75
A88: =INDEX(Rankings!C$2:'Rankings'!C$1000,MATCH(SMALL(Rankings!H$2:'Rankings'!H$1000,ROW()),Rankings!H$2:'Rankings'!H$1000,0)) -> Ari Kloke | B88: =VLOOKUP(A88,Rankings!C:E,3,FALSE) -> 0
A89: =INDEX(Rankings!C$2:'Rankings'!C$1000,MATCH(SMALL(Rankings!H$2:'Rankings'!H$1000,ROW()),Rankings!H$2:'Rankings'!H$1000,0)) -> Aria Andarizig | B89: =VLOOKUP(A89,Rankings!C:E,3,FALSE) -> 24
A90: =INDEX(Rankings!C$2:'Rankings'!C$1000,MATCH(SMALL(Rankings!H$2:'Rankings'!H$1000,ROW()),Rankings!H$2:'Rankings'!H$1000,0)) -> Arnon Avitzur | B90: =VLOOKUP(A90,Rankings!C:E,3,FALSE) -> 0
A91: =INDEX(Rankings!C$2:'Rankings'!C$1000,MATCH(SMALL(Rankings!H$2:'Rankings'!H$1000,ROW()),Rankings!H$2:'Rankings'!H$1000,0)) -> Art Viger | B91: =VLOOKUP(A91,Rankings!C:E,3,FALSE) -> 0
A92: =INDEX(Rankings!C$2:'Rankings'!C$1000,MATCH(SMALL(Rankings!H$2:'Rankings'!H$1000,ROW()),Rankings!H$2:'Rankings'!H$1000,0)) -> Arthur Coddington | B92: =VLOOKUP(A92,Rankings!C:E,3,FALSE) -> 0
A93: =INDEX(Rankings!C$2:'Rankings'!C$1000,MATCH(SMALL(Rankings!H$2:'Rankings'!H$1000,ROW()),Rankings!H$2:'Rankings'!H$1000,0)) -> Austin Borcherding | B93: =VLOOKUP(A93,Rankings!C:E,3,FALSE) -> 0
A94: =INDEX(Rankings!C$2:'Rankings'!C$1000,MATCH(SMALL(Rankings!H$2:'Rankings'!H$1000,ROW()),Rankings!H$2:'Rankings'!H$1000,0)) -> Avery Jenkins | B94: =VLOOKUP(A94,Rankings!C:E,3,FALSE) -> 0
A95: =INDEX(Rankings!C$2:'Rankings'!C$1000,MATCH(SMALL(Rankings!H$2:'Rankings'!H$1000,ROW()),Rankings!H$2:'Rankings'!H$1000,0)) -> Aya Ichikawa | B95: =VLOOKUP(A95,Rankings!C:E,3,FALSE) -> 40
A96: =INDEX(Rankings!C$2:'Rankings'!C$1000,MATCH(SMALL(Rankings!H$2:'Rankings'!H$1000,ROW()),Rankings!H$2:'Rankings'!H$1000,0)) -> Ayal Benin | B96: =VLOOKUP(A96,Rankings!C:E,3,FALSE) -> 169.8
A97: =INDEX(Rankings!C$2:'Rankings'!C$1000,MATCH(SMALL(Rankings!H$2:'Rankings'!H$1000,ROW()),Rankings!H$2:'Rankings'!H$1000,0)) -> Balu Major | B97: =VLOOKUP(A97,Rankings!C:E,3,FALSE) -> 902.25
A98: =INDEX(Rankings!C$2:'Rankings'!C$1000,MATCH(SMALL(Rankings!H$2:'Rankings'!H$1000,ROW()),Rankings!H$2:'Rankings'!H$1000,0)) -> Barrett White | B98: =VLOOKUP(A98,Rankings!C:E,3,FALSE) -> 40
A99: =INDEX(Rankings!C$2:'Rankings'!C$1000,MATCH(SMALL(Rankings!H$2:'Rankings'!H$1000,ROW()),Rankings!H$2:'Rankings'!H$1000,0)) -> Bart Lodewijk | B99: =VLOOKUP(A99,Rankings!C:E,3,FALSE) -> 0
A100: =INDEX(Rankings!C$2:'Rankings'!C$1000,MATCH(SMALL(Rankings!H$2:'Rankings'!H$1000,ROW()),Rankings!H$2:'Rankings'!H$1000,0)) -> Bartek Dusowski | B100: =VLOOKUP(A100,Rankings!C:E,3,FALSE) -> 0
A101: =INDEX(Rankings!C$2:'Rankings'!C$1000,MATCH(SMALL(Rankings!H$2:'Rankings'!H$1000,ROW()),Rankings!H$2:'Rankings'!H$1000,0)) -> Beka Namchevadze | B101: =VLOOKUP(A101,Rankings!C:E,3,FALSE) -> 35.5
A102: =INDEX(Rankings!C$2:'Rankings'!C$1000,MATCH(SMALL(Rankings!H$2:'Rankings'!H$1000,ROW()),Rankings!H$2:'Rankings'!H$1000,0)) -> Ben Singer | B102: =VLOOKUP(A102,Rankings!C:E,3,FALSE) -> 0
A103: =INDEX(Rankings!C$2:'Rankings'!C$1000,MATCH(SMALL(Rankings!H$2:'Rankings'!H$1000,ROW()),Rankings!H$2:'Rankings'!H$1000,0)) -> Benedigt Becker | B103: =VLOOKUP(A103,Rankings!C:E,3,FALSE) -> 0
A104: =INDEX(Rankings!C$2:'Rankings'!C$1000,MATCH(SMALL(Rankings!H$2:'Rankings'!H$1000,ROW()),Rankings!H$2:'Rankings'!H$1000,0)) -> Benjamin Edelmann | B104: =VLOOKUP(A104,Rankings!C:E,3,FALSE) -> 652.25
A105: =INDEX(Rankings!C$2:'Rankings'!C$1000,MATCH(SMALL(Rankings!H$2:'Rankings'!H$1000,ROW()),Rankings!H$2:'Rankings'!H$1000,0)) -> Benni Sing | B105: =VLOOKUP(A105,Rankings!C:E,3,FALSE) -> 0
A106: =INDEX(Rankings!C$2:'Rankings'!C$1000,MATCH(SMALL(Rankings!H$2:'Rankings'!H$1000,ROW()),Rankings!H$2:'Rankings'!H$1000,0)) -> Bernie Murray | B106: =VLOOKUP(A106,Rankings!C:E,3,FALSE) -> 5
A107: =INDEX(Rankings!C$2:'Rankings'!C$1000,MATCH(SMALL(Rankings!H$2:'Rankings'!H$1000,ROW()),Rankings!H$2:'Rankings'!H$1000,0)) -> Beth Verish | B107: =VLOOKUP(A107,Rankings!C:E,3,FALSE) -> 59.45
A108: =INDEX(Rankings!C$2:'Rankings'!C$1000,MATCH(SMALL(Rankings!H$2:'Rankings'!H$1000,ROW()),Rankings!H$2:'Rankings'!H$1000,0)) -> Bethany Sanchez | B108: =VLOOKUP(A108,Rankings!C:E,3,FALSE) -> 218.5
A109: =INDEX(Rankings!C$2:'Rankings'!C$1000,MATCH(SMALL(Rankings!H$2:'Rankings'!H$1000,ROW()),Rankings!H$2:'Rankings'!H$1000,0)) -> Bianca Strunz | B109: =VLOOKUP(A109,Rankings!C:E,3,FALSE) -> 743.5
A110: =INDEX(Rankings!C$2:'Rankings'!C$1000,MATCH(SMALL(Rankings!H$2:'Rankings'!H$1000,ROW()),Rankings!H$2:'Rankings'!H$1000,0)) -> Bill Chetel | B110: =VLOOKUP(A110,Rankings!C:E,3,FALSE) -> 0
A111: =INDEX(Rankings!C$2:'Rankings'!C$1000,MATCH(SMALL(Rankings!H$2:'Rankings'!H$1000,ROW()),Rankings!H$2:'Rankings'!H$1000,0)) -> Bill Wright | B111: =VLOOKUP(A111,Rankings!C:E,3,FALSE) -> 222.8
A112: =INDEX(Rankings!C$2:'Rankings'!C$1000,MATCH(SMALL(Rankings!H$2:'Rankings'!H$1000,ROW()),Rankings!H$2:'Rankings'!H$1000,0)) -> Billy Caplin | B112: =VLOOKUP(A112,Rankings!C:E,3,FALSE) -> 43.25
A113: =INDEX(Rankings!C$2:'Rankings'!C$1000,MATCH(SMALL(Rankings!H$2:'Rankings'!H$1000,ROW()),Rankings!H$2:'Rankings'!H$1000,0)) -> Billy Kaplan | B113: =VLOOKUP(A113,Rankings!C:E,3,FALSE) -> 0
A114: =INDEX(Rankings!C$2:'Rankings'!C$1000,MATCH(SMALL(Rankings!H$2:'Rankings'!H$1000,ROW()),Rankings!H$2:'Rankings'!H$1000,0)) -> Birger Schmidt | B114: =VLOOKUP(A114,Rankings!C:E,3,FALSE) -> 38
A115: =INDEX(Rankings!C$2:'Rankings'!C$1000,MATCH(SMALL(Rankings!H$2:'Rankings'!H$1000,ROW()),Rankings!H$2:'Rankings'!H$1000,0)) -> Birgit Lenger | B115: =VLOOKUP(A115,Rankings!C:E,3,FALSE) -> 0
A116: =INDEX(Rankings!C$2:'Rankings'!C$1000,MATCH(SMALL(Rankings!H$2:'Rankings'!H$1000,ROW()),Rankings!H$2:'Rankings'!H$1000,0)) -> Björn Ahlström | B116: =VLOOKUP(A116,Rankings!C:E,3,FALSE) -> 0
A117: =INDEX(Rankings!C$2:'Rankings'!C$1000,MATCH(SMALL(Rankings!H$2:'Rankings'!H$1000,ROW()),Rankings!H$2:'Rankings'!H$1000,0)) -> Bjorn Tiggis | B117: =VLOOKUP(A117,Rankings!C:E,3,FALSE) -> 0
A118: =INDEX(Rankings!C$2:'Rankings'!C$1000,MATCH(SMALL(Rankings!H$2:'Rankings'!H$1000,ROW()),Rankings!H$2:'Rankings'!H$1000,0)) -> Blake Herrschaft | B118: =VLOOKUP(A118,Rankings!C:E,3,FALSE) -> 0
A119: =INDEX(Rankings!C$2:'Rankings'!C$1000,MATCH(SMALL(Rankings!H$2:'Rankings'!H$1000,ROW()),Rankings!H$2:'Rankings'!H$1000,0)) -> Bob Boulware | B119: =VLOOKUP(A119,Rankings!C:E,3,FALSE) -> 79.75
A120: =INDEX(Rankings!C$2:'Rankings'!C$1000,MATCH(SMALL(Rankings!H$2:'Rankings'!H$1000,ROW()),Rankings!H$2:'Rankings'!H$1000,0)) -> Bob Coleman | B120: =VLOOKUP(A120,Rankings!C:E,3,FALSE) -> 0
A121: =INDEX(Rankings!C$2:'Rankings'!C$1000,MATCH(SMALL(Rankings!H$2:'Rankings'!H$1000,ROW()),Rankings!H$2:'Rankings'!H$1000,0)) -> Bob Cooksey | B121: =VLOOKUP(A121,Rankings!C:E,3,FALSE) -> 82.5
A122: =INDEX(Rankings!C$2:'Rankings'!C$1000,MATCH(SMALL(Rankings!H$2:'Rankings'!H$1000,ROW()),Rankings!H$2:'Rankings'!H$1000,0)) -> Bob Gossett | B122: =VLOOKUP(A122,Rankings!C:E,3,FALSE) -> 0
A123: =INDEX(Rankings!C$2:'Rankings'!C$1000,MATCH(SMALL(Rankings!H$2:'Rankings'!H$1000,ROW()),Rankings!H$2:'Rankings'!H$1000,0)) -> Bobbo Karlsson | B123: =VLOOKUP(A123,Rankings!C:E,3,FALSE) -> 0
A124: =INDEX(Rankings!C$2:'Rankings'!C$1000,MATCH(SMALL(Rankings!H$2:'Rankings'!H$1000,ROW()),Rankings!H$2:'Rankings'!H$1000,0)) -> Boguslaw Bul | B124: =VLOOKUP(A124,Rankings!C:E,3,FALSE) -> 0
A125: =INDEX(Rankings!C$2:'Rankings'!C$1000,MATCH(SMALL(Rankings!H$2:'Rankings'!H$1000,ROW()),Rankings!H$2:'Rankings'!H$1000,0)) -> Brad Bishop | B125: =VLOOKUP(A125,Rankings!C:E,3,FALSE) -> 0
A126: =INDEX(Rankings!C$2:'Rankings'!C$1000,MATCH(SMALL(Rankings!H$2:'Rankings'!H$1000,ROW()),Rankings!H$2:'Rankings'!H$1000,0)) -> Brad Keller | B126: =VLOOKUP(A126,Rankings!C:E,3,FALSE) -> 64
A127: =INDEX(Rankings!C$2:'Rankings'!C$1000,MATCH(SMALL(Rankings!H$2:'Rankings'!H$1000,ROW()),Rankings!H$2:'Rankings'!H$1000,0)) -> Brad Wendt | B127: =VLOOKUP(A127,Rankings!C:E,3,FALSE) -> 64
A128: =INDEX(Rankings!C$2:'Rankings'!C$1000,MATCH(SMALL(Rankings!H$2:'Rankings'!H$1000,ROW()),Rankings!H$2:'Rankings'!H$1000,0)) -> Bram Maassen | B128: =VLOOKUP(A128,Rankings!C:E,3,FALSE) -> 0
A129: =INDEX(Rankings!C$2:'Rankings'!C$1000,MATCH(SMALL(Rankings!H$2:'Rankings'!H$1000,ROW()),Rankings!H$2:'Rankings'!H$1000,0)) -> Brian Boate | B129: =VLOOKUP(A129,Rankings!C:E,3,FALSE) -> 0
A130: =INDEX(Rankings!C$2:'Rankings'!C$1000,MATCH(SMALL(Rankings!H$2:'Rankings'!H$1000,ROW()),Rankings!H$2:'Rankings'!H$1000,0)) -> Brian McElwain | B130: =VLOOKUP(A130,Rankings!C:E,3,FALSE) -> 19.3
A131: =INDEX(Rankings!C$2:'Rankings'!C$1000,MATCH(SMALL(Rankings!H$2:'Rankings'!H$1000,ROW()),Rankings!H$2:'Rankings'!H$1000,0)) -> Bruce Page | B131: =VLOOKUP(A131,Rankings!C:E,3,FALSE) -> 0
A132: =INDEX(Rankings!C$2:'Rankings'!C$1000,MATCH(SMALL(Rankings!H$2:'Rankings'!H$1000,ROW()),Rankings!H$2:'Rankings'!H$1000,0)) -> Bryan Steffen | B132: =VLOOKUP(A132,Rankings!C:E,3,FALSE) -> 0
A133: =INDEX(Rankings!C$2:'Rankings'!C$1000,MATCH(SMALL(Rankings!H$2:'Rankings'!H$1000,ROW()),Rankings!H$2:'Rankings'!H$1000,0)) -> Caleb DePaola | B133: =VLOOKUP(A133,Rankings!C:E,3,FALSE) -> 0
A134: =INDEX(Rankings!C$2:'Rankings'!C$1000,MATCH(SMALL(Rankings!H$2:'Rankings'!H$1000,ROW()),Rankings!H$2:'Rankings'!H$1000,0)) -> Carl Dobson | B134: =VLOOKUP(A134,Rankings!C:E,3,FALSE) -> 233.5
A135: =INDEX(Rankings!C$2:'Rankings'!C$1000,MATCH(SMALL(Rankings!H$2:'Rankings'!H$1000,ROW()),Rankings!H$2:'Rankings'!H$1000,0)) -> Carl Emerson | B135: =VLOOKUP(A135,Rankings!C:E,3,FALSE) -> 45
A136: =INDEX(Rankings!C$2:'Rankings'!C$1000,MATCH(SMALL(Rankings!H$2:'Rankings'!H$1000,ROW()),Rankings!H$2:'Rankings'!H$1000,0)) -> Carlo Lupin | B136: =VLOOKUP(A136,Rankings!C:E,3,FALSE) -> 0
A137: =INDEX(Rankings!C$2:'Rankings'!C$1000,MATCH(SMALL(Rankings!H$2:'Rankings'!H$1000,ROW()),Rankings!H$2:'Rankings'!H$1000,0)) -> Carlo Perrone | B137: =VLOOKUP(A137,Rankings!C:E,3,FALSE) -> 26
A138: =INDEX(Rankings!C$2:'Rankings'!C$1000,MATCH(SMALL(Rankings!H$2:'Rankings'!H$1000,ROW()),Rankings!H$2:'Rankings'!H$1000,0)) -> Carlotta Berini | B138: =VLOOKUP(A138,Rankings!C:E,3,FALSE) -> 0
A139: =INDEX(Rankings!C$2:'Rankings'!C$1000,MATCH(SMALL(Rankings!H$2:'Rankings'!H$1000,ROW()),Rankings!H$2:'Rankings'!H$1000,0)) -> Carolyn Hubbard | B139: =VLOOKUP(A139,Rankings!C:E,3,FALSE) -> 0
A140: =INDEX(Rankings!C$2:'Rankings'!C$1000,MATCH(SMALL(Rankings!H$2:'Rankings'!H$1000,ROW()),Rankings!H$2:'Rankings'!H$1000,0)) -> Carsten Heim | B140: =VLOOKUP(A140,Rankings!C:E,3,FALSE) -> 0
A141: =INDEX(Rankings!C$2:'Rankings'!C$1000,MATCH(SMALL(Rankings!H$2:'Rankings'!H$1000,ROW()),Rankings!H$2:'Rankings'!H$1000,0)) -> Catia Brandi | B141: =VLOOKUP(A141,Rankings!C:E,3,FALSE) -> 0
A142: =INDEX(Rankings!C$2:'Rankings'!C$1000,MATCH(SMALL(Rankings!H$2:'Rankings'!H$1000,ROW()),Rankings!H$2:'Rankings'!H$1000,0)) -> Cedrik Stevens | B142: =VLOOKUP(A142,Rankings!C:E,3,FALSE) -> 60.5
A143: =INDEX(Rankings!C$2:'Rankings'!C$1000,MATCH(SMALL(Rankings!H$2:'Rankings'!H$1000,ROW()),Rankings!H$2:'Rankings'!H$1000,0)) -> Char Powell | B143: =VLOOKUP(A143,Rankings!C:E,3,FALSE) -> 193.6
A144: =INDEX(Rankings!C$2:'Rankings'!C$1000,MATCH(SMALL(Rankings!H$2:'Rankings'!H$1000,ROW()),Rankings!H$2:'Rankings'!H$1000,0)) -> Charles Logan | B144: =VLOOKUP(A144,Rankings!C:E,3,FALSE) -> 186.05
A145: =INDEX(Rankings!C$2:'Rankings'!C$1000,MATCH(SMALL(Rankings!H$2:'Rankings'!H$1000,ROW()),Rankings!H$2:'Rankings'!H$1000,0)) -> Charlie Richards IV | B145: =VLOOKUP(A145,Rankings!C:E,3,FALSE) -> 35
A146: =INDEX(Rankings!C$2:'Rankings'!C$1000,MATCH(SMALL(Rankings!H$2:'Rankings'!H$1000,ROW()),Rankings!H$2:'Rankings'!H$1000,0)) -> Charlotte DePaola | B146: =VLOOKUP(A146,Rankings!C:E,3,FALSE) -> 0
A147: =INDEX(Rankings!C$2:'Rankings'!C$1000,MATCH(SMALL(Rankings!H$2:'Rankings'!H$1000,ROW()),Rankings!H$2:'Rankings'!H$1000,0)) -> Charly Katzenmaier | B147: =VLOOKUP(A147,Rankings!C:E,3,FALSE) -> 0
A148: =INDEX(Rankings!C$2:'Rankings'!C$1000,MATCH(SMALL(Rankings!H$2:'Rankings'!H$1000,ROW()),Rankings!H$2:'Rankings'!H$1000,0)) -> Chip Bell | B148: =VLOOKUP(A148,Rankings!C:E,3,FALSE) -> 0
A149: =INDEX(Rankings!C$2:'Rankings'!C$1000,MATCH(SMALL(Rankings!H$2:'Rankings'!H$1000,ROW()),Rankings!H$2:'Rankings'!H$1000,0)) -> Chris Baker | B149: =VLOOKUP(A149,Rankings!C:E,3,FALSE) -> 0
A150: =INDEX(Rankings!C$2:'Rankings'!C$1000,MATCH(SMALL(Rankings!H$2:'Rankings'!H$1000,ROW()),Rankings!H$2:'Rankings'!H$1000,0)) -> Chris Bellaj | B150: =VLOOKUP(A150,Rankings!C:E,3,FALSE) -> 270.2
A151: =INDEX(Rankings!C$2:'Rankings'!C$1000,MATCH(SMALL(Rankings!H$2:'Rankings'!H$1000,ROW()),Rankings!H$2:'Rankings'!H$1000,0)) -> Chris DePaola | B151: =VLOOKUP(A151,Rankings!C:E,3,FALSE) -> 0
A152: =INDEX(Rankings!C$2:'Rankings'!C$1000,MATCH(SMALL(Rankings!H$2:'Rankings'!H$1000,ROW()),Rankings!H$2:'Rankings'!H$1000,0)) -> Chris Dunaway | B152: =VLOOKUP(A152,Rankings!C:E,3,FALSE) -> 0
A153: =INDEX(Rankings!C$2:'Rankings'!C$1000,MATCH(SMALL(Rankings!H$2:'Rankings'!H$1000,ROW()),Rankings!H$2:'Rankings'!H$1000,0)) -> Chris Hill | B153: =VLOOKUP(A153,Rankings!C:E,3,FALSE) -> 0
A154: =INDEX(Rankings!C$2:'Rankings'!C$1000,MATCH(SMALL(Rankings!H$2:'Rankings'!H$1000,ROW()),Rankings!H$2:'Rankings'!H$1000,0)) -> Chris Horn | B154: =VLOOKUP(A154,Rankings!C:E,3,FALSE) -> 51.5
A155: =INDEX(Rankings!C$2:'Rankings'!C$1000,MATCH(SMALL(Rankings!H$2:'Rankings'!H$1000,ROW()),Rankings!H$2:'Rankings'!H$1000,0)) -> Chris Koslowski | B155: =VLOOKUP(A155,Rankings!C:E,3,FALSE) -> 0
A156: =INDEX(Rankings!C$2:'Rankings'!C$1000,MATCH(SMALL(Rankings!H$2:'Rankings'!H$1000,ROW()),Rankings!H$2:'Rankings'!H$1000,0)) -> Chris Reynolds | B156: =VLOOKUP(A156,Rankings!C:E,3,FALSE) -> 0
A157: =INDEX(Rankings!C$2:'Rankings'!C$1000,MATCH(SMALL(Rankings!H$2:'Rankings'!H$1000,ROW()),Rankings!H$2:'Rankings'!H$1000,0)) -> Chris Ryan | B157: =VLOOKUP(A157,Rankings!C:E,3,FALSE) -> 0
A158: =INDEX(Rankings!C$2:'Rankings'!C$1000,MATCH(SMALL(Rankings!H$2:'Rankings'!H$1000,ROW()),Rankings!H$2:'Rankings'!H$1000,0)) -> Chris Sieben | B158: =VLOOKUP(A158,Rankings!C:E,3,FALSE) -> 0
A159: =INDEX(Rankings!C$2:'Rankings'!C$1000,MATCH(SMALL(Rankings!H$2:'Rankings'!H$1000,ROW()),Rankings!H$2:'Rankings'!H$1000,0)) -> Christian Grau | B159: =VLOOKUP(A159,Rankings!C:E,3,FALSE) -> 0
A160: =INDEX(Rankings!C$2:'Rankings'!C$1000,MATCH(SMALL(Rankings!H$2:'Rankings'!H$1000,ROW()),Rankings!H$2:'Rankings'!H$1000,0)) -> Christian Lamred | B160: =VLOOKUP(A160,Rankings!C:E,3,FALSE) -> 1565.25
A161: =INDEX(Rankings!C$2:'Rankings'!C$1000,MATCH(SMALL(Rankings!H$2:'Rankings'!H$1000,ROW()),Rankings!H$2:'Rankings'!H$1000,0)) -> Christian Voigt | B161: =VLOOKUP(A161,Rankings!C:E,3,FALSE) -> 0
A162: =INDEX(Rankings!C$2:'Rankings'!C$1000,MATCH(SMALL(Rankings!H$2:'Rankings'!H$1000,ROW()),Rankings!H$2:'Rankings'!H$1000,0)) -> Christina Kunze | B162: =VLOOKUP(A162,Rankings!C:E,3,FALSE) -> 0
A163: =INDEX(Rankings!C$2:'Rankings'!C$1000,MATCH(SMALL(Rankings!H$2:'Rankings'!H$1000,ROW()),Rankings!H$2:'Rankings'!H$1000,0)) -> Christoph Brack | B163: =VLOOKUP(A163,Rankings!C:E,3,FALSE) -> 0
A164: =INDEX(Rankings!C$2:'Rankings'!C$1000,MATCH(SMALL(Rankings!H$2:'Rankings'!H$1000,ROW()),Rankings!H$2:'Rankings'!H$1000,0)) -> Christophe Legendre | B164: =VLOOKUP(A164,Rankings!C:E,3,FALSE) -> 0
A165: =INDEX(Rankings!C$2:'Rankings'!C$1000,MATCH(SMALL(Rankings!H$2:'Rankings'!H$1000,ROW()),Rankings!H$2:'Rankings'!H$1000,0)) -> Chuck Richard | B165: =VLOOKUP(A165,Rankings!C:E,3,FALSE) -> 96.4
A166: =INDEX(Rankings!C$2:'Rankings'!C$1000,MATCH(SMALL(Rankings!H$2:'Rankings'!H$1000,ROW()),Rankings!H$2:'Rankings'!H$1000,0)) -> Cindy St. Mary | B166: =VLOOKUP(A166,Rankings!C:E,3,FALSE) -> 118.75
A167: =INDEX(Rankings!C$2:'Rankings'!C$1000,MATCH(SMALL(Rankings!H$2:'Rankings'!H$1000,ROW()),Rankings!H$2:'Rankings'!H$1000,0)) -> Claudio Cigna | B167: =VLOOKUP(A167,Rankings!C:E,3,FALSE) -> 658
A168: =INDEX(Rankings!C$2:'Rankings'!C$1000,MATCH(SMALL(Rankings!H$2:'Rankings'!H$1000,ROW()),Rankings!H$2:'Rankings'!H$1000,0)) -> Claudio Marana | B168: =VLOOKUP(A168,Rankings!C:E,3,FALSE) -> 0
A169: =INDEX(Rankings!C$2:'Rankings'!C$1000,MATCH(SMALL(Rankings!H$2:'Rankings'!H$1000,ROW()),Rankings!H$2:'Rankings'!H$1000,0)) -> Claudio Massaro | B169: =VLOOKUP(A169,Rankings!C:E,3,FALSE) -> 43.15
A170: =INDEX(Rankings!C$2:'Rankings'!C$1000,MATCH(SMALL(Rankings!H$2:'Rankings'!H$1000,ROW()),Rankings!H$2:'Rankings'!H$1000,0)) -> Claudio Petro | B170: =VLOOKUP(A170,Rankings!C:E,3,FALSE) -> 0
A171: =INDEX(Rankings!C$2:'Rankings'!C$1000,MATCH(SMALL(Rankings!H$2:'Rankings'!H$1000,ROW()),Rankings!H$2:'Rankings'!H$1000,0)) -> Claudio Pietranelli | B171: =VLOOKUP(A171,Rankings!C:E,3,FALSE) -> 0
A172: =INDEX(Rankings!C$2:'Rankings'!C$1000,MATCH(SMALL(Rankings!H$2:'Rankings'!H$1000,ROW()),Rankings!H$2:'Rankings'!H$1000,0)) -> Clay Collerà | B172: =VLOOKUP(A172,Rankings!C:E,3,FALSE) -> 641.15
A173: =INDEX(Rankings!C$2:'Rankings'!C$1000,MATCH(SMALL(Rankings!H$2:'Rankings'!H$1000,ROW()),Rankings!H$2:'Rankings'!H$1000,0)) -> Cody Kirkland | B173: =VLOOKUP(A173,Rankings!C:E,3,FALSE) -> 0
A174: =INDEX(Rankings!C$2:'Rankings'!C$1000,MATCH(SMALL(Rankings!H$2:'Rankings'!H$1000,ROW()),Rankings!H$2:'Rankings'!H$1000,0)) -> Connie Bond | B174: =VLOOKUP(A174,Rankings!C:E,3,FALSE) -> 0
A175: =INDEX(Rankings!C$2:'Rankings'!C$1000,MATCH(SMALL(Rankings!H$2:'Rankings'!H$1000,ROW()),Rankings!H$2:'Rankings'!H$1000,0)) -> Conrad Damon | B175: =VLOOKUP(A175,Rankings!C:E,3,FALSE) -> 100.4
A176: =INDEX(Rankings!C$2:'Rankings'!C$1000,MATCH(SMALL(Rankings!H$2:'Rankings'!H$1000,ROW()),Rankings!H$2:'Rankings'!H$1000,0)) -> Corina Schusfer | B176: =VLOOKUP(A176,Rankings!C:E,3,FALSE) -> 0
A177: =INDEX(Rankings!C$2:'Rankings'!C$1000,MATCH(SMALL(Rankings!H$2:'Rankings'!H$1000,ROW()),Rankings!H$2:'Rankings'!H$1000,0)) -> Cosmi Palmisano | B177: =VLOOKUP(A177,Rankings!C:E,3,FALSE) -> 0
A178: =INDEX(Rankings!C$2:'Rankings'!C$1000,MATCH(SMALL(Rankings!H$2:'Rankings'!H$1000,ROW()),Rankings!H$2:'Rankings'!H$1000,0)) -> Cotter Michaels | B178: =VLOOKUP(A178,Rankings!C:E,3,FALSE) -> 0
A179: =INDEX(Rankings!C$2:'Rankings'!C$1000,MATCH(SMALL(Rankings!H$2:'Rankings'!H$1000,ROW()),Rankings!H$2:'Rankings'!H$1000,0)) -> Craig Simon | B179: =VLOOKUP(A179,Rankings!C:E,3,FALSE) -> 0
A180: =INDEX(Rankings!C$2:'Rankings'!C$1000,MATCH(SMALL(Rankings!H$2:'Rankings'!H$1000,ROW()),Rankings!H$2:'Rankings'!H$1000,0)) -> Cristina Nicolardi | B180: =VLOOKUP(A180,Rankings!C:E,3,FALSE) -> 0
A181: =INDEX(Rankings!C$2:'Rankings'!C$1000,MATCH(SMALL(Rankings!H$2:'Rankings'!H$1000,ROW()),Rankings!H$2:'Rankings'!H$1000,0)) -> Curran McCrory | B181: =VLOOKUP(A181,Rankings!C:E,3,FALSE) -> 0
A182: =INDEX(Rankings!C$2:'Rankings'!C$1000,MATCH(SMALL(Rankings!H$2:'Rankings'!H$1000,ROW()),Rankings!H$2:'Rankings'!H$1000,0)) -> Daisuke Kuroda | B182: =VLOOKUP(A182,Rankings!C:E,3,FALSE) -> 50
A183: =INDEX(Rankings!C$2:'Rankings'!C$1000,MATCH(SMALL(Rankings!H$2:'Rankings'!H$1000,ROW()),Rankings!H$2:'Rankings'!H$1000,0)) -> Daisuke Shinkai | B183: =VLOOKUP(A183,Rankings!C:E,3,FALSE) -> 0
A184: =INDEX(Rankings!C$2:'Rankings'!C$1000,MATCH(SMALL(Rankings!H$2:'Rankings'!H$1000,ROW()),Rankings!H$2:'Rankings'!H$1000,0)) -> Dale Crawford | B184: =VLOOKUP(A184,Rankings!C:E,3,FALSE) -> 0
A185: =INDEX(Rankings!C$2:'Rankings'!C$1000,MATCH(SMALL(Rankings!H$2:'Rankings'!H$1000,ROW()),Rankings!H$2:'Rankings'!H$1000,0)) -> Dan Berman | B185: =VLOOKUP(A185,Rankings!C:E,3,FALSE) -> 0
A186: =INDEX(Rankings!C$2:'Rankings'!C$1000,MATCH(SMALL(Rankings!H$2:'Rankings'!H$1000,ROW()),Rankings!H$2:'Rankings'!H$1000,0)) -> Dan Burke | B186: =VLOOKUP(A186,Rankings!C:E,3,FALSE) -> 35.4
A187: =INDEX(Rankings!C$2:'Rankings'!C$1000,MATCH(SMALL(Rankings!H$2:'Rankings'!H$1000,ROW()),Rankings!H$2:'Rankings'!H$1000,0)) -> Dan Exelby | B187: =VLOOKUP(A187,Rankings!C:E,3,FALSE) -> 0
A188: =INDEX(Rankings!C$2:'Rankings'!C$1000,MATCH(SMALL(Rankings!H$2:'Rankings'!H$1000,ROW()),Rankings!H$2:'Rankings'!H$1000,0)) -> Dan Lustiger | B188: =VLOOKUP(A188,Rankings!C:E,3,FALSE) -> 186
A189: =INDEX(Rankings!C$2:'Rankings'!C$1000,MATCH(SMALL(Rankings!H$2:'Rankings'!H$1000,ROW()),Rankings!H$2:'Rankings'!H$1000,0)) -> Dan Magallanes | B189: =VLOOKUP(A189,Rankings!C:E,3,FALSE) -> 0
A190: =INDEX(Rankings!C$2:'Rankings'!C$1000,MATCH(SMALL(Rankings!H$2:'Rankings'!H$1000,ROW()),Rankings!H$2:'Rankings'!H$1000,0)) -> Dan Roddick | B190: =VLOOKUP(A190,Rankings!C:E,3,FALSE) -> 11.63
A191: =INDEX(Rankings!C$2:'Rankings'!C$1000,MATCH(SMALL(Rankings!H$2:'Rankings'!H$1000,ROW()),Rankings!H$2:'Rankings'!H$1000,0)) -> Dan Schmitt | B191: =VLOOKUP(A191,Rankings!C:E,3,FALSE) -> 28.7
A192: =INDEX(Rankings!C$2:'Rankings'!C$1000,MATCH(SMALL(Rankings!H$2:'Rankings'!H$1000,ROW()),Rankings!H$2:'Rankings'!H$1000,0)) -> Dan Yarnell | B192: =VLOOKUP(A192,Rankings!C:E,3,FALSE) -> 94.25
A193: =INDEX(Rankings!C$2:'Rankings'!C$1000,MATCH(SMALL(Rankings!H$2:'Rankings'!H$1000,ROW()),Rankings!H$2:'Rankings'!H$1000,0)) -> Daniel Hernandez | B193: =VLOOKUP(A193,Rankings!C:E,3,FALSE) -> 0
A194: =INDEX(Rankings!C$2:'Rankings'!C$1000,MATCH(SMALL(Rankings!H$2:'Rankings'!H$1000,ROW()),Rankings!H$2:'Rankings'!H$1000,0)) -> Daniel Nothaas | B194: =VLOOKUP(A194,Rankings!C:E,3,FALSE) -> 165
A195: =INDEX(Rankings!C$2:'Rankings'!C$1000,MATCH(SMALL(Rankings!H$2:'Rankings'!H$1000,ROW()),Rankings!H$2:'Rankings'!H$1000,0)) -> Daniel O'Neill | B195: =VLOOKUP(A195,Rankings!C:E,3,FALSE) -> 849.25
A196: =INDEX(Rankings!C$2:'Rankings'!C$1000,MATCH(SMALL(Rankings!H$2:'Rankings'!H$1000,ROW()),Rankings!H$2:'Rankings'!H$1000,0)) -> Daniel Reichert | B196: =VLOOKUP(A196,Rankings!C:E,3,FALSE) -> 0
A197: =INDEX(Rankings!C$2:'Rankings'!C$1000,MATCH(SMALL(Rankings!H$2:'Rankings'!H$1000,ROW()),Rankings!H$2:'Rankings'!H$1000,0)) -> Daniel Weinbuch | B197: =VLOOKUP(A197,Rankings!C:E,3,FALSE) -> 399.075
A198: =INDEX(Rankings!C$2:'Rankings'!C$1000,MATCH(SMALL(Rankings!H$2:'Rankings'!H$1000,ROW()),Rankings!H$2:'Rankings'!H$1000,0)) -> Daniele Bertolini | B198: =VLOOKUP(A198,Rankings!C:E,3,FALSE) -> 44.58
A199: =INDEX(Rankings!C$2:'Rankings'!C$1000,MATCH(SMALL(Rankings!H$2:'Rankings'!H$1000,ROW()),Rankings!H$2:'Rankings'!H$1000,0)) -> Daniele Circensi | B199: =VLOOKUP(A199,Rankings!C:E,3,FALSE) -> 52
A200: =INDEX(Rankings!C$2:'Rankings'!C$1000,MATCH(SMALL(Rankings!H$2:'Rankings'!H$1000,ROW()),Rankings!H$2:'Rankings'!H$1000,0)) -> Daniele Malaguzzi | B200: =VLOOKUP(A200,Rankings!C:E,3,FALSE) -> 0
... 799 more rows

Sheet Variety Checklist (hidden)
A1: =Settings!B3 -> DM 2017
A2: =Settings!B4 -> Deutsche Freestyle Frisbee Meisterschaften | B2: Team 1 | C2: Team 2 | D2: Team 3 | E2: Team 4 | F2: Team 5 | G2: Team 6 | H2: Team 7 | I2: Team 8 | J2: Team 9 | K2: Team 10 | M2: Judge: _______________________
A4: Throws (0-2 points) | M4: Guideline for points:
A6: Back hand | M6: 0=very little variety
A7: Fore hand | M7: 0.5=little variety
A8: Over hand | M8: 1=medium variety
A9: Under hand | M9: 1.5=high variety
A10: Helicopter | M10: 2=very high
A11: Staker
A12: Air bounce
A13: Macs, Subs
A14: Upside down
A15: others________________________________
A17: Catches (0-2 points) | M17: Guideline for points:
A19: Gitis, Flamingitis, Gitosis | M19: 0=very little variety
A20: Flamingo, Flamingosis | M20: 0.5=little variety
A21: Behind the back/head | M21: 1=medium variety
A22: Triple fake (behind the head) | M22: 1.5=high variety
A23: Phlaud, Chair | M23: 2=very high
A24: Under the leg (different versions)
A25: Bad attitude, Olivia, Oliver
A26: Scare crow, Dragon
A27: Lacer, Indigenous, Extraneous
A28: Figure 4, Monster
A29: Flying catches (e.g. roots, gitis roll)
A30: Acrobatic catches (e.g. handstand, cartwheel)
A31: Catches with extended/condensed bodypositions
A32: others________________________________
A34: Disc handling (0-2 points) | M34: Guideline for points:
A36: control moves | M36: 0=very little variety
A37: brushing | M37: 0.5=little variety
A38: turnovers | M38: 1=medium variety
A39: kicks | M39: 1.5=high variety
A40: tipping | M40: 2=very high
A41: against the spin
A42: angle adjustments
A43: guides
A44: deflections
A45: upside down
A46: rolls
A47: cuffs
A48: others________________________________
A50: Styles of play (0-2 points) | M50: Guideline for points:
A52: Parallel exercises | M52: 0=using just one hand
A53: Multiple disc | M53: 0.5=little use of second hand
A54: Speed flow | M54: 1=medium use of second hand
A55: Juggling | M55: 1.5=high use of second hand
A56: Twirling | M56: 2=using both hands equally often
A57: Padiddling
A58: Complex body movements
A59: others________________________________
A61: Both Spins/Hand playing (0-2 points) | M61: Guideline for points:
A63: Playing both spins (no, little, medium, much, fully) | M63: 0=using just one spin/hand
M64: 0.5=little use of second spin/hand
M65: 1=medium use of second spin/hand
M66: 1.5=high use of second spin/hand
A67: Total Variety Points | M67: 2=use both spins/hands equally often

Sheet Point Scale (hidden)
A1: Place | B1: Regular (100%) | C1: Regular (80%) | D1: Regular (65%) | E1: Regular (50%) | F1: Pro (120%) | G1: FPAW (160%)
B2: 20+ | C2: 15-19 | D2: 10-14 | E2: 4-9
A3: 1. | B3: 125 | C3: 100 | D3: 81.25 | E3: 62.5 | F3: 150 | G3: 200
A4: 2. | B4: 100 | C4: 80 | D4: 65 | E4: 50 | F4: 120 | G4: 160
A5: 3. | B5: 80 | C5: 64 | D5: 52 | E5: 40 | F5: 96 | G5: 128
A6: 4. | B6: 70 | C6: 56 | D6: 45.5 | E6: 35 | F6: 84 | G6: 112
A7: 5. | B7: 60 | C7: 48 | D7: 39 | E7: 30 | F7: 72 | G7: 96
A8: 6. | B8: 50 | C8: 40 | D8: 32.5 | E8: 25 | F8: 60 | G8: 80
A9: 7. | B9: 45 | C9: 36 | D9: 29.25 | E9: 22.5 | F9: 54 | G9: 72
A10: 8. | B10: 40 | C10: 32 | D10: 26 | E10: 20 | F10: 48 | G10: 64
A11: 9. | B11: 35 | C11: 28 | D11: 22.75 | E11: 17.5 | F11: 42 | G11: 56
A12: 10. | B12: 30 | C12: 24 | D12: 19.5 | F12: 36 | G12: 48
A13: 11. | B13: 26 | C13: 20.8 | D13: 16.9 | F13: 31.2 | G13: 41.6
A14: 12. | B14: 22 | C14: 17.6 | D14: 14.3 | F14: 26.4 | G14: 35.2
A15: 13. | B15: 20 | C15: 16 | D15: 13 | F15: 24 | G15: 32
A16: 14. | B16: 18 | C16: 14.4 | D16: 11.7 | F16: 21.6 | G16: 28.8
A17: 15. | B17: 16 | C17: 12.8 | F17: 19.2 | G17: 25.6
A18: 16. | B18: 14 | C18: 11.2 | F18: 16.8 | G18: 22.4
A19: 17. | B19: 13 | C19: 10.4 | F19: 15.6 | G19: 20.8
A20: 18. | B20: 12 | C20: 9.6 | F20: 14.4 | G20: 19.2
A21: 19. | B21: 11 | C21: 8.8 | F21: 13.2 | G21: 17.6
A22: 20. | B22: 10.5 | F22: 12.6 | G22: 16.8
A23: 21. | B23: 10 | F23: 12 | G23: 16
A24: 22. | B24: 9.5 | F24: 11.4 | G24: 15.2
A25: 23. | B25: 9 | F25: 10.8 | G25: 14.4
A26: 24. | B26: 8.5 | F26: 10.2 | G26: 13.6
A27: 25. | B27: 8 | F27: 9.6 | G27: 12.8
A28: 26. | B28: 7.75 | F28: 9.3 | G28: 12.4
A29: 27. | B29: 7.5 | F29: 9 | G29: 12
A30: 28. | B30: 7.25 | F30: 8.7 | G30: 11.6
A31: 29. | B31: 7 | F31: 8.4 | G31: 11.2
A32: 30. | B32: 6.75 | F32: 8.1 | G32: 10.8
A33: 31. | B33: 6.5 | F33: 7.8 | G33: 10.4
A34: 32. | B34: 6.25 | F34: 7.5 | G34: 10
A35: 33. | B35: 6 | F35: 7.2 | G35: 9.6
A36: 34. | B36: 5.75 | F36: 6.9 | G36: 9.2
A37: 35. | B37: 5.5 | F37: 6.6 | G37: 8.8
A38: 36. | B38: 5.25 | F38: 6.3 | G38: 8.4
A39: 37. | B39: 5 | F39: 6 | G39: 8
A40: 38. | B40: 4.75 | F40: 5.7 | G40: 7.6
A41: 39. | B41: 4.5 | F41: 5.4 | G41: 7.2
A42: 40. | B42: 4.25 | F42: 5.1 | G42: 6.8
A43: 41. | B43: 4 | F43: 4.8 | G43: 6.4
A44: 42. | B44: 3.75 | F44: 4.5 | G44: 6
A45: 43. | B45: 3.5 | F45: 4.2 | G45: 5.6
A46: 44. | B46: 3.25 | F46: 3.9 | G46: 5.2
A47: 45. | B47: 3 | F47: 3.6 | G47: 4.8
A48: 46. | B48: 2.75 | F48: 3.3 | G48: 4.4
A49: 47. | B49: 2.5 | F49: 3 | G49: 4
A50: 48. | B50: 2.25 | F50: 2.7 | G50: 3.6
A51: 49. | B51: 2 | F51: 2.4 | G51: 3.2
A52: 50. | B52: 1.9 | F52: 2.28 | G52: 3.04
A53: 51. | B53: 1.8 | F53: 2.16 | G53: 2.88
A54: 52. | B54: 1.7 | F54: 2.04 | G54: 2.72
A55: 53. | B55: 1.6 | F55: 1.92 | G55: 2.56
A56: 54. | B56: 1.5 | F56: 1.8 | G56: 2.4
A57: 55. | B57: 1.4 | F57: 1.68 | G57: 2.24
A58: 56. | B58: 1.3 | F58: 1.56 | G58: 2.08
A59: 57. | B59: 1.2 | F59: 1.44 | G59: 1.92
A60: 58. | B60: 1.1 | F60: 1.32 | G60: 1.76
A61: 59. | B61: 1 | F61: 1.2 | G61: 1.6
A62: 60. | B62: 0.925 | F62: 1.11 | G62: 1.48
A63: 61. | B63: 0.85 | F63: 1.02 | G63: 1.36
A64: 62. | B64: 0.775 | F64: 0.93 | G64: 1.24
A65: 63. | B65: 0.7 | F65: 0.84 | G65: 1.12
A66: 64. | B66: 0.625 | F66: 0.75 | G66: 1

Sheet Teams (hidden)
A1: # | B1: Player 1 | C1: Player 2 | D1: Player 3 | E1: Ranking Points
A2: 1 | B2: =Starterlist!B13 -> 0 | C2: =Starterlist!C13 -> 0 | D2: =Starterlist!D13 -> 0 | E2: =SUM((VLOOKUP(B2, Rankings!C:E,3,FALSE)),(VLOOKUP(C2, Rankings!C:E,3,FALSE)),(VLOOKUP(D2, Rankings!C:E,3,FALSE))) -> 
A3: 2 | E3: =SUM((VLOOKUP(B3, Rankings!C:E,3,FALSE)),(VLOOKUP(C3, Rankings!C:E,3,FALSE)),(VLOOKUP(D3, Rankings!C:E,3,FALSE))) -> 
A4: 3 | E4: =SUM((VLOOKUP(B4, Rankings!C:E,3,FALSE)),(VLOOKUP(C4, Rankings!C:E,3,FALSE)),(VLOOKUP(D4, Rankings!C:E,3,FALSE))) -> 
A5: 4 | E5: =SUM((VLOOKUP(B5, Rankings!C:E,3,FALSE)),(VLOOKUP(C5, Rankings!C:E,3,FALSE)),(VLOOKUP(D5, Rankings!C:E,3,FALSE))) -> 
A6: 5 | E6: =SUM((VLOOKUP(B6, Rankings!C:E,3,FALSE)),(VLOOKUP(C6, Rankings!C:E,3,FALSE)),(VLOOKUP(D6, Rankings!C:E,3,FALSE))) -> 
A7: 6 | E7: =SUM((VLOOKUP(B7, Rankings!C:E,3,FALSE)),(VLOOKUP(C7, Rankings!C:E,3,FALSE)),(VLOOKUP(D7, Rankings!C:E,3,FALSE))) -> 
A8: 7 | E8: =SUM((VLOOKUP(B8, Rankings!C:E,3,FALSE)),(VLOOKUP(C8, Rankings!C:E,3,FALSE)),(VLOOKUP(D8, Rankings!C:E,3,FALSE))) -> 
A9: 8 | E9: =SUM((VLOOKUP(B9, Rankings!C:E,3,FALSE)),(VLOOKUP(C9, Rankings!C:E,3,FALSE)),(VLOOKUP(D9, Rankings!C:E,3,FALSE))) -> 
A10: 9 | E10: =SUM((VLOOKUP(B10, Rankings!C:E,3,FALSE)),(VLOOKUP(C10, Rankings!C:E,3,FALSE)),(VLOOKUP(D10, Rankings!C:E,3,FALSE))) -> 
A11: 10 | E11: =SUM((VLOOKUP(B11, Rankings!C:E,3,FALSE)),(VLOOKUP(C11, Rankings!C:E,3,FALSE)),(VLOOKUP(D11, Rankings!C:E,3,FALSE))) -> 
B12: =Competitors!#REF! ->  | C12: =Competitors!#REF! ->  | D12: =Competitors!#REF! ->  | E12: =SUM((VLOOKUP(B12, Rankings!C:E,3,FALSE)),(VLOOKUP(C12, Rankings!C:E,3,FALSE)),(VLOOKUP(D12, Rankings!C:E,3,FALSE))) -> 
B13: =Competitors!#REF! ->  | C13: =Competitors!#REF! ->  | D13: =Competitors!#REF! ->  | E13: =SUM((VLOOKUP(B13, Rankings!C:E,3,FALSE)),(VLOOKUP(C13, Rankings!C:E,3,FALSE)),(VLOOKUP(D13, Rankings!C:E,3,FALSE))) -> 
B14: =Competitors!#REF! ->  | C14: =Competitors!#REF! ->  | D14: =Competitors!#REF! ->  | E14: =SUM((VLOOKUP(B14, Rankings!C:E,3,FALSE)),(VLOOKUP(C14, Rankings!C:E,3,FALSE)),(VLOOKUP(D14, Rankings!C:E,3,FALSE))) -> 
B15: =Competitors!#REF! ->  | C15: =Competitors!#REF! ->  | D15: =Competitors!#REF! ->  | E15: =SUM((VLOOKUP(B15, Rankings!C:E,3,FALSE)),(VLOOKUP(C15, Rankings!C:E,3,FALSE)),(VLOOKUP(D15, Rankings!C:E,3,FALSE))) -> 
B16: =Competitors!#REF! ->  | C16: =Competitors!#REF! ->  | D16: =Competitors!#REF! ->  | E16: =SUM((VLOOKUP(B16, Rankings!C:E,3,FALSE)),(VLOOKUP(C16, Rankings!C:E,3,FALSE)),(VLOOKUP(D16, Rankings!C:E,3,FALSE))) -> 
B17: =Competitors!#REF! ->  | C17: =Competitors!#REF! ->  | D17: =Competitors!#REF! ->  | E17: =SUM((VLOOKUP(B17, Rankings!C:E,3,FALSE)),(VLOOKUP(C17, Rankings!C:E,3,FALSE)),(VLOOKUP(D17, Rankings!C:E,3,FALSE))) -> 
B18: =Competitors!#REF! ->  | C18: =Competitors!#REF! ->  | D18: =Competitors!#REF! ->  | E18: =SUM((VLOOKUP(B18, Rankings!C:E,3,FALSE)),(VLOOKUP(C18, Rankings!C:E,3,FALSE)),(VLOOKUP(D18, Rankings!C:E,3,FALSE))) -> 
B19: =Competitors!#REF! ->  | C19: =Competitors!#REF! ->  | D19: =Competitors!#REF! ->  | E19: =SUM((VLOOKUP(B19, Rankings!C:E,3,FALSE)),(VLOOKUP(C19, Rankings!C:E,3,FALSE)),(VLOOKUP(D19, Rankings!C:E,3,FALSE))) -> 
B20: =Competitors!#REF! ->  | C20: =Competitors!#REF! ->  | D20: =Competitors!#REF! ->  | E20: =SUM((VLOOKUP(B20, Rankings!C:E,3,FALSE)),(VLOOKUP(C20, Rankings!C:E,3,FALSE)),(VLOOKUP(D20, Rankings!C:E,3,FALSE))) -> 
B21: =Competitors!A1 -> (John - Amsterjam 2006) | C21: =Competitors!A1 -> (John - Amsterjam 2006) | D21: =Competitors!A1 -> (John - Amsterjam 2006) | E21: =SUM((VLOOKUP(B21, Rankings!C:E,3,FALSE)),(VLOOKUP(C21, Rankings!C:E,3,FALSE)),(VLOOKUP(D21, Rankings!C:E,3,FALSE))) -> 0
B22: =Competitors!A5 -> Adrian Baer | C22: =Competitors!A5 -> Adrian Baer | D22: =Competitors!A5 -> Adrian Baer | E22: =SUM((VLOOKUP(B22, Rankings!C:E,3,FALSE)),(VLOOKUP(C22, Rankings!C:E,3,FALSE)),(VLOOKUP(D22, Rankings!C:E,3,FALSE))) -> 0
B23: =Competitors!A6 -> Adrian Röder | C23: =Competitors!A6 -> Adrian Röder | D23: =Competitors!A6 -> Adrian Röder | E23: =SUM((VLOOKUP(B23, Rankings!C:E,3,FALSE)),(VLOOKUP(C23, Rankings!C:E,3,FALSE)),(VLOOKUP(D23, Rankings!C:E,3,FALSE))) -> 123.15
B24: =Competitors!A7 -> Adrian Wainwright | C24: =Competitors!A7 -> Adrian Wainwright | D24: =Competitors!A7 -> Adrian Wainwright | E24: =SUM((VLOOKUP(B24, Rankings!C:E,3,FALSE)),(VLOOKUP(C24, Rankings!C:E,3,FALSE)),(VLOOKUP(D24, Rankings!C:E,3,FALSE))) -> 0
B25: =Competitors!A8 -> Adrian Zeitner | C25: =Competitors!A8 -> Adrian Zeitner | D25: =Competitors!A8 -> Adrian Zeitner | E25: =SUM((VLOOKUP(B25, Rankings!C:E,3,FALSE)),(VLOOKUP(C25, Rankings!C:E,3,FALSE)),(VLOOKUP(D25, Rankings!C:E,3,FALSE))) -> 0
B26: =Competitors!A9 -> Aiden Slaska | C26: =Competitors!A9 -> Aiden Slaska | D26: =Competitors!A9 -> Aiden Slaska | E26: =SUM((VLOOKUP(B26, Rankings!C:E,3,FALSE)),(VLOOKUP(C26, Rankings!C:E,3,FALSE)),(VLOOKUP(D26, Rankings!C:E,3,FALSE))) -> 96
B27: =Competitors!A10 -> Akihito Goto | C27: =Competitors!A10 -> Akihito Goto | D27: =Competitors!A10 -> Akihito Goto | E27: =SUM((VLOOKUP(B27, Rankings!C:E,3,FALSE)),(VLOOKUP(C27, Rankings!C:E,3,FALSE)),(VLOOKUP(D27, Rankings!C:E,3,FALSE))) -> 0
B28: =Competitors!A11 -> Akito Ueda | C28: =Competitors!A11 -> Akito Ueda | D28: =Competitors!A11 -> Akito Ueda | E28: =SUM((VLOOKUP(B28, Rankings!C:E,3,FALSE)),(VLOOKUP(C28, Rankings!C:E,3,FALSE)),(VLOOKUP(D28, Rankings!C:E,3,FALSE))) -> 0
B29: =Competitors!A12 -> Alan Caplin | C29: =Competitors!A12 -> Alan Caplin | D29: =Competitors!A12 -> Alan Caplin | E29: =SUM((VLOOKUP(B29, Rankings!C:E,3,FALSE)),(VLOOKUP(C29, Rankings!C:E,3,FALSE)),(VLOOKUP(D29, Rankings!C:E,3,FALSE))) -> 121.2
B30: =Competitors!A13 -> Alan Martinez | C30: =Competitors!A13 -> Alan Martinez | D30: =Competitors!A13 -> Alan Martinez | E30: =SUM((VLOOKUP(B30, Rankings!C:E,3,FALSE)),(VLOOKUP(C30, Rankings!C:E,3,FALSE)),(VLOOKUP(D30, Rankings!C:E,3,FALSE))) -> 0
B31: =Competitors!A14 -> Alberto Baldelli | C31: =Competitors!A14 -> Alberto Baldelli | D31: =Competitors!A14 -> Alberto Baldelli | E31: =SUM((VLOOKUP(B31, Rankings!C:E,3,FALSE)),(VLOOKUP(C31, Rankings!C:E,3,FALSE)),(VLOOKUP(D31, Rankings!C:E,3,FALSE))) -> 0
B32: =Competitors!A15 -> Albin Lindblad | C32: =Competitors!A15 -> Albin Lindblad | D32: =Competitors!A15 -> Albin Lindblad | E32: =SUM((VLOOKUP(B32, Rankings!C:E,3,FALSE)),(VLOOKUP(C32, Rankings!C:E,3,FALSE)),(VLOOKUP(D32, Rankings!C:E,3,FALSE))) -> 111
B33: =Competitors!A16 -> Alejandra Estrada | C33: =Competitors!A16 -> Alejandra Estrada | D33: =Competitors!A16 -> Alejandra Estrada | E33: =SUM((VLOOKUP(B33, Rankings!C:E,3,FALSE)),(VLOOKUP(C33, Rankings!C:E,3,FALSE)),(VLOOKUP(D33, Rankings!C:E,3,FALSE))) -> 0
B34: =Competitors!A17 -> Alena Vojtekova | C34: =Competitors!A17 -> Alena Vojtekova | D34: =Competitors!A17 -> Alena Vojtekova | E34: =SUM((VLOOKUP(B34, Rankings!C:E,3,FALSE)),(VLOOKUP(C34, Rankings!C:E,3,FALSE)),(VLOOKUP(D34, Rankings!C:E,3,FALSE))) -> 0
B35: =Competitors!A18 -> Alena Zemanova | C35: =Competitors!A18 -> Alena Zemanova | D35: =Competitors!A18 -> Alena Zemanova | E35: =SUM((VLOOKUP(B35, Rankings!C:E,3,FALSE)),(VLOOKUP(C35, Rankings!C:E,3,FALSE)),(VLOOKUP(D35, Rankings!C:E,3,FALSE))) -> 0
B36: =Competitors!A19 -> Alessandro Berra | C36: =Competitors!A19 -> Alessandro Berra | D36: =Competitors!A19 -> Alessandro Berra | E36: =SUM((VLOOKUP(B36, Rankings!C:E,3,FALSE)),(VLOOKUP(C36, Rankings!C:E,3,FALSE)),(VLOOKUP(D36, Rankings!C:E,3,FALSE))) -> 0
B37: =Competitors!A20 -> Alessandro Collerà | C37: =Competitors!A20 -> Alessandro Collerà | D37: =Competitors!A20 -> Alessandro Collerà | E37: =SUM((VLOOKUP(B37, Rankings!C:E,3,FALSE)),(VLOOKUP(C37, Rankings!C:E,3,FALSE)),(VLOOKUP(D37, Rankings!C:E,3,FALSE))) -> 0
B38: =Competitors!A21 -> Alessandro Damiano | C38: =Competitors!A21 -> Alessandro Damiano | D38: =Competitors!A21 -> Alessandro Damiano | E38: =SUM((VLOOKUP(B38, Rankings!C:E,3,FALSE)),(VLOOKUP(C38, Rankings!C:E,3,FALSE)),(VLOOKUP(D38, Rankings!C:E,3,FALSE))) -> 583.5
B39: =Competitors!A22 -> Alessandro Fogazzi | C39: =Competitors!A22 -> Alessandro Fogazzi | D39: =Competitors!A22 -> Alessandro Fogazzi | E39: =SUM((VLOOKUP(B39, Rankings!C:E,3,FALSE)),(VLOOKUP(C39, Rankings!C:E,3,FALSE)),(VLOOKUP(D39, Rankings!C:E,3,FALSE))) -> 0
B40: =Competitors!A23 -> Alessandro Provitali | C40: =Competitors!A23 -> Alessandro Provitali | D40: =Competitors!A23 -> Alessandro Provitali | E40: =SUM((VLOOKUP(B40, Rankings!C:E,3,FALSE)),(VLOOKUP(C40, Rankings!C:E,3,FALSE)),(VLOOKUP(D40, Rankings!C:E,3,FALSE))) -> 0
B41: =Competitors!A24 -> Alessandro Vinciguerra | C41: =Competitors!A24 -> Alessandro Vinciguerra | D41: =Competitors!A24 -> Alessandro Vinciguerra | E41: =SUM((VLOOKUP(B41, Rankings!C:E,3,FALSE)),(VLOOKUP(C41, Rankings!C:E,3,FALSE)),(VLOOKUP(D41, Rankings!C:E,3,FALSE))) -> 0
B42: =Competitors!A25 -> Alex Alexandrov | C42: =Competitors!A25 -> Alex Alexandrov | D42: =Competitors!A25 -> Alex Alexandrov | E42: =SUM((VLOOKUP(B42, Rankings!C:E,3,FALSE)),(VLOOKUP(C42, Rankings!C:E,3,FALSE)),(VLOOKUP(D42, Rankings!C:E,3,FALSE))) -> 0
B43: =Competitors!A26 -> Alex Humphreys | C43: =Competitors!A26 -> Alex Humphreys | D43: =Competitors!A26 -> Alex Humphreys | E43: =SUM((VLOOKUP(B43, Rankings!C:E,3,FALSE)),(VLOOKUP(C43, Rankings!C:E,3,FALSE)),(VLOOKUP(D43, Rankings!C:E,3,FALSE))) -> 0
B44: =Competitors!A27 -> Alex Leist | C44: =Competitors!A27 -> Alex Leist | D44: =Competitors!A27 -> Alex Leist | E44: =SUM((VLOOKUP(B44, Rankings!C:E,3,FALSE)),(VLOOKUP(C44, Rankings!C:E,3,FALSE)),(VLOOKUP(D44, Rankings!C:E,3,FALSE))) -> 4977.75
B45: =Competitors!A28 -> Alexander Enhuber | C45: =Competitors!A28 -> Alexander Enhuber | D45: =Competitors!A28 -> Alexander Enhuber | E45: =SUM((VLOOKUP(B45, Rankings!C:E,3,FALSE)),(VLOOKUP(C45, Rankings!C:E,3,FALSE)),(VLOOKUP(D45, Rankings!C:E,3,FALSE))) -> 330
B46: =Competitors!A29 -> Alexander Michnewitsch | C46: =Competitors!A29 -> Alexander Michnewitsch | D46: =Competitors!A29 -> Alexander Michnewitsch | E46: =SUM((VLOOKUP(B46, Rankings!C:E,3,FALSE)),(VLOOKUP(C46, Rankings!C:E,3,FALSE)),(VLOOKUP(D46, Rankings!C:E,3,FALSE))) -> 0
B47: =Competitors!A30 -> Alexander Trenner | C47: =Competitors!A30 -> Alexander Trenner | D47: =Competitors!A30 -> Alexander Trenner | E47: =SUM((VLOOKUP(B47, Rankings!C:E,3,FALSE)),(VLOOKUP(C47, Rankings!C:E,3,FALSE)),(VLOOKUP(D47, Rankings!C:E,3,FALSE))) -> 0
B48: =Competitors!A31 -> Alfonso Lopez Velez | C48: =Competitors!A31 -> Alfonso Lopez Velez | D48: =Competitors!A31 -> Alfonso Lopez Velez | E48: =SUM((VLOOKUP(B48, Rankings!C:E,3,FALSE)),(VLOOKUP(C48, Rankings!C:E,3,FALSE)),(VLOOKUP(D48, Rankings!C:E,3,FALSE))) -> 184.5
B49: =Competitors!A32 -> Ali Dastrandj | C49: =Competitors!A32 -> Ali Dastrandj | D49: =Competitors!A32 -> Ali Dastrandj | E49: =SUM((VLOOKUP(B49, Rankings!C:E,3,FALSE)),(VLOOKUP(C49, Rankings!C:E,3,FALSE)),(VLOOKUP(D49, Rankings!C:E,3,FALSE))) -> 0
B50: =Competitors!A33 -> Alice Tommazzini | C50: =Competitors!A33 -> Alice Tommazzini | D50: =Competitors!A33 -> Alice Tommazzini | E50: =SUM((VLOOKUP(B50, Rankings!C:E,3,FALSE)),(VLOOKUP(C50, Rankings!C:E,3,FALSE)),(VLOOKUP(D50, Rankings!C:E,3,FALSE))) -> 60
B51: =Competitors!A34 -> Allan Clark | C51: =Competitors!A34 -> Allan Clark | D51: =Competitors!A34 -> Allan Clark | E51: =SUM((VLOOKUP(B51, Rankings!C:E,3,FALSE)),(VLOOKUP(C51, Rankings!C:E,3,FALSE)),(VLOOKUP(D51, Rankings!C:E,3,FALSE))) -> 241.5
B52: =Competitors!A35 -> Amy Campbell | C52: =Competitors!A35 -> Amy Campbell | D52: =Competitors!A35 -> Amy Campbell | E52: =SUM((VLOOKUP(B52, Rankings!C:E,3,FALSE)),(VLOOKUP(C52, Rankings!C:E,3,FALSE)),(VLOOKUP(D52, Rankings!C:E,3,FALSE))) -> 0
B53: =Competitors!A36 -> Amy Schiller | C53: =Competitors!A36 -> Amy Schiller | D53: =Competitors!A36 -> Amy Schiller | E53: =SUM((VLOOKUP(B53, Rankings!C:E,3,FALSE)),(VLOOKUP(C53, Rankings!C:E,3,FALSE)),(VLOOKUP(D53, Rankings!C:E,3,FALSE))) -> 1453.5
B54: =Competitors!A37 -> Anders Johnsson | C54: =Competitors!A37 -> Anders Johnsson | D54: =Competitors!A37 -> Anders Johnsson | E54: =SUM((VLOOKUP(B54, Rankings!C:E,3,FALSE)),(VLOOKUP(C54, Rankings!C:E,3,FALSE)),(VLOOKUP(D54, Rankings!C:E,3,FALSE))) -> 0
B55: =Competitors!A38 -> André Hillman | C55: =Competitors!A38 -> André Hillman | D55: =Competitors!A38 -> André Hillman | E55: =SUM((VLOOKUP(B55, Rankings!C:E,3,FALSE)),(VLOOKUP(C55, Rankings!C:E,3,FALSE)),(VLOOKUP(D55, Rankings!C:E,3,FALSE))) -> 0
B56: =Competitors!A39 -> Andre Zaharias | C56: =Competitors!A39 -> Andre Zaharias | D56: =Competitors!A39 -> Andre Zaharias | E56: =SUM((VLOOKUP(B56, Rankings!C:E,3,FALSE)),(VLOOKUP(C56, Rankings!C:E,3,FALSE)),(VLOOKUP(D56, Rankings!C:E,3,FALSE))) -> 387
B57: =Competitors!A40 -> Andrea "Oddi" Furlan | C57: =Competitors!A40 -> Andrea "Oddi" Furlan | D57: =Competitors!A40 -> Andrea "Oddi" Furlan | E57: =SUM((VLOOKUP(B57, Rankings!C:E,3,FALSE)),(VLOOKUP(C57, Rankings!C:E,3,FALSE)),(VLOOKUP(D57, Rankings!C:E,3,FALSE))) -> 0
B58: =Competitors!A41 -> Andrea Arfilli | C58: =Competitors!A41 -> Andrea Arfilli | D58: =Competitors!A41 -> Andrea Arfilli | E58: =SUM((VLOOKUP(B58, Rankings!C:E,3,FALSE)),(VLOOKUP(C58, Rankings!C:E,3,FALSE)),(VLOOKUP(D58, Rankings!C:E,3,FALSE))) -> 0
B59: =Competitors!A42 -> Andrea Corizzo | C59: =Competitors!A42 -> Andrea Corizzo | D59: =Competitors!A42 -> Andrea Corizzo | E59: =SUM((VLOOKUP(B59, Rankings!C:E,3,FALSE)),(VLOOKUP(C59, Rankings!C:E,3,FALSE)),(VLOOKUP(D59, Rankings!C:E,3,FALSE))) -> 0
B60: =Competitors!A43 -> Andrea Dini | C60: =Competitors!A43 -> Andrea Dini | D60: =Competitors!A43 -> Andrea Dini | E60: =SUM((VLOOKUP(B60, Rankings!C:E,3,FALSE)),(VLOOKUP(C60, Rankings!C:E,3,FALSE)),(VLOOKUP(D60, Rankings!C:E,3,FALSE))) -> 0
B61: =Competitors!A44 -> Andrea Festi | C61: =Competitors!A44 -> Andrea Festi | D61: =Competitors!A44 -> Andrea Festi | E61: =SUM((VLOOKUP(B61, Rankings!C:E,3,FALSE)),(VLOOKUP(C61, Rankings!C:E,3,FALSE)),(VLOOKUP(D61, Rankings!C:E,3,FALSE))) -> 160.5
B62: =Competitors!A45 -> Andrea Gallotti | C62: =Competitors!A45 -> Andrea Gallotti | D62: =Competitors!A45 -> Andrea Gallotti | E62: =SUM((VLOOKUP(B62, Rankings!C:E,3,FALSE)),(VLOOKUP(C62, Rankings!C:E,3,FALSE)),(VLOOKUP(D62, Rankings!C:E,3,FALSE))) -> 0
B63: =Competitors!A46 -> Andrea Girodo | C63: =Competitors!A46 -> Andrea Girodo | D63: =Competitors!A46 -> Andrea Girodo | E63: =SUM((VLOOKUP(B63, Rankings!C:E,3,FALSE)),(VLOOKUP(C63, Rankings!C:E,3,FALSE)),(VLOOKUP(D63, Rankings!C:E,3,FALSE))) -> 0
B64: =Competitors!A47 -> Andrea Izzo | C64: =Competitors!A47 -> Andrea Izzo | D64: =Competitors!A47 -> Andrea Izzo | E64: =SUM((VLOOKUP(B64, Rankings!C:E,3,FALSE)),(VLOOKUP(C64, Rankings!C:E,3,FALSE)),(VLOOKUP(D64, Rankings!C:E,3,FALSE))) -> 536.25
B65: =Competitors!A48 -> Andrea Ludergnani | C65: =Competitors!A48 -> Andrea Ludergnani | D65: =Competitors!A48 -> Andrea Ludergnani | E65: =SUM((VLOOKUP(B65, Rankings!C:E,3,FALSE)),(VLOOKUP(C65, Rankings!C:E,3,FALSE)),(VLOOKUP(D65, Rankings!C:E,3,FALSE))) -> 760.35
B66: =Competitors!A49 -> Andrea Lugli | C66: =Competitors!A49 -> Andrea Lugli | D66: =Competitors!A49 -> Andrea Lugli | E66: =SUM((VLOOKUP(B66, Rankings!C:E,3,FALSE)),(VLOOKUP(C66, Rankings!C:E,3,FALSE)),(VLOOKUP(D66, Rankings!C:E,3,FALSE))) -> 0
B67: =Competitors!A50 -> Andrea Marciano | C67: =Competitors!A50 -> Andrea Marciano | D67: =Competitors!A50 -> Andrea Marciano | E67: =SUM((VLOOKUP(B67, Rankings!C:E,3,FALSE)),(VLOOKUP(C67, Rankings!C:E,3,FALSE)),(VLOOKUP(D67, Rankings!C:E,3,FALSE))) -> 975.75
B68: =Competitors!#REF! ->  | C68: =Competitors!#REF! ->  | D68: =Competitors!#REF! ->  | E68: =SUM((VLOOKUP(B68, Rankings!C:E,3,FALSE)),(VLOOKUP(C68, Rankings!C:E,3,FALSE)),(VLOOKUP(D68, Rankings!C:E,3,FALSE))) -> 
B69: =Competitors!#REF! ->  | C69: =Competitors!#REF! ->  | D69: =Competitors!#REF! ->  | E69: =SUM((VLOOKUP(B69, Rankings!C:E,3,FALSE)),(VLOOKUP(C69, Rankings!C:E,3,FALSE)),(VLOOKUP(D69, Rankings!C:E,3,FALSE))) -> 
B70: =Competitors!#REF! ->  | C70: =Competitors!#REF! ->  | D70: =Competitors!#REF! ->  | E70: =SUM((VLOOKUP(B70, Rankings!C:E,3,FALSE)),(VLOOKUP(C70, Rankings!C:E,3,FALSE)),(VLOOKUP(D70, Rankings!C:E,3,FALSE))) -> 
B71: =Competitors!A51 -> Andrea Meola | C71: =Competitors!A51 -> Andrea Meola | D71: =Competitors!A51 -> Andrea Meola | E71: =SUM((VLOOKUP(B71, Rankings!C:E,3,FALSE)),(VLOOKUP(C71, Rankings!C:E,3,FALSE)),(VLOOKUP(D71, Rankings!C:E,3,FALSE))) -> 0
B72: =Competitors!A52 -> Andrea Mizzi | C72: =Competitors!A52 -> Andrea Mizzi | D72: =Competitors!A52 -> Andrea Mizzi | E72: =SUM((VLOOKUP(B72, Rankings!C:E,3,FALSE)),(VLOOKUP(C72, Rankings!C:E,3,FALSE)),(VLOOKUP(D72, Rankings!C:E,3,FALSE))) -> 173.25
B73: =Competitors!A53 -> Andrea Pecchiari | C73: =Competitors!A53 -> Andrea Pecchiari | D73: =Competitors!A53 -> Andrea Pecchiari | E73: =SUM((VLOOKUP(B73, Rankings!C:E,3,FALSE)),(VLOOKUP(C73, Rankings!C:E,3,FALSE)),(VLOOKUP(D73, Rankings!C:E,3,FALSE))) -> 551.25
B74: =Competitors!A54 -> Andrea Piemontese | C74: =Competitors!A54 -> Andrea Piemontese | D74: =Competitors!A54 -> Andrea Piemontese | E74: =SUM((VLOOKUP(B74, Rankings!C:E,3,FALSE)),(VLOOKUP(C74, Rankings!C:E,3,FALSE)),(VLOOKUP(D74, Rankings!C:E,3,FALSE))) -> 786.45
B75: =Competitors!A55 -> Andrea Pietrangeli | C75: =Competitors!A55 -> Andrea Pietrangeli | D75: =Competitors!A55 -> Andrea Pietrangeli | E75: =SUM((VLOOKUP(B75, Rankings!C:E,3,FALSE)),(VLOOKUP(C75, Rankings!C:E,3,FALSE)),(VLOOKUP(D75, Rankings!C:E,3,FALSE))) -> 0
B76: =Competitors!A56 -> Andrea Poli | C76: =Competitors!A56 -> Andrea Poli | D76: =Competitors!A56 -> Andrea Poli | E76: =SUM((VLOOKUP(B76, Rankings!C:E,3,FALSE)),(VLOOKUP(C76, Rankings!C:E,3,FALSE)),(VLOOKUP(D76, Rankings!C:E,3,FALSE))) -> 1456.05
B77: =Competitors!A57 -> Andrea Rimatori | C77: =Competitors!A57 -> Andrea Rimatori | D77: =Competitors!A57 -> Andrea Rimatori | E77: =SUM((VLOOKUP(B77, Rankings!C:E,3,FALSE)),(VLOOKUP(C77, Rankings!C:E,3,FALSE)),(VLOOKUP(D77, Rankings!C:E,3,FALSE))) -> 2140.95
B78: =Competitors!A58 -> Andrea Sarti | C78: =Competitors!A58 -> Andrea Sarti | D78: =Competitors!A58 -> Andrea Sarti | E78: =SUM((VLOOKUP(B78, Rankings!C:E,3,FALSE)),(VLOOKUP(C78, Rankings!C:E,3,FALSE)),(VLOOKUP(D78, Rankings!C:E,3,FALSE))) -> 1666.05
B79: =Competitors!A59 -> Andrea Stazi | C79: =Competitors!A59 -> Andrea Stazi | D79: =Competitors!A59 -> Andrea Stazi | E79: =SUM((VLOOKUP(B79, Rankings!C:E,3,FALSE)),(VLOOKUP(C79, Rankings!C:E,3,FALSE)),(VLOOKUP(D79, Rankings!C:E,3,FALSE))) -> 153
B80: =Competitors!A60 -> Andreas Bochmann | C80: =Competitors!A60 -> Andreas Bochmann | D80: =Competitors!A60 -> Andreas Bochmann | E80: =SUM((VLOOKUP(B80, Rankings!C:E,3,FALSE)),(VLOOKUP(C80, Rankings!C:E,3,FALSE)),(VLOOKUP(D80, Rankings!C:E,3,FALSE))) -> 120
B81: =Competitors!A61 -> Andreas Jaderyd | C81: =Competitors!A61 -> Andreas Jaderyd | D81: =Competitors!A61 -> Andreas Jaderyd | E81: =SUM((VLOOKUP(B81, Rankings!C:E,3,FALSE)),(VLOOKUP(C81, Rankings!C:E,3,FALSE)),(VLOOKUP(D81, Rankings!C:E,3,FALSE))) -> 1039.5
B82: =Competitors!A62 -> Andreas Nogay | C82: =Competitors!A62 -> Andreas Nogay | D82: =Competitors!A62 -> Andreas Nogay | E82: =SUM((VLOOKUP(B82, Rankings!C:E,3,FALSE)),(VLOOKUP(C82, Rankings!C:E,3,FALSE)),(VLOOKUP(D82, Rankings!C:E,3,FALSE))) -> 0
B83: =Competitors!A63 -> Andres Rivera | C83: =Competitors!A63 -> Andres Rivera | D83: =Competitors!A63 -> Andres Rivera | E83: =SUM((VLOOKUP(B83, Rankings!C:E,3,FALSE)),(VLOOKUP(C83, Rankings!C:E,3,FALSE)),(VLOOKUP(D83, Rankings!C:E,3,FALSE))) -> 0
B84: =Competitors!A64 -> Andres Serna | C84: =Competitors!A64 -> Andres Serna | D84: =Competitors!A64 -> Andres Serna | E84: =SUM((VLOOKUP(B84, Rankings!C:E,3,FALSE)),(VLOOKUP(C84, Rankings!C:E,3,FALSE)),(VLOOKUP(D84, Rankings!C:E,3,FALSE))) -> 0
B85: =Competitors!A65 -> Andrew Lemann | C85: =Competitors!A65 -> Andrew Lemann | D85: =Competitors!A65 -> Andrew Lemann | E85: =SUM((VLOOKUP(B85, Rankings!C:E,3,FALSE)),(VLOOKUP(C85, Rankings!C:E,3,FALSE)),(VLOOKUP(D85, Rankings!C:E,3,FALSE))) -> 291
B86: =Competitors!A66 -> Andrew Quinn | C86: =Competitors!A66 -> Andrew Quinn | D86: =Competitors!A66 -> Andrew Quinn | E86: =SUM((VLOOKUP(B86, Rankings!C:E,3,FALSE)),(VLOOKUP(C86, Rankings!C:E,3,FALSE)),(VLOOKUP(D86, Rankings!C:E,3,FALSE))) -> 0
B87: =Competitors!A67 -> Andrew Van Lanen | C87: =Competitors!A67 -> Andrew Van Lanen | D87: =Competitors!A67 -> Andrew Van Lanen | E87: =SUM((VLOOKUP(B87, Rankings!C:E,3,FALSE)),(VLOOKUP(C87, Rankings!C:E,3,FALSE)),(VLOOKUP(D87, Rankings!C:E,3,FALSE))) -> 0
B88: =Competitors!A68 -> Andy Absolom | C88: =Competitors!A68 -> Andy Absolom | D88: =Competitors!A68 -> Andy Absolom | E88: =SUM((VLOOKUP(B88, Rankings!C:E,3,FALSE)),(VLOOKUP(C88, Rankings!C:E,3,FALSE)),(VLOOKUP(D88, Rankings!C:E,3,FALSE))) -> 650.25
B89: =Competitors!A69 -> Angela Goeller | C89: =Competitors!A69 -> Angela Goeller | D89: =Competitors!A69 -> Angela Goeller | E89: =SUM((VLOOKUP(B89, Rankings!C:E,3,FALSE)),(VLOOKUP(C89, Rankings!C:E,3,FALSE)),(VLOOKUP(D89, Rankings!C:E,3,FALSE))) -> 0
B90: =Competitors!A70 -> Angelo Mancarella | C90: =Competitors!A70 -> Angelo Mancarella | D90: =Competitors!A70 -> Angelo Mancarella | E90: =SUM((VLOOKUP(B90, Rankings!C:E,3,FALSE)),(VLOOKUP(C90, Rankings!C:E,3,FALSE)),(VLOOKUP(D90, Rankings!C:E,3,FALSE))) -> 0
B91: =Competitors!A71 -> Angelo Trevino | C91: =Competitors!A71 -> Angelo Trevino | D91: =Competitors!A71 -> Angelo Trevino | E91: =SUM((VLOOKUP(B91, Rankings!C:E,3,FALSE)),(VLOOKUP(C91, Rankings!C:E,3,FALSE)),(VLOOKUP(D91, Rankings!C:E,3,FALSE))) -> 82.5
B92: =Competitors!A72 -> Anna Bragagnolo | C92: =Competitors!A72 -> Anna Bragagnolo | D92: =Competitors!A72 -> Anna Bragagnolo | E92: =SUM((VLOOKUP(B92, Rankings!C:E,3,FALSE)),(VLOOKUP(C92, Rankings!C:E,3,FALSE)),(VLOOKUP(D92, Rankings!C:E,3,FALSE))) -> 656.4
B93: =Competitors!A73 -> Anna Duran-Korzycka | C93: =Competitors!A73 -> Anna Duran-Korzycka | D93: =Competitors!A73 -> Anna Duran-Korzycka | E93: =SUM((VLOOKUP(B93, Rankings!C:E,3,FALSE)),(VLOOKUP(C93, Rankings!C:E,3,FALSE)),(VLOOKUP(D93, Rankings!C:E,3,FALSE))) -> 300.9
B94: =Competitors!A74 -> Anna Longoni | C94: =Competitors!A74 -> Anna Longoni | D94: =Competitors!A74 -> Anna Longoni | E94: =SUM((VLOOKUP(B94, Rankings!C:E,3,FALSE)),(VLOOKUP(C94, Rankings!C:E,3,FALSE)),(VLOOKUP(D94, Rankings!C:E,3,FALSE))) -> 0
B95: =Competitors!A75 -> Anna Merlo | C95: =Competitors!A75 -> Anna Merlo | D95: =Competitors!A75 -> Anna Merlo | E95: =SUM((VLOOKUP(B95, Rankings!C:E,3,FALSE)),(VLOOKUP(C95, Rankings!C:E,3,FALSE)),(VLOOKUP(D95, Rankings!C:E,3,FALSE))) -> 1005
B96: =Competitors!A76 -> Anna Strait | C96: =Competitors!A76 -> Anna Strait | D96: =Competitors!A76 -> Anna Strait | E96: =SUM((VLOOKUP(B96, Rankings!C:E,3,FALSE)),(VLOOKUP(C96, Rankings!C:E,3,FALSE)),(VLOOKUP(D96, Rankings!C:E,3,FALSE))) -> 0
B97: =Competitors!A77 -> Annalisa Bergonzoni | C97: =Competitors!A77 -> Annalisa Bergonzoni | D97: =Competitors!A77 -> Annalisa Bergonzoni | E97: =SUM((VLOOKUP(B97, Rankings!C:E,3,FALSE)),(VLOOKUP(C97, Rankings!C:E,3,FALSE)),(VLOOKUP(D97, Rankings!C:E,3,FALSE))) -> 0
B98: =Competitors!A78 -> Ann-Charlotte Johansson | C98: =Competitors!A78 -> Ann-Charlotte Johansson | D98: =Competitors!A78 -> Ann-Charlotte Johansson | E98: =SUM((VLOOKUP(B98, Rankings!C:E,3,FALSE)),(VLOOKUP(C98, Rankings!C:E,3,FALSE)),(VLOOKUP(D98, Rankings!C:E,3,FALSE))) -> 0
B99: =Competitors!A79 -> Anne Goh | C99: =Competitors!A79 -> Anne Goh | D99: =Competitors!A79 -> Anne Goh | E99: =SUM((VLOOKUP(B99, Rankings!C:E,3,FALSE)),(VLOOKUP(C99, Rankings!C:E,3,FALSE)),(VLOOKUP(D99, Rankings!C:E,3,FALSE))) -> 0
B100: =Competitors!A80 -> Anneli André | C100: =Competitors!A80 -> Anneli André | D100: =Competitors!A80 -> Anneli André | E100: =SUM((VLOOKUP(B100, Rankings!C:E,3,FALSE)),(VLOOKUP(C100, Rankings!C:E,3,FALSE)),(VLOOKUP(D100, Rankings!C:E,3,FALSE))) -> 132
B101: =Competitors!A81 -> Anton Capellmann | C101: =Competitors!A81 -> Anton Capellmann | D101: =Competitors!A81 -> Anton Capellmann | E101: =SUM((VLOOKUP(B101, Rankings!C:E,3,FALSE)),(VLOOKUP(C101, Rankings!C:E,3,FALSE)),(VLOOKUP(D101, Rankings!C:E,3,FALSE))) -> 2000.25
B102: =Competitors!A82 -> Anton Kappling | C102: =Competitors!A82 -> Anton Kappling | D102: =Competitors!A82 -> Anton Kappling | E102: =SUM((VLOOKUP(B102, Rankings!C:E,3,FALSE)),(VLOOKUP(C102, Rankings!C:E,3,FALSE)),(VLOOKUP(D102, Rankings!C:E,3,FALSE))) -> 25.5
B103: =Competitors!A83 -> Anton Lindh | C103: =Competitors!A83 -> Anton Lindh | D103: =Competitors!A83 -> Anton Lindh | E103: =SUM((VLOOKUP(B103, Rankings!C:E,3,FALSE)),(VLOOKUP(C103, Rankings!C:E,3,FALSE)),(VLOOKUP(D103, Rankings!C:E,3,FALSE))) -> 102
B104: =Competitors!A84 -> Antonio Attanasio | C104: =Competitors!A84 -> Antonio Attanasio | D104: =Competitors!A84 -> Antonio Attanasio | E104: =SUM((VLOOKUP(B104, Rankings!C:E,3,FALSE)),(VLOOKUP(C104, Rankings!C:E,3,FALSE)),(VLOOKUP(D104, Rankings!C:E,3,FALSE))) -> 0
B105: =Competitors!A85 -> Antonio Caporale | C105: =Competitors!A85 -> Antonio Caporale | D105: =Competitors!A85 -> Antonio Caporale | E105: =SUM((VLOOKUP(B105, Rankings!C:E,3,FALSE)),(VLOOKUP(C105, Rankings!C:E,3,FALSE)),(VLOOKUP(D105, Rankings!C:E,3,FALSE))) -> 0
B106: =Competitors!A86 -> Antonio Iannettone | C106: =Competitors!A86 -> Antonio Iannettone | D106: =Competitors!A86 -> Antonio Iannettone | E106: =SUM((VLOOKUP(B106, Rankings!C:E,3,FALSE)),(VLOOKUP(C106, Rankings!C:E,3,FALSE)),(VLOOKUP(D106, Rankings!C:E,3,FALSE))) -> 16.65
B107: =Competitors!A87 -> Antonio Piccione Cusmá | C107: =Competitors!A87 -> Antonio Piccione Cusmá | D107: =Competitors!A87 -> Antonio Piccione Cusmá | E107: =SUM((VLOOKUP(B107, Rankings!C:E,3,FALSE)),(VLOOKUP(C107, Rankings!C:E,3,FALSE)),(VLOOKUP(D107, Rankings!C:E,3,FALSE))) -> 1541.25
B108: =Competitors!A88 -> Ari Kloke | C108: =Competitors!A88 -> Ari Kloke | D108: =Competitors!A88 -> Ari Kloke | E108: =SUM((VLOOKUP(B108, Rankings!C:E,3,FALSE)),(VLOOKUP(C108, Rankings!C:E,3,FALSE)),(VLOOKUP(D108, Rankings!C:E,3,FALSE))) -> 0
B109: =Competitors!A89 -> Aria Andarizig | C109: =Competitors!A89 -> Aria Andarizig | D109: =Competitors!A89 -> Aria Andarizig | E109: =SUM((VLOOKUP(B109, Rankings!C:E,3,FALSE)),(VLOOKUP(C109, Rankings!C:E,3,FALSE)),(VLOOKUP(D109, Rankings!C:E,3,FALSE))) -> 72
B110: =Competitors!A90 -> Arnon Avitzur | C110: =Competitors!A90 -> Arnon Avitzur | D110: =Competitors!A90 -> Arnon Avitzur | E110: =SUM((VLOOKUP(B110, Rankings!C:E,3,FALSE)),(VLOOKUP(C110, Rankings!C:E,3,FALSE)),(VLOOKUP(D110, Rankings!C:E,3,FALSE))) -> 0
B111: =Competitors!A91 -> Art Viger | C111: =Competitors!A91 -> Art Viger | D111: =Competitors!A91 -> Art Viger | E111: =SUM((VLOOKUP(B111, Rankings!C:E,3,FALSE)),(VLOOKUP(C111, Rankings!C:E,3,FALSE)),(VLOOKUP(D111, Rankings!C:E,3,FALSE))) -> 0
B112: =Competitors!A92 -> Arthur Coddington | C112: =Competitors!A92 -> Arthur Coddington | D112: =Competitors!A92 -> Arthur Coddington | E112: =SUM((VLOOKUP(B112, Rankings!C:E,3,FALSE)),(VLOOKUP(C112, Rankings!C:E,3,FALSE)),(VLOOKUP(D112, Rankings!C:E,3,FALSE))) -> 0
B113: =Competitors!A93 -> Austin Borcherding | C113: =Competitors!A93 -> Austin Borcherding | D113: =Competitors!A93 -> Austin Borcherding | E113: =SUM((VLOOKUP(B113, Rankings!C:E,3,FALSE)),(VLOOKUP(C113, Rankings!C:E,3,FALSE)),(VLOOKUP(D113, Rankings!C:E,3,FALSE))) -> 0
B114: =Competitors!A94 -> Avery Jenkins | C114: =Competitors!A94 -> Avery Jenkins | D114: =Competitors!A94 -> Avery Jenkins | E114: =SUM((VLOOKUP(B114, Rankings!C:E,3,FALSE)),(VLOOKUP(C114, Rankings!C:E,3,FALSE)),(VLOOKUP(D114, Rankings!C:E,3,FALSE))) -> 0
B115: =Competitors!A95 -> Aya Ichikawa | C115: =Competitors!A95 -> Aya Ichikawa | D115: =Competitors!A95 -> Aya Ichikawa | E115: =SUM((VLOOKUP(B115, Rankings!C:E,3,FALSE)),(VLOOKUP(C115, Rankings!C:E,3,FALSE)),(VLOOKUP(D115, Rankings!C:E,3,FALSE))) -> 120
B116: =Competitors!A96 -> Ayal Benin | C116: =Competitors!A96 -> Ayal Benin | D116: =Competitors!A96 -> Ayal Benin | E116: =SUM((VLOOKUP(B116, Rankings!C:E,3,FALSE)),(VLOOKUP(C116, Rankings!C:E,3,FALSE)),(VLOOKUP(D116, Rankings!C:E,3,FALSE))) -> 509.4
B117: =Competitors!A97 -> Balu Major | C117: =Competitors!A97 -> Balu Major | D117: =Competitors!A97 -> Balu Major | E117: =SUM((VLOOKUP(B117, Rankings!C:E,3,FALSE)),(VLOOKUP(C117, Rankings!C:E,3,FALSE)),(VLOOKUP(D117, Rankings!C:E,3,FALSE))) -> 2706.75
B118: =Competitors!A98 -> Barrett White | C118: =Competitors!A98 -> Barrett White | D118: =Competitors!A98 -> Barrett White | E118: =SUM((VLOOKUP(B118, Rankings!C:E,3,FALSE)),(VLOOKUP(C118, Rankings!C:E,3,FALSE)),(VLOOKUP(D118, Rankings!C:E,3,FALSE))) -> 120
B119: =Competitors!A99 -> Bart Lodewijk | C119: =Competitors!A99 -> Bart Lodewijk | D119: =Competitors!A99 -> Bart Lodewijk | E119: =SUM((VLOOKUP(B119, Rankings!C:E,3,FALSE)),(VLOOKUP(C119, Rankings!C:E,3,FALSE)),(VLOOKUP(D119, Rankings!C:E,3,FALSE))) -> 0
B120: =Competitors!A100 -> Bartek Dusowski | C120: =Competitors!A100 -> Bartek Dusowski | D120: =Competitors!A100 -> Bartek Dusowski | E120: =SUM((VLOOKUP(B120, Rankings!C:E,3,FALSE)),(VLOOKUP(C120, Rankings!C:E,3,FALSE)),(VLOOKUP(D120, Rankings!C:E,3,FALSE))) -> 0
B121: =Competitors!A101 -> Beka Namchevadze | C121: =Competitors!A101 -> Beka Namchevadze | D121: =Competitors!A101 -> Beka Namchevadze | E121: =SUM((VLOOKUP(B121, Rankings!C:E,3,FALSE)),(VLOOKUP(C121, Rankings!C:E,3,FALSE)),(VLOOKUP(D121, Rankings!C:E,3,FALSE))) -> 106.5
B122: =Competitors!A102 -> Ben Singer | C122: =Competitors!A102 -> Ben Singer | D122: =Competitors!A102 -> Ben Singer | E122: =SUM((VLOOKUP(B122, Rankings!C:E,3,FALSE)),(VLOOKUP(C122, Rankings!C:E,3,FALSE)),(VLOOKUP(D122, Rankings!C:E,3,FALSE))) -> 0
B123: =Competitors!A103 -> Benedigt Becker | C123: =Competitors!A103 -> Benedigt Becker | D123: =Competitors!A103 -> Benedigt Becker | E123: =SUM((VLOOKUP(B123, Rankings!C:E,3,FALSE)),(VLOOKUP(C123, Rankings!C:E,3,FALSE)),(VLOOKUP(D123, Rankings!C:E,3,FALSE))) -> 0
B124: =Competitors!A104 -> Benjamin Edelmann | C124: =Competitors!A104 -> Benjamin Edelmann | D124: =Competitors!A104 -> Benjamin Edelmann | E124: =SUM((VLOOKUP(B124, Rankings!C:E,3,FALSE)),(VLOOKUP(C124, Rankings!C:E,3,FALSE)),(VLOOKUP(D124, Rankings!C:E,3,FALSE))) -> 1956.75
B125: =Competitors!A105 -> Benni Sing | C125: =Competitors!A105 -> Benni Sing | D125: =Competitors!A105 -> Benni Sing | E125: =SUM((VLOOKUP(B125, Rankings!C:E,3,FALSE)),(VLOOKUP(C125, Rankings!C:E,3,FALSE)),(VLOOKUP(D125, Rankings!C:E,3,FALSE))) -> 0
B126: =Competitors!A106 -> Bernie Murray | C126: =Competitors!A106 -> Bernie Murray | D126: =Competitors!A106 -> Bernie Murray | E126: =SUM((VLOOKUP(B126, Rankings!C:E,3,FALSE)),(VLOOKUP(C126, Rankings!C:E,3,FALSE)),(VLOOKUP(D126, Rankings!C:E,3,FALSE))) -> 15
B127: =Competitors!A107 -> Beth Verish | C127: =Competitors!A107 -> Beth Verish | D127: =Competitors!A107 -> Beth Verish | E127: =SUM((VLOOKUP(B127, Rankings!C:E,3,FALSE)),(VLOOKUP(C127, Rankings!C:E,3,FALSE)),(VLOOKUP(D127, Rankings!C:E,3,FALSE))) -> 178.35
B128: =Competitors!A108 -> Bethany Sanchez | C128: =Competitors!A108 -> Bethany Sanchez | D128: =Competitors!A108 -> Bethany Sanchez | E128: =SUM((VLOOKUP(B128, Rankings!C:E,3,FALSE)),(VLOOKUP(C128, Rankings!C:E,3,FALSE)),(VLOOKUP(D128, Rankings!C:E,3,FALSE))) -> 655.5
B129: =Competitors!A109 -> Bianca Strunz | C129: =Competitors!A109 -> Bianca Strunz | D129: =Competitors!A109 -> Bianca Strunz | E129: =SUM((VLOOKUP(B129, Rankings!C:E,3,FALSE)),(VLOOKUP(C129, Rankings!C:E,3,FALSE)),(VLOOKUP(D129, Rankings!C:E,3,FALSE))) -> 2230.5
B130: =Competitors!A110 -> Bill Chetel | C130: =Competitors!A110 -> Bill Chetel | D130: =Competitors!A110 -> Bill Chetel | E130: =SUM((VLOOKUP(B130, Rankings!C:E,3,FALSE)),(VLOOKUP(C130, Rankings!C:E,3,FALSE)),(VLOOKUP(D130, Rankings!C:E,3,FALSE))) -> 0
B131: =Competitors!A111 -> Bill Wright | C131: =Competitors!A111 -> Bill Wright | D131: =Competitors!A111 -> Bill Wright | E131: =SUM((VLOOKUP(B131, Rankings!C:E,3,FALSE)),(VLOOKUP(C131, Rankings!C:E,3,FALSE)),(VLOOKUP(D131, Rankings!C:E,3,FALSE))) -> 668.4
B132: =Competitors!A112 -> Billy Caplin | C132: =Competitors!A112 -> Billy Caplin | D132: =Competitors!A112 -> Billy Caplin | E132: =SUM((VLOOKUP(B132, Rankings!C:E,3,FALSE)),(VLOOKUP(C132, Rankings!C:E,3,FALSE)),(VLOOKUP(D132, Rankings!C:E,3,FALSE))) -> 129.75
B133: =Competitors!A113 -> Billy Kaplan | C133: =Competitors!A113 -> Billy Kaplan | D133: =Competitors!A113 -> Billy Kaplan | E133: =SUM((VLOOKUP(B133, Rankings!C:E,3,FALSE)),(VLOOKUP(C133, Rankings!C:E,3,FALSE)),(VLOOKUP(D133, Rankings!C:E,3,FALSE))) -> 0
B134: =Competitors!A114 -> Birger Schmidt | C134: =Competitors!A114 -> Birger Schmidt | D134: =Competitors!A114 -> Birger Schmidt | E134: =SUM((VLOOKUP(B134, Rankings!C:E,3,FALSE)),(VLOOKUP(C134, Rankings!C:E,3,FALSE)),(VLOOKUP(D134, Rankings!C:E,3,FALSE))) -> 114
B135: =Competitors!A115 -> Birgit Lenger | C135: =Competitors!A115 -> Birgit Lenger | D135: =Competitors!A115 -> Birgit Lenger | E135: =SUM((VLOOKUP(B135, Rankings!C:E,3,FALSE)),(VLOOKUP(C135, Rankings!C:E,3,FALSE)),(VLOOKUP(D135, Rankings!C:E,3,FALSE))) -> 0
B136: =Competitors!A116 -> Björn Ahlström | C136: =Competitors!A116 -> Björn Ahlström | D136: =Competitors!A116 -> Björn Ahlström | E136: =SUM((VLOOKUP(B136, Rankings!C:E,3,FALSE)),(VLOOKUP(C136, Rankings!C:E,3,FALSE)),(VLOOKUP(D136, Rankings!C:E,3,FALSE))) -> 0
B137: =Competitors!A117 -> Bjorn Tiggis | C137: =Competitors!A117 -> Bjorn Tiggis | D137: =Competitors!A117 -> Bjorn Tiggis | E137: =SUM((VLOOKUP(B137, Rankings!C:E,3,FALSE)),(VLOOKUP(C137, Rankings!C:E,3,FALSE)),(VLOOKUP(D137, Rankings!C:E,3,FALSE))) -> 0
B138: =Competitors!A118 -> Blake Herrschaft | C138: =Competitors!A118 -> Blake Herrschaft | D138: =Competitors!A118 -> Blake Herrschaft | E138: =SUM((VLOOKUP(B138, Rankings!C:E,3,FALSE)),(VLOOKUP(C138, Rankings!C:E,3,FALSE)),(VLOOKUP(D138, Rankings!C:E,3,FALSE))) -> 0
B139: =Competitors!A119 -> Bob Boulware | C139: =Competitors!A119 -> Bob Boulware | D139: =Competitors!A119 -> Bob Boulware | E139: =SUM((VLOOKUP(B139, Rankings!C:E,3,FALSE)),(VLOOKUP(C139, Rankings!C:E,3,FALSE)),(VLOOKUP(D139, Rankings!C:E,3,FALSE))) -> 239.25
B140: =Competitors!A120 -> Bob Coleman | C140: =Competitors!A120 -> Bob Coleman | D140: =Competitors!A120 -> Bob Coleman | E140: =SUM((VLOOKUP(B140, Rankings!C:E,3,FALSE)),(VLOOKUP(C140, Rankings!C:E,3,FALSE)),(VLOOKUP(D140, Rankings!C:E,3,FALSE))) -> 0
B141: =Competitors!A121 -> Bob Cooksey | C141: =Competitors!A121 -> Bob Cooksey | D141: =Competitors!A121 -> Bob Cooksey | E141: =SUM((VLOOKUP(B141, Rankings!C:E,3,FALSE)),(VLOOKUP(C141, Rankings!C:E,3,FALSE)),(VLOOKUP(D141, Rankings!C:E,3,FALSE))) -> 247.5
B142: =Competitors!A122 -> Bob Gossett | C142: =Competitors!A122 -> Bob Gossett | D142: =Competitors!A122 -> Bob Gossett | E142: =SUM((VLOOKUP(B142, Rankings!C:E,3,FALSE)),(VLOOKUP(C142, Rankings!C:E,3,FALSE)),(VLOOKUP(D142, Rankings!C:E,3,FALSE))) -> 0
B143: =Competitors!A123 -> Bobbo Karlsson | C143: =Competitors!A123 -> Bobbo Karlsson | D143: =Competitors!A123 -> Bobbo Karlsson | E143: =SUM((VLOOKUP(B143, Rankings!C:E,3,FALSE)),(VLOOKUP(C143, Rankings!C:E,3,FALSE)),(VLOOKUP(D143, Rankings!C:E,3,FALSE))) -> 0
B144: =Competitors!A124 -> Boguslaw Bul | C144: =Competitors!A124 -> Boguslaw Bul | D144: =Competitors!A124 -> Boguslaw Bul | E144: =SUM((VLOOKUP(B144, Rankings!C:E,3,FALSE)),(VLOOKUP(C144, Rankings!C:E,3,FALSE)),(VLOOKUP(D144, Rankings!C:E,3,FALSE))) -> 0
B145: =Competitors!A125 -> Brad Bishop | C145: =Competitors!A125 -> Brad Bishop | D145: =Competitors!A125 -> Brad Bishop | E145: =SUM((VLOOKUP(B145, Rankings!C:E,3,FALSE)),(VLOOKUP(C145, Rankings!C:E,3,FALSE)),(VLOOKUP(D145, Rankings!C:E,3,FALSE))) -> 0
B146: =Competitors!A126 -> Brad Keller | C146: =Competitors!A126 -> Brad Keller | D146: =Competitors!A126 -> Brad Keller | E146: =SUM((VLOOKUP(B146, Rankings!C:E,3,FALSE)),(VLOOKUP(C146, Rankings!C:E,3,FALSE)),(VLOOKUP(D146, Rankings!C:E,3,FALSE))) -> 192
B147: =Competitors!A127 -> Brad Wendt | C147: =Competitors!A127 -> Brad Wendt | D147: =Competitors!A127 -> Brad Wendt | E147: =SUM((VLOOKUP(B147, Rankings!C:E,3,FALSE)),(VLOOKUP(C147, Rankings!C:E,3,FALSE)),(VLOOKUP(D147, Rankings!C:E,3,FALSE))) -> 192
B148: =Competitors!A128 -> Bram Maassen | C148: =Competitors!A128 -> Bram Maassen | D148: =Competitors!A128 -> Bram Maassen | E148: =SUM((VLOOKUP(B148, Rankings!C:E,3,FALSE)),(VLOOKUP(C148, Rankings!C:E,3,FALSE)),(VLOOKUP(D148, Rankings!C:E,3,FALSE))) -> 0
B149: =Competitors!A129 -> Brian Boate | C149: =Competitors!A129 -> Brian Boate | D149: =Competitors!A129 -> Brian Boate | E149: =SUM((VLOOKUP(B149, Rankings!C:E,3,FALSE)),(VLOOKUP(C149, Rankings!C:E,3,FALSE)),(VLOOKUP(D149, Rankings!C:E,3,FALSE))) -> 0
B150: =Competitors!A130 -> Brian McElwain | C150: =Competitors!A130 -> Brian McElwain | D150: =Competitors!A130 -> Brian McElwain | E150: =SUM((VLOOKUP(B150, Rankings!C:E,3,FALSE)),(VLOOKUP(C150, Rankings!C:E,3,FALSE)),(VLOOKUP(D150, Rankings!C:E,3,FALSE))) -> 57.9
B151: =Competitors!A131 -> Bruce Page | C151: =Competitors!A131 -> Bruce Page | D151: =Competitors!A131 -> Bruce Page | E151: =SUM((VLOOKUP(B151, Rankings!C:E,3,FALSE)),(VLOOKUP(C151, Rankings!C:E,3,FALSE)),(VLOOKUP(D151, Rankings!C:E,3,FALSE))) -> 0
B152: =Competitors!A132 -> Bryan Steffen | C152: =Competitors!A132 -> Bryan Steffen | D152: =Competitors!A132 -> Bryan Steffen | E152: =SUM((VLOOKUP(B152, Rankings!C:E,3,FALSE)),(VLOOKUP(C152, Rankings!C:E,3,FALSE)),(VLOOKUP(D152, Rankings!C:E,3,FALSE))) -> 0
B153: =Competitors!A133 -> Caleb DePaola | C153: =Competitors!A133 -> Caleb DePaola | D153: =Competitors!A133 -> Caleb DePaola | E153: =SUM((VLOOKUP(B153, Rankings!C:E,3,FALSE)),(VLOOKUP(C153, Rankings!C:E,3,FALSE)),(VLOOKUP(D153, Rankings!C:E,3,FALSE))) -> 0
B154: =Competitors!A134 -> Carl Dobson | C154: =Competitors!A134 -> Carl Dobson | D154: =Competitors!A134 -> Carl Dobson | E154: =SUM((VLOOKUP(B154, Rankings!C:E,3,FALSE)),(VLOOKUP(C154, Rankings!C:E,3,FALSE)),(VLOOKUP(D154, Rankings!C:E,3,FALSE))) -> 700.5
B155: =Competitors!A135 -> Carl Emerson | C155: =Competitors!A135 -> Carl Emerson | D155: =Competitors!A135 -> Carl Emerson | E155: =SUM((VLOOKUP(B155, Rankings!C:E,3,FALSE)),(VLOOKUP(C155, Rankings!C:E,3,FALSE)),(VLOOKUP(D155, Rankings!C:E,3,FALSE))) -> 135
B156: =Competitors!A136 -> Carlo Lupin | C156: =Competitors!A136 -> Carlo Lupin | D156: =Competitors!A136 -> Carlo Lupin | E156: =SUM((VLOOKUP(B156, Rankings!C:E,3,FALSE)),(VLOOKUP(C156, Rankings!C:E,3,FALSE)),(VLOOKUP(D156, Rankings!C:E,3,FALSE))) -> 0
B157: =Competitors!A137 -> Carlo Perrone | C157: =Competitors!A137 -> Carlo Perrone | D157: =Competitors!A137 -> Carlo Perrone | E157: =SUM((VLOOKUP(B157, Rankings!C:E,3,FALSE)),(VLOOKUP(C157, Rankings!C:E,3,FALSE)),(VLOOKUP(D157, Rankings!C:E,3,FALSE))) -> 78
B158: =Competitors!A138 -> Carlotta Berini | C158: =Competitors!A138 -> Carlotta Berini | D158: =Competitors!A138 -> Carlotta Berini | E158: =SUM((VLOOKUP(B158, Rankings!C:E,3,FALSE)),(VLOOKUP(C158, Rankings!C:E,3,FALSE)),(VLOOKUP(D158, Rankings!C:E,3,FALSE))) -> 0
B159: =Competitors!A139 -> Carolyn Hubbard | C159: =Competitors!A139 -> Carolyn Hubbard | D159: =Competitors!A139 -> Carolyn Hubbard | E159: =SUM((VLOOKUP(B159, Rankings!C:E,3,FALSE)),(VLOOKUP(C159, Rankings!C:E,3,FALSE)),(VLOOKUP(D159, Rankings!C:E,3,FALSE))) -> 0
B160: =Competitors!A140 -> Carsten Heim | C160: =Competitors!A140 -> Carsten Heim | D160: =Competitors!A140 -> Carsten Heim | E160: =SUM((VLOOKUP(B160, Rankings!C:E,3,FALSE)),(VLOOKUP(C160, Rankings!C:E,3,FALSE)),(VLOOKUP(D160, Rankings!C:E,3,FALSE))) -> 0
B161: =Competitors!A141 -> Catia Brandi | C161: =Competitors!A141 -> Catia Brandi | D161: =Competitors!A141 -> Catia Brandi | E161: =SUM((VLOOKUP(B161, Rankings!C:E,3,FALSE)),(VLOOKUP(C161, Rankings!C:E,3,FALSE)),(VLOOKUP(D161, Rankings!C:E,3,FALSE))) -> 0
B162: =Competitors!A142 -> Cedrik Stevens | C162: =Competitors!A142 -> Cedrik Stevens | D162: =Competitors!A142 -> Cedrik Stevens | E162: =SUM((VLOOKUP(B162, Rankings!C:E,3,FALSE)),(VLOOKUP(C162, Rankings!C:E,3,FALSE)),(VLOOKUP(D162, Rankings!C:E,3,FALSE))) -> 181.5
B163: =Competitors!A143 -> Char Powell | C163: =Competitors!A143 -> Char Powell | D163: =Competitors!A143 -> Char Powell | E163: =SUM((VLOOKUP(B163, Rankings!C:E,3,FALSE)),(VLOOKUP(C163, Rankings!C:E,3,FALSE)),(VLOOKUP(D163, Rankings!C:E,3,FALSE))) -> 580.8
B164: =Competitors!A144 -> Charles Logan | C164: =Competitors!A144 -> Charles Logan | D164: =Competitors!A144 -> Charles Logan | E164: =SUM((VLOOKUP(B164, Rankings!C:E,3,FALSE)),(VLOOKUP(C164, Rankings!C:E,3,FALSE)),(VLOOKUP(D164, Rankings!C:E,3,FALSE))) -> 558.15
B165: =Competitors!A145 -> Charlie Richards IV | C165: =Competitors!A145 -> Charlie Richards IV | D165: =Competitors!A145 -> Charlie Richards IV | E165: =SUM((VLOOKUP(B165, Rankings!C:E,3,FALSE)),(VLOOKUP(C165, Rankings!C:E,3,FALSE)),(VLOOKUP(D165, Rankings!C:E,3,FALSE))) -> 105
B166: =Competitors!A146 -> Charlotte DePaola | C166: =Competitors!A146 -> Charlotte DePaola | D166: =Competitors!A146 -> Charlotte DePaola | E166: =SUM((VLOOKUP(B166, Rankings!C:E,3,FALSE)),(VLOOKUP(C166, Rankings!C:E,3,FALSE)),(VLOOKUP(D166, Rankings!C:E,3,FALSE))) -> 0
B167: =Competitors!A147 -> Charly Katzenmaier | C167: =Competitors!A147 -> Charly Katzenmaier | D167: =Competitors!A147 -> Charly Katzenmaier | E167: =SUM((VLOOKUP(B167, Rankings!C:E,3,FALSE)),(VLOOKUP(C167, Rankings!C:E,3,FALSE)),(VLOOKUP(D167, Rankings!C:E,3,FALSE))) -> 0
B168: =Competitors!A148 -> Chip Bell | C168: =Competitors!A148 -> Chip Bell | D168: =Competitors!A148 -> Chip Bell | E168: =SUM((VLOOKUP(B168, Rankings!C:E,3,FALSE)),(VLOOKUP(C168, Rankings!C:E,3,FALSE)),(VLOOKUP(D168, Rankings!C:E,3,FALSE))) -> 0
B169: =Competitors!A149 -> Chris Baker | C169: =Competitors!A149 -> Chris Baker | D169: =Competitors!A149 -> Chris Baker | E169: =SUM((VLOOKUP(B169, Rankings!C:E,3,FALSE)),(VLOOKUP(C169, Rankings!C:E,3,FALSE)),(VLOOKUP(D169, Rankings!C:E,3,FALSE))) -> 0
B170: =Competitors!A150 -> Chris Bellaj | C170: =Competitors!A150 -> Chris Bellaj | D170: =Competitors!A150 -> Chris Bellaj | E170: =SUM((VLOOKUP(B170, Rankings!C:E,3,FALSE)),(VLOOKUP(C170, Rankings!C:E,3,FALSE)),(VLOOKUP(D170, Rankings!C:E,3,FALSE))) -> 810.6
B171: =Competitors!A151 -> Chris DePaola | C171: =Competitors!A151 -> Chris DePaola | D171: =Competitors!A151 -> Chris DePaola | E171: =SUM((VLOOKUP(B171, Rankings!C:E,3,FALSE)),(VLOOKUP(C171, Rankings!C:E,3,FALSE)),(VLOOKUP(D171, Rankings!C:E,3,FALSE))) -> 0
B172: =Competitors!A152 -> Chris Dunaway | C172: =Competitors!A152 -> Chris Dunaway | D172: =Competitors!A152 -> Chris Dunaway | E172: =SUM((VLOOKUP(B172, Rankings!C:E,3,FALSE)),(VLOOKUP(C172, Rankings!C:E,3,FALSE)),(VLOOKUP(D172, Rankings!C:E,3,FALSE))) -> 0
B173: =Competitors!A153 -> Chris Hill | C173: =Competitors!A153 -> Chris Hill | D173: =Competitors!A153 -> Chris Hill | E173: =SUM((VLOOKUP(B173, Rankings!C:E,3,FALSE)),(VLOOKUP(C173, Rankings!C:E,3,FALSE)),(VLOOKUP(D173, Rankings!C:E,3,FALSE))) -> 0
B174: =Competitors!A154 -> Chris Horn | C174: =Competitors!A154 -> Chris Horn | D174: =Competitors!A154 -> Chris Horn | E174: =SUM((VLOOKUP(B174, Rankings!C:E,3,FALSE)),(VLOOKUP(C174, Rankings!C:E,3,FALSE)),(VLOOKUP(D174, Rankings!C:E,3,FALSE))) -> 154.5
B175: =Competitors!A155 -> Chris Koslowski | C175: =Competitors!A155 -> Chris Koslowski | D175: =Competitors!A155 -> Chris Koslowski | E175: =SUM((VLOOKUP(B175, Rankings!C:E,3,FALSE)),(VLOOKUP(C175, Rankings!C:E,3,FALSE)),(VLOOKUP(D175, Rankings!C:E,3,FALSE))) -> 0
B176: =Competitors!A156 -> Chris Reynolds | C176: =Competitors!A156 -> Chris Reynolds | D176: =Competitors!A156 -> Chris Reynolds | E176: =SUM((VLOOKUP(B176, Rankings!C:E,3,FALSE)),(VLOOKUP(C176, Rankings!C:E,3,FALSE)),(VLOOKUP(D176, Rankings!C:E,3,FALSE))) -> 0
B177: =Competitors!A157 -> Chris Ryan | C177: =Competitors!A157 -> Chris Ryan | D177: =Competitors!A157 -> Chris Ryan | E177: =SUM((VLOOKUP(B177, Rankings!C:E,3,FALSE)),(VLOOKUP(C177, Rankings!C:E,3,FALSE)),(VLOOKUP(D177, Rankings!C:E,3,FALSE))) -> 0
B178: =Competitors!A158 -> Chris Sieben | C178: =Competitors!A158 -> Chris Sieben | D178: =Competitors!A158 -> Chris Sieben | E178: =SUM((VLOOKUP(B178, Rankings!C:E,3,FALSE)),(VLOOKUP(C178, Rankings!C:E,3,FALSE)),(VLOOKUP(D178, Rankings!C:E,3,FALSE))) -> 0
B179: =Competitors!A159 -> Christian Grau | C179: =Competitors!A159 -> Christian Grau | D179: =Competitors!A159 -> Christian Grau | E179: =SUM((VLOOKUP(B179, Rankings!C:E,3,FALSE)),(VLOOKUP(C179, Rankings!C:E,3,FALSE)),(VLOOKUP(D179, Rankings!C:E,3,FALSE))) -> 0
B180: =Competitors!A160 -> Christian Lamred | C180: =Competitors!A160 -> Christian Lamred | D180: =Competitors!A160 -> Christian Lamred | E180: =SUM((VLOOKUP(B180, Rankings!C:E,3,FALSE)),(VLOOKUP(C180, Rankings!C:E,3,FALSE)),(VLOOKUP(D180, Rankings!C:E,3,FALSE))) -> 4695.75
B181: =Competitors!A161 -> Christian Voigt | C181: =Competitors!A161 -> Christian Voigt | D181: =Competitors!A161 -> Christian Voigt | E181: =SUM((VLOOKUP(B181, Rankings!C:E,3,FALSE)),(VLOOKUP(C181, Rankings!C:E,3,FALSE)),(VLOOKUP(D181, Rankings!C:E,3,FALSE))) -> 0
B182: =Competitors!A162 -> Christina Kunze | C182: =Competitors!A162 -> Christina Kunze | D182: =Competitors!A162 -> Christina Kunze | E182: =SUM((VLOOKUP(B182, Rankings!C:E,3,FALSE)),(VLOOKUP(C182, Rankings!C:E,3,FALSE)),(VLOOKUP(D182, Rankings!C:E,3,FALSE))) -> 0
B183: =Competitors!A163 -> Christoph Brack | C183: =Competitors!A163 -> Christoph Brack | D183: =Competitors!A163 -> Christoph Brack | E183: =SUM((VLOOKUP(B183, Rankings!C:E,3,FALSE)),(VLOOKUP(C183, Rankings!C:E,3,FALSE)),(VLOOKUP(D183, Rankings!C:E,3,FALSE))) -> 0
B184: =Competitors!A164 -> Christophe Legendre | C184: =Competitors!A164 -> Christophe Legendre | D184: =Competitors!A164 -> Christophe Legendre | E184: =SUM((VLOOKUP(B184, Rankings!C:E,3,FALSE)),(VLOOKUP(C184, Rankings!C:E,3,FALSE)),(VLOOKUP(D184, Rankings!C:E,3,FALSE))) -> 0
B185: =Competitors!A167 -> Claudio Cigna | C185: =Competitors!A167 -> Claudio Cigna | D185: =Competitors!A167 -> Claudio Cigna | E185: =SUM((VLOOKUP(B185, Rankings!C:E,3,FALSE)),(VLOOKUP(C185, Rankings!C:E,3,FALSE)),(VLOOKUP(D185, Rankings!C:E,3,FALSE))) -> 1974
B186: =Competitors!A168 -> Claudio Marana | C186: =Competitors!A168 -> Claudio Marana | D186: =Competitors!A168 -> Claudio Marana | E186: =SUM((VLOOKUP(B186, Rankings!C:E,3,FALSE)),(VLOOKUP(C186, Rankings!C:E,3,FALSE)),(VLOOKUP(D186, Rankings!C:E,3,FALSE))) -> 0
B187: =Competitors!A169 -> Claudio Massaro | C187: =Competitors!A169 -> Claudio Massaro | D187: =Competitors!A169 -> Claudio Massaro | E187: =SUM((VLOOKUP(B187, Rankings!C:E,3,FALSE)),(VLOOKUP(C187, Rankings!C:E,3,FALSE)),(VLOOKUP(D187, Rankings!C:E,3,FALSE))) -> 129.45
B188: =Competitors!A170 -> Claudio Petro | C188: =Competitors!A170 -> Claudio Petro | D188: =Competitors!A170 -> Claudio Petro | E188: =SUM((VLOOKUP(B188, Rankings!C:E,3,FALSE)),(VLOOKUP(C188, Rankings!C:E,3,FALSE)),(VLOOKUP(D188, Rankings!C:E,3,FALSE))) -> 0
B189: =Competitors!A171 -> Claudio Pietranelli | C189: =Competitors!A171 -> Claudio Pietranelli | D189: =Competitors!A171 -> Claudio Pietranelli | E189: =SUM((VLOOKUP(B189, Rankings!C:E,3,FALSE)),(VLOOKUP(C189, Rankings!C:E,3,FALSE)),(VLOOKUP(D189, Rankings!C:E,3,FALSE))) -> 0
B190: =Competitors!A172 -> Clay Collerà | C190: =Competitors!A172 -> Clay Collerà | D190: =Competitors!A172 -> Clay Collerà | E190: =SUM((VLOOKUP(B190, Rankings!C:E,3,FALSE)),(VLOOKUP(C190, Rankings!C:E,3,FALSE)),(VLOOKUP(D190, Rankings!C:E,3,FALSE))) -> 1923.45
E191: =SUM((VLOOKUP(B191, Rankings!C:E,3,FALSE)),(VLOOKUP(C191, Rankings!C:E,3,FALSE)),(VLOOKUP(D191, Rankings!C:E,3,FALSE))) -> 
E192: =SUM((VLOOKUP(B192, Rankings!C:E,3,FALSE)),(VLOOKUP(C192, Rankings!C:E,3,FALSE)),(VLOOKUP(D192, Rankings!C:E,3,FALSE))) -> 
E193: =SUM((VLOOKUP(B193, Rankings!C:E,3,FALSE)),(VLOOKUP(C193, Rankings!C:E,3,FALSE)),(VLOOKUP(D193, Rankings!C:E,3,FALSE))) -> 
E194: =SUM((VLOOKUP(B194, Rankings!C:E,3,FALSE)),(VLOOKUP(C194, Rankings!C:E,3,FALSE)),(VLOOKUP(D194, Rankings!C:E,3,FALSE))) -> 
E195: =SUM((VLOOKUP(B195, Rankings!C:E,3,FALSE)),(VLOOKUP(C195, Rankings!C:E,3,FALSE)),(VLOOKUP(D195, Rankings!C:E,3,FALSE))) -> 
E196: =SUM((VLOOKUP(B196, Rankings!C:E,3,FALSE)),(VLOOKUP(C196, Rankings!C:E,3,FALSE)),(VLOOKUP(D196, Rankings!C:E,3,FALSE))) -> 
E197: =SUM((VLOOKUP(B197, Rankings!C:E,3,FALSE)),(VLOOKUP(C197, Rankings!C:E,3,FALSE)),(VLOOKUP(D197, Rankings!C:E,3,FALSE))) -> 
E198: =SUM((VLOOKUP(B198, Rankings!C:E,3,FALSE)),(VLOOKUP(C198, Rankings!C:E,3,FALSE)),(VLOOKUP(D198, Rankings!C:E,3,FALSE))) -> 
E199: =SUM((VLOOKUP(B199, Rankings!C:E,3,FALSE)),(VLOOKUP(C199, Rankings!C:E,3,FALSE)),(VLOOKUP(D199, Rankings!C:E,3,FALSE))) -> 
E200: =SUM((VLOOKUP(B200, Rankings!C:E,3,FALSE)),(VLOOKUP(C200, Rankings!C:E,3,FALSE)),(VLOOKUP(D200, Rankings!C:E,3,FALSE))) -> 
... 238 more rows

Sheet Export (hidden)
A1: # | B1: Player 1 | C1: Player 2 | D1: Player 3 | E1: EX 1 | F1: EX 2 | G1: EX 3 | H1: AI 1 | I1: AI 2 | J1: AI 3 | K1: DIF 1 | L1: DIF 2 | M1: DIF 3 | N1: Execution | O1: Artistic Impression | P1: Difficulty | Q1: Total | R1: Rank
A2: 1 | B2: =Starterlist!B13 -> 0 | C2: =Starterlist!D13 -> 0 | D2: =Starterlist!F13 -> 0 | E2: =Results!C6 ->  | F2: =Results!D6 ->  | G2: =Results!E6 ->  | H2: =Results!F6 ->  | I2: =Results!H6 ->  | J2: =Results!J6 ->  | K2: =Results!L6 ->  | L2: =Results!M6 ->  | M2: =Results!N6 ->  | N2: =SUM(E2:G2) -> 0 | O2: =SUM(H2:J2) -> 0 | P2: =SUM(K2:M2) -> 0 | Q2: =SUM(N2:P2) -> 0 | R2: =Results!S6 -> 
A3: 2 | B3: =Starterlist!B14 -> 0 | C3: =Starterlist!D14 -> 0 | D3: =Starterlist!F14 -> 0 | E3: =Results!C7 ->  | F3: =Results!D7 ->  | G3: =Results!E7 ->  | H3: =Results!F7 ->  | I3: =Results!H7 ->  | J3: =Results!J7 ->  | K3: =Results!L7 ->  | L3: =Results!M7 ->  | M3: =Results!N7 ->  | N3: =SUM(E3:G3) -> 0 | O3: =SUM(H3:J3) -> 0 | P3: =SUM(K3:M3) -> 0 | Q3: =SUM(N3:P3) -> 0 | R3: =Results!S7 -> 
A4: 3 | B4: =Starterlist!B15 -> 0 | C4: =Starterlist!D15 -> 0 | D4: =Starterlist!F15 -> 0 | E4: =Results!C8 ->  | F4: =Results!D8 ->  | G4: =Results!E8 ->  | H4: =Results!F8 ->  | I4: =Results!H8 ->  | J4: =Results!J8 ->  | K4: =Results!L8 ->  | L4: =Results!M8 ->  | M4: =Results!N8 ->  | N4: 0 | O4: 0 | P4: 0 | Q4: 0 | R4: =Results!S8 -> 
A5: 4 | B5: =Starterlist!B16 -> 0 | C5: =Starterlist!D16 -> 0 | D5: =Starterlist!F16 -> 0 | E5: =Results!C9 ->  | F5: =Results!D9 ->  | G5: =Results!E9 ->  | H5: =Results!F9 ->  | I5: =Results!H9 ->  | J5: =Results!J9 ->  | K5: =Results!L9 ->  | L5: =Results!M9 ->  | M5: =Results!N9 ->  | N5: 0 | O5: 0 | P5: 0 | Q5: 0 | R5: =Results!S9 -> 
A6: 5 | B6: =Starterlist!B17 -> 0 | C6: =Starterlist!D17 -> 0 | D6: =Starterlist!F17 -> 0 | E6: =Results!C10 ->  | F6: =Results!D10 ->  | G6: =Results!E10 ->  | H6: =Results!F10 ->  | I6: =Results!H10 ->  | J6: =Results!J10 ->  | K6: =Results!L10 ->  | L6: =Results!M10 ->  | M6: =Results!N10 ->  | N6: 0 | O6: 0 | P6: 0 | Q6: 0 | R6: =Results!S10 -> 
A7: 6 | B7: =Starterlist!B18 -> 0 | C7: =Starterlist!D18 -> 0 | D7: =Starterlist!F18 -> 0 | E7: =Results!C11 ->  | F7: =Results!D11 ->  | G7: =Results!E11 ->  | H7: =Results!F11 ->  | I7: =Results!H11 ->  | J7: =Results!J11 ->  | K7: =Results!L11 ->  | L7: =Results!M11 ->  | M7: =Results!N11 ->  | N7: 0 | O7: 0 | P7: 0 | Q7: 0 | R7: =Results!S11 -> 
A8: 7 | B8: =Starterlist!B19 -> 0 | C8: =Starterlist!D19 -> 0 | D8: =Starterlist!F19 -> 0 | E8: =Results!C12 ->  | F8: =Results!D12 ->  | G8: =Results!E12 ->  | H8: =Results!F12 ->  | I8: =Results!H12 ->  | J8: =Results!J12 ->  | K8: =Results!L12 ->  | L8: =Results!M12 ->  | M8: =Results!N12 ->  | N8: 0 | O8: 0 | P8: 0 | Q8: 0 | R8: =Results!S12 -> 
A9: 8 | B9: =Starterlist!B20 -> 0 | C9: =Starterlist!D20 -> 0 | D9: =Starterlist!F20 -> 0 | E9: =Results!C13 ->  | F9: =Results!D13 ->  | G9: =Results!E13 ->  | H9: =Results!F13 ->  | I9: =Results!H13 ->  | J9: =Results!J13 ->  | K9: =Results!L13 ->  | L9: =Results!M13 ->  | M9: =Results!N13 ->  | N9: 0 | O9: 0 | P9: 0 | Q9: 0 | R9: =Results!S13 -> 
A10: 9 | B10: =Starterlist!B21 -> 0 | C10: =Starterlist!D21 -> 0 | D10: =Starterlist!F21 -> 0 | E10: =Results!C14 ->  | F10: =Results!D14 ->  | G10: =Results!E14 ->  | H10: =Results!F14 ->  | I10: =Results!H14 ->  | J10: =Results!J14 ->  | K10: =Results!L14 ->  | L10: =Results!M14 ->  | M10: =Results!N14 ->  | N10: =SUM(E10:G10) -> 0 | O10: =SUM(H10:J10) -> 0 | P10: =SUM(K10:M10) -> 0 | Q10: =SUM(N10:P10) -> 0 | R10: =Results!S14 -> 
A11: 10 | B11: =Starterlist!B22 -> 0 | C11: =Starterlist!D22 -> 0 | D11: =Starterlist!F22 -> 0 | E11: =Results!C15 ->  | F11: =Results!D15 ->  | G11: =Results!E15 ->  | H11: =Results!F15 ->  | I11: =Results!H15 ->  | J11: =Results!J15 ->  | K11: =Results!L15 ->  | L11: =Results!M15 ->  | M11: =Results!N15 ->  | N11: 0 | O11: 0 | P11: 0 | Q11: 0 | R11: =Results!S15 -> 
A16: =Starterlist!A1 -> DM 2017 | E16: Division | K16: Round | O16: =Starterlist!F3 -> Pool
A17: =Starterlist!A2 -> Deutsche Freestyle Frisbee Meisterschaften | E17: =Starterlist!B4 -> Open Pairs | K17: =Starterlist!D4 -> Semi-Final | O17: =Starterlist!F4 -> A
E19: =Results!C4 -> 0 | F19: =Results!D4 -> 0 | G19: =Results!E4 -> 0 | H19: =Results!F4 -> 0 | I19: =Results!G4 -> 0 | J19: =Results!H4 -> 0 | K19: =Results!I4 -> 0 | L19: =Results!J4 -> 0 | M19: =Results!K4 -> 0

Sheet Results (Rankings) (hidden)
B2: Event: | I2: =Settings!B3 -> DM 2017
B3: Eventcode:
B4: Date: | I4: =Starterlist!J3 -> 2015-11-14
B5: Place: | I5: =Settings!B5 -> Karlsruhe, Germany
B6: No. Of Players:
B7: Category: | I7: =Settings!B6 -> Regular (100%)
B8: Open Divisions:
B9: Women Divisions:
B10: Other Divisions:
B11: Appears on List:
B12: Expires from List:
B15: =Starterlist!B4 -> Open Pairs | F15: =Starterlist!D4 -> Semi-Final | H15: =CONCATENATE(Starterlist!F3," ",Starterlist!F4) -> Pool A | S15: 1
B16: Place | E16: Player | F16: Gender | G16: Rank | H16: Bonus | J16: Open Ranking Points | K16: Semis Bonus | L16: Finals Bonus | M16: Total | N16: Tied with the team above? | P16: Ranking Points
P17: Name | Q17: Open | R17: Women
B18: =Export!R2 ->  | C18: 1 | D18: 1 | E18: =Export!B2 -> 0 | G18: =IF(ISNA(IF(E18="","",VLOOKUP(E18,Rankings!C:E,3,FALSE))),0,IF(E18="","",VLOOKUP(E18,Rankings!C:E,3,FALSE))) -> 0 | P18: =E18 -> 0
C19: 1 | D19: 1 | E19: =Export!C2 -> 0 | G19: =IF(ISNA(IF(E19="","",VLOOKUP(E19,Rankings!C:E,3,FALSE))),0,IF(E19="","",VLOOKUP(E19,Rankings!C:E,3,FALSE))) -> 0 | P19: =E19 -> 0
C20: 1 | D20: 1 | E20: =Export!D2 -> 0 | G20: =IF(ISNA(IF(E20="","",VLOOKUP(E20,Rankings!C:E,3,FALSE))),0,IF(E20="","",VLOOKUP(E20,Rankings!C:E,3,FALSE))) -> 0 | P20: =E20 -> 0
B21: =Export!R3 ->  | C21: 2 | D21: 2 | E21: =Export!B3 -> 0 | G21: =IF(ISNA(IF(E21="","",VLOOKUP(E21,Rankings!C:E,3,FALSE))),0,IF(E21="","",VLOOKUP(E21,Rankings!C:E,3,FALSE))) -> 0 | P21: 0
C22: 2 | D22: 2 | E22: =Export!C3 -> 0 | G22: =IF(ISNA(IF(E22="","",VLOOKUP(E22,Rankings!C:E,3,FALSE))),0,IF(E22="","",VLOOKUP(E22,Rankings!C:E,3,FALSE))) -> 0 | P22: 0
C23: 2 | D23: 2 | E23: =Export!D3 -> 0 | G23: =IF(ISNA(IF(E23="","",VLOOKUP(E23,Rankings!C:E,3,FALSE))),0,IF(E23="","",VLOOKUP(E23,Rankings!C:E,3,FALSE))) -> 0 | P23: 0
B24: =Export!R4 ->  | C24: 3 | D24: 3 | E24: =Export!B4 -> 0 | G24: =IF(ISNA(IF(E24="","",VLOOKUP(E24,Rankings!C:E,3,FALSE))),0,IF(E24="","",VLOOKUP(E24,Rankings!C:E,3,FALSE))) -> 0 | P24: 0
C25: 3 | D25: 3 | E25: =Export!C4 -> 0 | G25: =IF(ISNA(IF(E25="","",VLOOKUP(E25,Rankings!C:E,3,FALSE))),0,IF(E25="","",VLOOKUP(E25,Rankings!C:E,3,FALSE))) -> 0 | P25: 0
C26: 3 | D26: 3 | E26: =Export!D4 -> 0 | G26: =IF(ISNA(IF(E26="","",VLOOKUP(E26,Rankings!C:E,3,FALSE))),0,IF(E26="","",VLOOKUP(E26,Rankings!C:E,3,FALSE))) -> 0 | P26: 0
B27: =Export!R5 ->  | C27: 4 | D27: 4 | E27: =Export!B5 -> 0 | G27: =IF(ISNA(IF(E27="","",VLOOKUP(E27,Rankings!C:E,3,FALSE))),0,IF(E27="","",VLOOKUP(E27,Rankings!C:E,3,FALSE))) -> 0 | P27: 0
C28: 4 | D28: 4 | E28: =Export!C5 -> 0 | G28: =IF(ISNA(IF(E28="","",VLOOKUP(E28,Rankings!C:E,3,FALSE))),0,IF(E28="","",VLOOKUP(E28,Rankings!C:E,3,FALSE))) -> 0 | P28: 0
C29: 4 | D29: 4 | E29: =Export!D5 -> 0 | G29: =IF(ISNA(IF(E29="","",VLOOKUP(E29,Rankings!C:E,3,FALSE))),0,IF(E29="","",VLOOKUP(E29,Rankings!C:E,3,FALSE))) -> 0 | P29: 0
B30: =Export!R6 ->  | C30: 5 | D30: 5 | E30: =Export!B6 -> 0 | G30: =IF(ISNA(IF(E30="","",VLOOKUP(E30,Rankings!C:E,3,FALSE))),0,IF(E30="","",VLOOKUP(E30,Rankings!C:E,3,FALSE))) -> 0 | P30: 0
C31: 5 | D31: 5 | E31: =Export!C6 -> 0 | G31: =IF(ISNA(IF(E31="","",VLOOKUP(E31,Rankings!C:E,3,FALSE))),0,IF(E31="","",VLOOKUP(E31,Rankings!C:E,3,FALSE))) -> 0 | P31: 0
C32: 5 | D32: 5 | E32: =Export!D6 -> 0 | G32: =IF(ISNA(IF(E32="","",VLOOKUP(E32,Rankings!C:E,3,FALSE))),0,IF(E32="","",VLOOKUP(E32,Rankings!C:E,3,FALSE))) -> 0 | P32: 0
B33: =Export!R7 ->  | C33: 5 | D33: 5 | E33: =Export!B7 -> 0 | G33: =IF(ISNA(IF(E33="","",VLOOKUP(E33,Rankings!C:E,3,FALSE))),0,IF(E33="","",VLOOKUP(E33,Rankings!C:E,3,FALSE))) -> 0 | P33: 0
C34: 5 | D34: 5 | E34: =Export!C7 -> 0 | G34: =IF(ISNA(IF(E34="","",VLOOKUP(E34,Rankings!C:E,3,FALSE))),0,IF(E34="","",VLOOKUP(E34,Rankings!C:E,3,FALSE))) -> 0 | P34: 0
C35: 5 | D35: 5 | E35: =Export!D7 -> 0 | G35: =IF(ISNA(IF(E35="","",VLOOKUP(E35,Rankings!C:E,3,FALSE))),0,IF(E35="","",VLOOKUP(E35,Rankings!C:E,3,FALSE))) -> 0 | P35: 0
B36: =Export!R8 ->  | C36: 7 | D36: 7 | E36: =Export!B8 -> 0 | G36: =IF(ISNA(IF(E36="","",VLOOKUP(E36,Rankings!C:E,3,FALSE))),0,IF(E36="","",VLOOKUP(E36,Rankings!C:E,3,FALSE))) -> 0 | P36: 0
C37: 7 | D37: 7 | E37: =Export!C8 -> 0 | G37: =IF(ISNA(IF(E37="","",VLOOKUP(E37,Rankings!C:E,3,FALSE))),0,IF(E37="","",VLOOKUP(E37,Rankings!C:E,3,FALSE))) -> 0 | P37: 0
C38: 7 | D38: 7 | E38: =Export!D8 -> 0 | G38: =IF(ISNA(IF(E38="","",VLOOKUP(E38,Rankings!C:E,3,FALSE))),0,IF(E38="","",VLOOKUP(E38,Rankings!C:E,3,FALSE))) -> 0 | P38: 0
B39: =Export!R9 ->  | C39: 8 | D39: 8 | E39: =Export!B9 -> 0 | G39: =IF(ISNA(IF(E39="","",VLOOKUP(E39,Rankings!C:E,3,FALSE))),0,IF(E39="","",VLOOKUP(E39,Rankings!C:E,3,FALSE))) -> 0 | P39: 0
C40: 8 | D40: 8 | E40: =Export!C9 -> 0 | G40: =IF(ISNA(IF(E40="","",VLOOKUP(E40,Rankings!C:E,3,FALSE))),0,IF(E40="","",VLOOKUP(E40,Rankings!C:E,3,FALSE))) -> 0 | P40: 0
C41: 8 | D41: 8 | E41: =Export!D9 -> 0 | G41: =IF(ISNA(IF(E41="","",VLOOKUP(E41,Rankings!C:E,3,FALSE))),0,IF(E41="","",VLOOKUP(E41,Rankings!C:E,3,FALSE))) -> 0 | P41: 0
B42: =Export!R10 ->  | C42: 9 | D42: 9 | E42: =Export!B10 -> 0 | G42: =IF(ISNA(IF(E42="","",VLOOKUP(E42,Rankings!C:E,3,FALSE))),0,IF(E42="","",VLOOKUP(E42,Rankings!C:E,3,FALSE))) -> 0 | P42: 0
C43: 9 | D43: 9 | E43: =Export!C10 -> 0 | G43: =IF(ISNA(IF(E43="","",VLOOKUP(E43,Rankings!C:E,3,FALSE))),0,IF(E43="","",VLOOKUP(E43,Rankings!C:E,3,FALSE))) -> 0 | P43: 0
C44: 9 | D44: 9 | E44: =Export!D10 -> 0 | G44: =IF(ISNA(IF(E44="","",VLOOKUP(E44,Rankings!C:E,3,FALSE))),0,IF(E44="","",VLOOKUP(E44,Rankings!C:E,3,FALSE))) -> 0 | P44: 0
B45: =Export!R11 ->  | C45: 10 | D45: 10 | E45: =Export!B11 -> 0 | G45: =IF(ISNA(IF(E45="","",VLOOKUP(E45,Rankings!C:E,3,FALSE))),0,IF(E45="","",VLOOKUP(E45,Rankings!C:E,3,FALSE))) -> 0 | P45: 0
C46: 10 | D46: 10 | E46: =Export!C11 -> 0 | G46: =IF(ISNA(IF(E46="","",VLOOKUP(E46,Rankings!C:E,3,FALSE))),0,IF(E46="","",VLOOKUP(E46,Rankings!C:E,3,FALSE))) -> 0 | P46: 0
C47: 10 | D47: 10 | E47: =Export!D11 -> 0 | G47: =IF(ISNA(IF(E47="","",VLOOKUP(E47,Rankings!C:E,3,FALSE))),0,IF(E47="","",VLOOKUP(E47,Rankings!C:E,3,FALSE))) -> 0 | P47: 0

Sheet Results
A1: =Starterlist!A1 -> DM 2017 | D1: Division | L1: Round | P1: =Starterlist!F3 -> Pool
A2: =Starterlist!A2 -> Deutsche Freestyle Frisbee Meisterschaften | D2: =Starterlist!B4 -> Open Pairs | L2: =Starterlist!D4 -> Semi-Final | P2: =Starterlist!F4 -> A
C4: =Starterlist!J13 -> 0 | D4: =Starterlist!J14 -> 0 | E4: =Starterlist!J15 -> 0 | F4: =Starterlist!J16 -> 0 | H4: =Starterlist!J17 -> 0 | J4: =Starterlist!J18 -> 0 | L4: =Starterlist!J19 -> 0 | M4: =Starterlist!J20 -> 0 | N4: =Starterlist!J21 -> 0 | O4: Execution | P4: Artistic Impression | Q4: Difficulty
A5: # | B5: Team | C5: EX 1 | D5: EX 2 | E5: EX 3 | F5: AI 1 | H5: AI 2 | J5: AI 3 | L5: DIF 1 | M5: DIF 2 | N5: DIFF 3 | R5: Total | S5: Rank
A6: 1 | B6: =(Starterlist!B13)&CHAR(10)&(Starterlist!D13)&CHAR(10)&(Starterlist!F13) ->  | C6: =IF(COUNTA(Starterlist!J$13)>0,'EX 1'!H6,"") ->  | D6: =IF(COUNTA(Starterlist!J$14)>0,'EX 2'!H6,"") ->  | E6: =IF(COUNTA(Starterlist!J$15)>0,'EX 3'!H6,"") ->  | F6: =IF(COUNTA(Starterlist!J$16)>0,'AI 1'!J6:J6,"") ->  | G6: =IF(COUNTA(Starterlist!J$16)>0,('AI 1'!C6)&CHAR(10)&('AI 1'!D6)&CHAR(10)&('AI 1'!E6)&CHAR(10)&('AI 1'!F6)&CHAR(10)&('AI 1'!G6)&CHAR(10)&('AI 1'!H6),"") ->  | H6: =IF(COUNTA(Starterlist!J$17)>0,'AI 2'!J6:J6,"") ->  | I6: =IF(COUNTA(Starterlist!J$16)>0,('AI 2'!C6)&CHAR(10)&('AI 2'!D6)&CHAR(10)&('AI 2'!E6)&CHAR(10)&('AI 2'!F6)&CHAR(10)&('AI 2'!G6)&CHAR(10)&('AI 2'!H6),"") ->  | J6: =IF(COUNTA(Starterlist!J$18)>0,'AI 3'!J6:J6,"") ->  | K6: =IF(COUNTA(Starterlist!J$16)>0,('AI 3'!C6)&CHAR(10)&('AI 3'!D6)&CHAR(10)&('AI 3'!E6)&CHAR(10)&('AI 3'!F6)&CHAR(10)&('AI 3'!G6)&CHAR(10)&('AI 3'!H6),"") ->  | L6: =IF(COUNTA(Starterlist!J$19)>0,'DIF 1'!Y6:Y6,"") ->  | M6: =IF(COUNTA(Starterlist!J$20)>0,'DIF 2'!Y6:Y6,"") ->  | N6: =IF(COUNTA(Starterlist!J$21)>0,'DIF 3'!Y6:Y6,"") ->  | O6: =SUM(C6:E6) -> 0 | P6: =SUM(F6:J6) -> 0 | Q6: =SUM(L6:N6) -> 0 | R6: =SUM(O6:Q6) -> 0 | S6: =IF(R6=0,"",RANK(R6,R$6:R$15)) -> 
A7: 2 | B7: =(Starterlist!B14)&CHAR(10)&(Starterlist!D14)&CHAR(10)&(Starterlist!F14) ->  | C7: =IF(COUNTA(Starterlist!J$13)>0,'EX 1'!H7,"") ->  | D7: =IF(COUNTA(Starterlist!J$14)>0,'EX 2'!H7,"") ->  | E7: =IF(COUNTA(Starterlist!J$15)>0,'EX 3'!H7,"") ->  | F7: =IF(COUNTA(Starterlist!J$16)>0,'AI 1'!J7:J7,"") ->  | G7: =IF(COUNTA(Starterlist!J$16)>0,('AI 1'!C7)&CHAR(10)&('AI 1'!D7)&CHAR(10)&('AI 1'!E7)&CHAR(10)&('AI 1'!F7)&CHAR(10)&('AI 1'!G7)&CHAR(10)&('AI 1'!H7),"") ->  | H7: =IF(COUNTA(Starterlist!J$17)>0,'AI 2'!J7:J7,"") ->  | I7: =IF(COUNTA(Starterlist!J$16)>0,('AI 2'!C7)&CHAR(10)&('AI 2'!D7)&CHAR(10)&('AI 2'!E7)&CHAR(10)&('AI 2'!F7)&CHAR(10)&('AI 2'!G7)&CHAR(10)&('AI 1'!H7),"") ->  | J7: =IF(COUNTA(Starterlist!J$18)>0,'AI 3'!J7:J7,"") ->  | K7: =IF(COUNTA(Starterlist!J$16)>0,('AI 3'!C7)&CHAR(10)&('AI 3'!D7)&CHAR(10)&('AI 3'!E7)&CHAR(10)&('AI 3'!F7)&CHAR(10)&('AI 3'!G7)&CHAR(10)&('AI 3'!H7),"") ->  | L7: =IF(COUNTA(Starterlist!J$19)>0,'DIF 1'!Y8:Y8,"") ->  | M7: =IF(COUNTA(Starterlist!J$20)>0,'DIF 2'!Y8:Y8,"") ->  | N7: =IF(COUNTA(Starterlist!J$21)>0,'DIF 3'!Y8:Y8,"") ->  | O7: 0 | P7: 0 | Q7: 0 | R7: 0 | S7: =IF(R7=0,"",RANK(R7,R$6:R$15)) -> 
A8: 3 | B8: =(Starterlist!B15)&CHAR(10)&(Starterlist!D15)&CHAR(10)&(Starterlist!F15) ->  | C8: =IF(COUNTA(Starterlist!J$13)>0,'EX 1'!H8,"") ->  | D8: =IF(COUNTA(Starterlist!J$14)>0,'EX 2'!H8,"") ->  | E8: =IF(COUNTA(Starterlist!J$15)>0,'EX 3'!H8,"") ->  | F8: =IF(COUNTA(Starterlist!J$16)>0,'AI 1'!J8:J8,"") ->  | G8: =IF(COUNTA(Starterlist!J$16)>0,('AI 1'!C8)&CHAR(10)&('AI 1'!D8)&CHAR(10)&('AI 1'!E8)&CHAR(10)&('AI 1'!F8)&CHAR(10)&('AI 1'!G8)&CHAR(10)&('AI 1'!H8),"") ->  | H8: =IF(COUNTA(Starterlist!J$17)>0,'AI 2'!J8:J8,"") ->  | I8: =IF(COUNTA(Starterlist!J$16)>0,('AI 2'!C8)&CHAR(10)&('AI 2'!D8)&CHAR(10)&('AI 2'!E8)&CHAR(10)&('AI 2'!F8)&CHAR(10)&('AI 2'!G8)&CHAR(10)&('AI 1'!H8),"") ->  | J8: =IF(COUNTA(Starterlist!J$18)>0,'AI 3'!J8:J8,"") ->  | K8: =IF(COUNTA(Starterlist!J$16)>0,('AI 3'!C8)&CHAR(10)&('AI 3'!D8)&CHAR(10)&('AI 3'!E8)&CHAR(10)&('AI 3'!F8)&CHAR(10)&('AI 3'!G8)&CHAR(10)&('AI 3'!H8),"") ->  | L8: =IF(COUNTA(Starterlist!J$19)>0,'DIF 1'!Y10:Y10,"") ->  | M8: =IF(COUNTA(Starterlist!J$20)>0,'DIF 2'!Y10:Y10,"") ->  | N8: =IF(COUNTA(Starterlist!J$21)>0,'DIF 3'!Y10:Y10,"") ->  | O8: 0 | P8: 0 | Q8: 0 | R8: 0
A9: 4 | B9: =(Starterlist!B16)&CHAR(10)&(Starterlist!D16)&CHAR(10)&(Starterlist!F16) ->  | C9: =IF(COUNTA(Starterlist!J$13)>0,'EX 1'!H9,"") ->  | D9: =IF(COUNTA(Starterlist!J$14)>0,'EX 2'!H9,"") ->  | E9: =IF(COUNTA(Starterlist!J$15)>0,'EX 3'!H9,"") ->  | F9: =IF(COUNTA(Starterlist!J$16)>0,'AI 1'!J9:J9,"") ->  | G9: =IF(COUNTA(Starterlist!J$16)>0,('AI 1'!C9)&CHAR(10)&('AI 1'!D9)&CHAR(10)&('AI 1'!E9)&CHAR(10)&('AI 1'!F9)&CHAR(10)&('AI 1'!G9)&CHAR(10)&('AI 1'!H9),"") ->  | H9: =IF(COUNTA(Starterlist!J$17)>0,'AI 2'!J9:J9,"") ->  | I9: =IF(COUNTA(Starterlist!J$16)>0,('AI 2'!C9)&CHAR(10)&('AI 2'!D9)&CHAR(10)&('AI 2'!E9)&CHAR(10)&('AI 2'!F9)&CHAR(10)&('AI 2'!G9)&CHAR(10)&('AI 1'!H9),"") ->  | J9: =IF(COUNTA(Starterlist!J$18)>0,'AI 3'!J9:J9,"") ->  | K9: =IF(COUNTA(Starterlist!J$16)>0,('AI 3'!C9)&CHAR(10)&('AI 3'!D9)&CHAR(10)&('AI 3'!E9)&CHAR(10)&('AI 3'!F9)&CHAR(10)&('AI 3'!G9)&CHAR(10)&('AI 3'!H9),"") ->  | L9: =IF(COUNTA(Starterlist!J$19)>0,'DIF 1'!Y12:Y12,"") ->  | M9: =IF(COUNTA(Starterlist!J$20)>0,'DIF 2'!Y12:Y12,"") ->  | N9: =IF(COUNTA(Starterlist!J$21)>0,'DIF 3'!Y12:Y12,"") ->  | O9: 0 | P9: 0 | Q9: 0 | R9: 0
A10: 5 | B10: =(Starterlist!B17)&CHAR(10)&(Starterlist!D17)&CHAR(10)&(Starterlist!F17) ->  | C10: =IF(COUNTA(Starterlist!J$13)>0,'EX 1'!H10,"") ->  | D10: =IF(COUNTA(Starterlist!J$14)>0,'EX 2'!H10,"") ->  | E10: =IF(COUNTA(Starterlist!J$15)>0,'EX 3'!H10,"") ->  | F10: =IF(COUNTA(Starterlist!J$16)>0,'AI 1'!J10:J10,"") ->  | G10: =IF(COUNTA(Starterlist!J$16)>0,('AI 1'!C10)&CHAR(10)&('AI 1'!D10)&CHAR(10)&('AI 1'!E10)&CHAR(10)&('AI 1'!F10)&CHAR(10)&('AI 1'!G10)&CHAR(10)&('AI 1'!H10),"") ->  | H10: =IF(COUNTA(Starterlist!J$17)>0,'AI 2'!J10:J10,"") ->  | I10: =IF(COUNTA(Starterlist!J$16)>0,('AI 2'!C10)&CHAR(10)&('AI 2'!D10)&CHAR(10)&('AI 2'!E10)&CHAR(10)&('AI 2'!F10)&CHAR(10)&('AI 2'!G10)&CHAR(10)&('AI 1'!H10),"") ->  | J10: =IF(COUNTA(Starterlist!J$18)>0,'AI 3'!J10:J10,"") ->  | K10: =IF(COUNTA(Starterlist!J$16)>0,('AI 3'!C10)&CHAR(10)&('AI 3'!D10)&CHAR(10)&('AI 3'!E10)&CHAR(10)&('AI 3'!F10)&CHAR(10)&('AI 3'!G10)&CHAR(10)&('AI 3'!H10),"") ->  | L10: =IF(COUNTA(Starterlist!J$19)>0,'DIF 1'!Y14:Y14,"") ->  | M10: =IF(COUNTA(Starterlist!J$20)>0,'DIF 2'!Y14:Y14,"") ->  | N10: =IF(COUNTA(Starterlist!J$21)>0,'DIF 3'!Y14:Y14,"") ->  | O10: 0 | P10: 0 | Q10: 0 | R10: 0
A11: 6 | B11: =(Starterlist!B18)&CHAR(10)&(Starterlist!D18)&CHAR(10)&(Starterlist!F18) ->  | C11: =IF(COUNTA(Starterlist!J$13)>0,'EX 1'!H11,"") ->  | D11: =IF(COUNTA(Starterlist!J$14)>0,'EX 2'!H11,"") ->  | E11: =IF(COUNTA(Starterlist!J$15)>0,'EX 3'!H11,"") ->  | F11: =IF(COUNTA(Starterlist!J$16)>0,'AI 1'!J11:J11,"") ->  | G11: =IF(COUNTA(Starterlist!J$16)>0,('AI 1'!C11)&CHAR(10)&('AI 1'!D11)&CHAR(10)&('AI 1'!E11)&CHAR(10)&('AI 1'!F11)&CHAR(10)&('AI 1'!G11)&CHAR(10)&('AI 1'!H11),"") ->  | H11: =IF(COUNTA(Starterlist!J$17)>0,'AI 2'!J11:J11,"") ->  | I11: =IF(COUNTA(Starterlist!J$16)>0,('AI 2'!C11)&CHAR(10)&('AI 2'!D11)&CHAR(10)&('AI 2'!E11)&CHAR(10)&('AI 2'!F11)&CHAR(10)&('AI 2'!G11)&CHAR(10)&('AI 1'!H11),"") ->  | J11: =IF(COUNTA(Starterlist!J$18)>0,'AI 3'!J11:J11,"") ->  | K11: =IF(COUNTA(Starterlist!J$16)>0,('AI 3'!C11)&CHAR(10)&('AI 3'!D11)&CHAR(10)&('AI 3'!E11)&CHAR(10)&('AI 3'!F11)&CHAR(10)&('AI 3'!G11)&CHAR(10)&('AI 3'!H11),"") ->  | L11: =IF(COUNTA(Starterlist!J$19)>0,'DIF 1'!Y16:Y16,"") ->  | M11: =IF(COUNTA(Starterlist!J$20)>0,'DIF 2'!Y16:Y16,"") ->  | N11: =IF(COUNTA(Starterlist!J$21)>0,'DIF 3'!Y16:Y16,"") ->  | O11: 0 | P11: 0 | Q11: 0 | R11: 0
A12: 7 | B12: =(Starterlist!B19)&CHAR(10)&(Starterlist!D19)&CHAR(10)&(Starterlist!F19) ->  | C12: =IF(COUNTA(Starterlist!J$13)>0,'EX 1'!H12,"") ->  | D12: =IF(COUNTA(Starterlist!J$14)>0,'EX 2'!H12,"") ->  | E12: =IF(COUNTA(Starterlist!J$15)>0,'EX 3'!H12,"") ->  | F12: =IF(COUNTA(Starterlist!J$16)>0,'AI 1'!J12:J12,"") ->  | G12: =IF(COUNTA(Starterlist!J$16)>0,('AI 1'!C12)&CHAR(10)&('AI 1'!D12)&CHAR(10)&('AI 1'!E12)&CHAR(10)&('AI 1'!F12)&CHAR(10)&('AI 1'!G12)&CHAR(10)&('AI 1'!H12),"") ->  | H12: =IF(COUNTA(Starterlist!J$17)>0,'AI 2'!J12:J12,"") ->  | I12: =IF(COUNTA(Starterlist!J$16)>0,('AI 2'!C12)&CHAR(10)&('AI 2'!D12)&CHAR(10)&('AI 2'!E12)&CHAR(10)&('AI 2'!F12)&CHAR(10)&('AI 2'!G12)&CHAR(10)&('AI 1'!H12),"") ->  | J12: =IF(COUNTA(Starterlist!J$18)>0,'AI 3'!J12:J12,"") ->  | K12: =IF(COUNTA(Starterlist!J$16)>0,('AI 3'!C12)&CHAR(10)&('AI 3'!D12)&CHAR(10)&('AI 3'!E12)&CHAR(10)&('AI 3'!F12)&CHAR(10)&('AI 3'!G12)&CHAR(10)&('AI 3'!H12),"") ->  | L12: =IF(COUNTA(Starterlist!J$19)>0,'DIF 1'!Y18:Y18,"") ->  | M12: =IF(COUNTA(Starterlist!J$20)>0,'DIF 2'!Y18:Y18,"") ->  | N12: =IF(COUNTA(Starterlist!J$21)>0,'DIF 3'!Y18:Y18,"") ->  | O12: 0 | P12: 0 | Q12: 0 | R12: 0
A13: 8 | B13: =(Starterlist!B20)&CHAR(10)&(Starterlist!D20)&CHAR(10)&(Starterlist!F20) ->  | C13: =IF(COUNTA(Starterlist!J$13)>0,'EX 1'!H13,"") ->  | D13: =IF(COUNTA(Starterlist!J$14)>0,'EX 2'!H13,"") ->  | E13: =IF(COUNTA(Starterlist!J$15)>0,'EX 3'!H13,"") ->  | F13: =IF(COUNTA(Starterlist!J$16)>0,'AI 1'!J13:J13,"") ->  | G13: =IF(COUNTA(Starterlist!J$16)>0,('AI 1'!C13)&CHAR(10)&('AI 1'!D13)&CHAR(10)&('AI 1'!E13)&CHAR(10)&('AI 1'!F13)&CHAR(10)&('AI 1'!G13)&CHAR(10)&('AI 1'!H13),"") ->  | H13: =IF(COUNTA(Starterlist!J$17)>0,'AI 2'!J13:J13,"") ->  | I13: =IF(COUNTA(Starterlist!J$16)>0,('AI 2'!C13)&CHAR(10)&('AI 2'!D13)&CHAR(10)&('AI 2'!E13)&CHAR(10)&('AI 2'!F13)&CHAR(10)&('AI 2'!G13)&CHAR(10)&('AI 1'!H13),"") ->  | J13: =IF(COUNTA(Starterlist!J$18)>0,'AI 3'!J13:J13,"") ->  | K13: =IF(COUNTA(Starterlist!J$16)>0,('AI 3'!C13)&CHAR(10)&('AI 3'!D13)&CHAR(10)&('AI 3'!E13)&CHAR(10)&('AI 3'!F13)&CHAR(10)&('AI 3'!G13)&CHAR(10)&('AI 3'!H13),"") ->  | L13: =IF(COUNTA(Starterlist!J$19)>0,'DIF 1'!Y20:Y20,"") ->  | M13: =IF(COUNTA(Starterlist!J$20)>0,'DIF 2'!Y20:Y20,"") ->  | N13: =IF(COUNTA(Starterlist!J$21)>0,'DIF 3'!Y20:Y20,"") ->  | O13: 0 | P13: 0 | Q13: 0 | R13: 0
A14: 9 | B14: =(Starterlist!B21)&CHAR(10)&(Starterlist!D21)&CHAR(10)&(Starterlist!F21) ->  | C14: =IF(COUNTA(Starterlist!J$13)>0,'EX 1'!H14,"") ->  | D14: =IF(COUNTA(Starterlist!J$14)>0,'EX 2'!H14,"") ->  | E14: =IF(COUNTA(Starterlist!J$15)>0,'EX 3'!H14,"") ->  | F14: =IF(COUNTA(Starterlist!J$16)>0,'AI 1'!J14:J14,"") ->  | G14: =IF(COUNTA(Starterlist!J$16)>0,('AI 1'!C14)&CHAR(10)&('AI 1'!D14)&CHAR(10)&('AI 1'!E14)&CHAR(10)&('AI 1'!F14)&CHAR(10)&('AI 1'!G14)&CHAR(10)&('AI 1'!H14),"") ->  | H14: =IF(COUNTA(Starterlist!J$17)>0,'AI 2'!J14:J14,"") ->  | I14: =IF(COUNTA(Starterlist!J$16)>0,('AI 2'!C14)&CHAR(10)&('AI 2'!D14)&CHAR(10)&('AI 2'!E14)&CHAR(10)&('AI 2'!F14)&CHAR(10)&('AI 2'!G14)&CHAR(10)&('AI 1'!H14),"") ->  | J14: =IF(COUNTA(Starterlist!J$18)>0,'AI 3'!J14:J14,"") ->  | K14: =IF(COUNTA(Starterlist!J$16)>0,('AI 3'!C14)&CHAR(10)&('AI 3'!D14)&CHAR(10)&('AI 3'!E14)&CHAR(10)&('AI 3'!F14)&CHAR(10)&('AI 3'!G14)&CHAR(10)&('AI 3'!H14),"") ->  | L14: =IF(COUNTA(Starterlist!J$19)>0,'DIF 1'!Y22:Y22,"") ->  | M14: =IF(COUNTA(Starterlist!J$20)>0,'DIF 2'!Y22:Y22,"") ->  | N14: =IF(COUNTA(Starterlist!J$21)>0,'DIF 3'!Y22:Y22,"") ->  | O14: 0 | P14: 0 | Q14: =SUM(L14:N14) -> 0 | R14: =SUM(O14:Q14) -> 0
A15: 10 | B15: =(Starterlist!B22)&CHAR(10)&(Starterlist!D22)&CHAR(10)&(Starterlist!F22) ->  | C15: =IF(COUNTA(Starterlist!J$13)>0,'EX 1'!H15,"") ->  | D15: =IF(COUNTA(Starterlist!J$14)>0,'EX 2'!H15,"") ->  | E15: =IF(COUNTA(Starterlist!J$15)>0,'EX 3'!H15,"") ->  | F15: =IF(COUNTA(Starterlist!J$16)>0,'AI 1'!J15:J15,"") ->  | G15: =IF(COUNTA(Starterlist!J$16)>0,('AI 1'!C15)&CHAR(10)&('AI 1'!D15)&CHAR(10)&('AI 1'!E15)&CHAR(10)&('AI 1'!F15)&CHAR(10)&('AI 1'!G15)&CHAR(10)&('AI 1'!H15),"") ->  | H15: =IF(COUNTA(Starterlist!J$17)>0,'AI 2'!J15:J15,"") ->  | I15: =IF(COUNTA(Starterlist!J$16)>0,('AI 2'!C15)&CHAR(10)&('AI 2'!D15)&CHAR(10)&('AI 2'!E15)&CHAR(10)&('AI 2'!F15)&CHAR(10)&('AI 2'!G15)&CHAR(10)&('AI 1'!H15),"") ->  | J15: =IF(COUNTA(Starterlist!J$18)>0,'AI 3'!J15:J15,"") ->  | K15: =IF(COUNTA(Starterlist!J$16)>0,('AI 3'!C15)&CHAR(10)&('AI 3'!D15)&CHAR(10)&('AI 3'!E15)&CHAR(10)&('AI 3'!F15)&CHAR(10)&('AI 3'!G15)&CHAR(10)&('AI 3'!H15),"") ->  | L15: =IF(COUNTA(Starterlist!J$19)>0,'DIF 1'!Y24:Y24,"") ->  | M15: =IF(COUNTA(Starterlist!J$20)>0,'DIF 2'!Y24:Y24,"") ->  | N15: =IF(COUNTA(Starterlist!J$21)>0,'DIF 3'!Y24:Y24,"") ->  | O15: 0 | P15: 0 | Q15: =SUM(L15:N15) -> 0 | R15: =SUM(O15:Q15) -> 0
Q18: Send to Rankings...

Sheet Results (Text)
A1: =Starterlist!A1 -> DM 2017
A2: =Starterlist!A2 -> Deutsche Freestyle Frisbee Meisterschaften
A3: =Starterlist!J3 -> 2015-11-14
A5: =CONCATENATE(Starterlist!B4," ",Starterlist!D4," ",Starterlist!F3," ",Starterlist!F4) -> Open Pairs Semi-Final Pool A
A7: =IF(Results!S6 = "", "", CONCATENATE(Results!S6, ". ",Export!B2,"/",Export!C2,IF(Export!D2=0,"","/"),IF(Export!D2=0,"",Export!D2)," (","TOT ",ROUND(Results!R6,1)," | EX ",ROUND(Results!O6,1)," | AI ",ROUND(Results!P6,1)," | DIF ",ROUND(Results!Q6,1),")")) -> 
A8: =IF(Results!S7 = "", "", CONCATENATE(Results!S7, ". ",Export!B3,"/",Export!C3,IF(Export!D3=0,"","/"),IF(Export!D3=0,"",Export!D3)," (","TOT ",ROUND(Results!R7,1)," | EX ",ROUND(Results!O7,1)," | AI ",ROUND(Results!P7,1)," | DIF ",ROUND(Results!Q7,1),")")) -> 
A9: =IF(Results!S8 = "", "", CONCATENATE(Results!S8, ". ",Export!B4,"/",Export!C4,IF(Export!D4=0,"","/"),IF(Export!D4=0,"",Export!D4)," (","TOT ",ROUND(Results!R8,1)," | EX ",ROUND(Results!O8,1)," | AI ",ROUND(Results!P8,1)," | DIF ",ROUND(Results!Q8,1),")")) -> 
A10: =IF(Results!S9 = "", "", CONCATENATE(Results!S9, ". ",Export!B5,"/",Export!C5,IF(Export!D5=0,"","/"),IF(Export!D5=0,"",Export!D5)," (","TOT ",ROUND(Results!R9,1)," | EX ",ROUND(Results!O9,1)," | AI ",ROUND(Results!P9,1)," | DIF ",ROUND(Results!Q9,1),")")) -> 
A11: =IF(Results!S10 = "", "", CONCATENATE(Results!S10, ". ",Export!B6,"/",Export!C6,IF(Export!D6=0,"","/"),IF(Export!D6=0,"",Export!D6)," (","TOT ",ROUND(Results!R10,1)," | EX ",ROUND(Results!O10,1)," | AI ",ROUND(Results!P10,1)," | DIF ",ROUND(Results!Q10,1),")")) -> 
A12: =IF(Results!S11 = "", "", CONCATENATE(Results!S11, ". ",Export!B7,"/",Export!C7,IF(Export!D7=0,"","/"),IF(Export!D7=0,"",Export!D7)," (","TOT ",ROUND(Results!R11,1)," | EX ",ROUND(Results!O11,1)," | AI ",ROUND(Results!P11,1)," | DIF ",ROUND(Results!Q11,1),")")) -> 
A13: =IF(Results!S12 = "", "", CONCATENATE(Results!S12, ". ",Export!B8,"/",Export!C8,IF(Export!D8=0,"","/"),IF(Export!D8=0,"",Export!D8)," (","TOT ",ROUND(Results!R12,1)," | EX ",ROUND(Results!O12,1)," | AI ",ROUND(Results!P12,1)," | DIF ",ROUND(Results!Q12,1),")")) -> 
A14: =IF(Results!S13 = "", "", CONCATENATE(Results!S13, ". ",Export!B9,"/",Export!C9,IF(Export!D9=0,"","/"),IF(Export!D9=0,"",Export!D9)," (","TOT ",ROUND(Results!R13,1)," | EX ",ROUND(Results!O13,1)," | AI ",ROUND(Results!P13,1)," | DIF ",ROUND(Results!Q13,1),")")) -> 
A15: =IF(Results!S14 = "", "", CONCATENATE(Results!S14, ". ",Export!B10,"/",Export!C10,IF(Export!D10=0,"","/"),IF(Export!D10=0,"",Export!D10)," (","TOT ",ROUND(Results!R14,1)," | EX ",ROUND(Results!O14,1)," | AI ",ROUND(Results!P14,1)," | DIF ",ROUND(Results!Q14,1),")")) -> 

Sheet Rankings
A1: This Month | B1: Last Month | C1: Name | D1: Country | E1: Best 8 Results | F1: # of Events | H1: Sortindex
A2: 1 | B2: 1 | C2: Florian Hess | D2: GER | E2: 1663 | F2: 12 | H2: =SUMPRODUCT((C$2:C$1000 < C2)+(C2="")*1000) -> 349
A3: 2 | B3: 2 | C3: Alex Leist | D3: GER | E3: 1659.25 | F3: 15 | H3: =SUMPRODUCT((C$2:C$1000 < C3)+(C3="")*1000) -> 66
A4: 3 | B4: 4 | C4: Christian Lamred | D4: GER | E4: 1565.25 | F4: 13 | H4: 199
A5: 4 | B5: 5 | C5: Marco Prati | D5: ITA | E5: 1525.75 | F5: 11 | H5: 613
A6: 5 | B6: 3 | C6: Paul Kenny | D6: USA | E6: 1495.25 | F6: 16 | H6: 743
A7: 6 | B7: 7 | C7: Tom Leitner | D7: ITA | E7: 1394.5 | F7: 13 | H7: 947
A8: 7 | B8: 6 | C8: Mehrdad Hosseinian | D8: GER | E8: 1391.5 | F8: 27 | H8: 671
A9: 8 | B9: 8 | C9: Freddy Finner | D9: GER | E9: 1285.5 | F9: 31 | H9: 359
A10: 9 | B10: 9 | C10: Pavel Baranyk | D10: CZE | E10: 1238 | F10: 15 | H10: 751
A11: 10 | B11: 11 | C11: Jakub Kostel | D11: CZE | E11: 1186 | F11: 25 | H11: 437
A12: 11 | B12: 10 | C12: James Wiseman | D12: USA | E12: 1176.25 | F12: 14 | H12: 441
A13: 12 | B13: 12 | C13: Fabio Sanna | D13: ITA | E13: 1153 | F13: 13 | H13: 326
A14: 13 | B14: 13 | C14: Sascha Höhne | D14: GER | E14: 1153 | F14: 28 | H14: 846
A15: 14 | B15: 14 | C15: Jan Schreck | D15: GER | E15: 1089.25 | F15: 18 | H15: 449
A16: 15 | B16: 18 | C16: Manuel Cesari | D16: ITA | E16: 1012.5 | F16: 12 | H16: 604
A17: 16 | B17: 15 | C17: Matt Gauthier | D17: USA | E17: 1008.5 | F17: 13 | H17: 653
A18: 17 | B18: 22 | C18: Fabio Nizzo | D18: ITA | E18: 1008.35 | F18: 10 | H18: 324
A19: 18 | B19: 17 | C19: Ryan Young | D19: USA | E19: 975.25 | F19: 15 | H19: 833
A20: 19 | B20: 16 | C20: Dave Schiller | D20: USA | E20: 903.9 | F20: 11 | H20: 258
A21: 20 | B21: 20 | C21: Balu Major | D21: HUN | E21: 902.25 | F21: 5 | H21: 136
A22: 21 | B22: 21 | C22: Emanuele Faustini | D22: ITA | E22: 883.5 | F22: 18 | H22: 301
A23: 22 | B23: 23 | C23: Daniel O'Neill | D23: USA | E23: 849.25 | F23: 8 | H23: 234
A24: 23 | B24: 24 | C24: Pablo Azul | D24: COL | E24: 840.5 | F24: 10 | H24: 733
A25: 24 | B25: 19 | C25: Jake Gauthier | D25: USA | E25: 831.75 | F25: 7 | H25: 435
A26: 25 | B26: 25 | C26: Jan Soerensen | D26: DEN | E26: 829.65 | F26: 14 | H26: 450
A27: 26 | B27: 26 | C27: Thomas Nötzel | D27: GER | E27: 819.75 | F27: 24 | H27: 925
A28: 27 | B28: 27 | C28: Joakim Arveskär | D28: SWE | E28: 802.5 | F28: 10 | H28: 485
A29: 28 | B29: 28 | C29: Markus Hein | D29: GER | E29: 796.5 | F29: 10 | H29: 625
A30: 29 | B30: 29 | C30: Randy Silvey | D30: USA | E30: 783.75 | F30: 9 | H30: 788
A31: 30 | B31: 30 | C31: Sascha Scherzinger | D31: GER | E31: 778.5 | F31: 11 | H31: 847
A32: 31 | B32: 31 | C32: Fabian Dinklage | D32: GER | E32: 755.5 | F32: 12 | H32: 319
A33: 32 | B33: 32 | C33: Toby Künzel | D33: GER | E33: 753.15 | F33: 17 | H33: 937
A34: 33 | B34: 34 | C34: Bianca Strunz | D34: GER | E34: 743.5 | F34: 29 | H34: 148
A35: 34 | B35: 33 | C35: Robert Dittrich | D35: GER | E35: 738.5 | F35: 16 | H35: 811
A36: 35 | B36: 50 | C36: Andrea Rimatori | D36: ITA | E36: 713.65 | F36: 7 | H36: 96
A37: 36 | B37: 35 | C37: Philipp Krüger | D37: GER | E37: 682.95 | F37: 9 | H37: 765
A38: 37 | B38: 36 | C38: Woo Wunder | D38: GER | E38: 671.75 | F38: 9 | H38: 977
A39: 38 | B39: 37 | C39: Anton Capellmann | D39: GER | E39: 666.75 | F39: 9 | H39: 120
A40: 39 | B40: 38 | C40: Claudio Cigna | D40: ITA | E40: 658 | F40: 4 | H40: 206
A41: 40 | B41: 39 | C41: Harald S. | D41: GER | E41: 652.25 | F41: 10 | H41: 392
A42: 41 | B42: 40 | C42: Benjamin Edelmann | D42: GER | E42: 652.25 | F42: 21 | H42: 143
A43: 42 | B43: 41 | C43: Ilka Simon | D43: GER | E43: 647.25 | F43: 29 | H43: 419
A44: 43 | B44: 42 | C44: Clay Collerà | D44: ITA | E44: 641.15 | F44: 9 | H44: 211
A45: 44 | B45: 44 | C45: Larry Imperiale | D45: USA | E45: 590.8 | F45: 8 | H45: 565
A46: 45 | B46: 45 | C46: Irena Kulisanova | D46: CZE | E46: 588.95 | F46: 18 | H46: 421
A47: 46 | B47: 46 | C47: Marc Pestotnik | D47: GER | E47: 572 | F47: 13 | H47: 607
A48: 47 | B48: 43 | C48: Mike Galloupe | D48: USA | E48: 566.65 | F48: 12 | H48: 690
A49: 48 | B49: 47 | C49: Andrea Sarti | D49: ITA | E49: 555.35 | F49: 8 | H49: 97
A50: 49 | B50: 48 | C50: Waldemar Wagner | D50: GER | E50: 529.25 | F50: 10 | H50: 970
A51: 50 | B51: 49 | C51: Kolja Hannemann | D51: GER | E51: 517.5 | F51: 9 | H51: 556
A52: 51 | B52: 51 | C52: Antonio Piccione Cusmá | D52: ITA | E52: 513.75 | F52: 8 | H52: 126
A53: 52 | B53: 53 | C53: Tom "Harry" Goltz | D53: GER | E53: 498.25 | F53: 10 | H53: 940
A54: 53 | B54: 54 | C54: Jens Friebe | D54: GER | E54: 487.1 | F54: 10 | H54: 472
A55: 54 | B55: 55 | C55: Andrea Poli | D55: ITA | E55: 485.35 | F55: 10 | H55: 95
A56: 55 | B56: 56 | C56: Amy Schiller | D56: USA | E56: 484.5 | F56: 10 | H56: 75
A57: 56 | B57: 57 | C57: Matteo Gaddoni | D57: ITA | E57: 483 | F57: 6 | H57: 658
A58: 57 | B58: 52 | C58: Lisa Hunrichs | D58: USA | E58: 470.5 | F58: 11 | H58: 578
A59: 58 | B59: 58 | C59: Gianluca Giglio | D59: ITA | E59: 459.25 | F59: 9 | H59: 370
A60: 59 | B60: 59 | C60: Stefan Dünkel | D60: GER | E60: 452.45 | F60: 8 | H60: 877
A61: 60 | B61: 60 | C61: Jakub Matula | D61: CZE | E61: 443.455 | F61: 13 | H61: 438
A62: 61 | B62: 61 | C62: Jonathan Kriss | D62: ISR | E62: 411.25 | F62: 9 | H62: 515
A63: 62 | B63: 62 | C63: Pepyn Tavernier | D63: BEL | E63: 410.3 | F63: 9 | H63: 753
A64: 63 | B64: 63 | C64: Steffen Verstichelen | D64: BEL | E64: 406.25 | F64: 11 | H64: 887
A65: 64 | B65: 64 | C65: Daniel Weinbuch | D65: GER | E65: 399.075 | F65: 9 | H65: 236
A66: 65 | B66: 67 | C66: Francesco Santolin | D66: ITA | E66: 366 | F66: 12 | H66: 356
A67: 66 | B67: 75 | C67: Michal Maciolek | D67: POL | E67: 365.525 | F67: 9 | H67: =SUMPRODUCT((C$2:C$1000 < C67)+(C67="")*1000) -> 681
A68: 67 | B68: 66 | C68: Reto Zimmerman | D68: SUI | E68: 364.5 | F68: 4 | H68: 794
A69: 68 | B69: 69 | C69: Lori Daniels | D69: USA | E69: 350.1 | F69: 14 | H69: 584
A70: 69 | B70: 70 | C70: Andreas Jaderyd | D70: SWE | E70: 346.5 | F70: 6 | H70: 100
A71: 70 | B71: 83 | C71: Jason Salkey | D71: GBR | E71: 345.175 | F71: 7 | H71: 457
A72: 71 | B72: 71 | C72: Dave Murphy | D72: USA | E72: 343.5 | F72: 4 | H72: 257
A73: 72 | B73: 72 | C73: Anna Merlo | D73: ITA | E73: 335 | F73: 20 | H73: 114
A74: 73 | B74: 73 | C74: Johanna Matthiä | D74: GER | E74: 328.5 | F74: 10 | H74: 496
A75: 74 | B75: 74 | C75: Andrea Marciano | D75: ITA | E75: 325.25 | F75: 7 | H75: 89
A76: 75 | B76: 76 | C76: Jessica S. | D76: GER | E76: 309.25 | F76: 8 | H76: 476
A77: 76 | B77: 77 | C77: Toddy Brodeur | D77: USA | E77: 306.5 | F77: 4 | H77: 939
A78: 77 | B78: 78 | C78: Steve Scannell | D78: USA | E78: 306.25 | F78: 8 | H78: 899
A79: 78 | B79: 79 | C79: Mattia Lambertini | D79: ITA | E79: 304.55 | F79: 11 | H79: 660
A80: 79 | B80: 80 | C80: Pat Marron | D80: USA | E80: 303 | F80: 4 | H80: 739
A81: 80 | B81: 81 | C81: Oliver Peters | D81: GER | E81: 288.98 | F81: 7 | H81: 723
A82: 81 | B82: 82 | C82: Roger Meier | D82: USA | E82: 287.1 | F82: 5 | H82: 818
A83: 82 | B83: 65 | C83: Jeff O'Brien | D83: USA | E83: 285 | F83: 4 | H83: 468
A84: 83 | B84: 84 | C84: Joel Rogers | D84: USA | E84: 272.75 | F84: 4 | H84: 492
A85: 84 | B85: 85 | C85: Tim Pattberg | D85: GER | E85: 271 | F85: 6 | H85: 929
A86: 85 | B86: 86 | C86: Chris Bellaj | D86: GER | E86: 270.2 | F86: 14 | H86: 189
A87: 86 | B87: 88 | C87: Greg Marter | D87: GER | E87: 266 | F87: 6 | H87: 379
A88: 87 | B88: 68 | C88: Johnny Trevino | D88: USA | E88: 265.15 | F88: 5 | H88: 507
A89: 88 | B89: 89 | C89: Scott Weaver | D89: USA | E89: 264.7 | F89: 6 | H89: 853
A90: 89 | B90: 90 | C90: Mirco Zanchetta | D90: ITA | E90: 264.05 | F90: 10 | H90: 699
A91: 90 | B91: 91 | C91: Jason McGlade | D91: GBR | E91: 263.7 | F91: 4 | H91: 456
A92: 91 | B92: 92 | C92: Andrea Piemontese | D92: ITA | E92: 262.15 | F92: 8 | H92: 93
A93: 92 | B93: 94 | C93: Andrea Ludergnani | D93: ITA | E93: 253.45 | F93: 5 | H93: 87
A94: 93 | B94: 87 | C94: John Titcomb | D94: USA | E94: 251.55 | F94: 9 | H94: 506
A95: 94 | B95: 95 | C95: Jens Velasquez | D95: USA | E95: 241.9 | F95: 8 | H95: 473
A96: 95 | B96: 96 | C96: Edoardo Gargano | D96: ITA | E96: 236.1 | F96: 7 | H96: 294
A97: 96 | B97: 97 | C97: Jan Zverina | D97: GER | E97: 235.95 | F97: 4 | H97: 452
A98: 97 | B98: 98 | C98: Carl Dobson | D98: USA | E98: 233.5 | F98: 4 | H98: 173
A99: 98 | B99: 99 | C99: Philipp Schellworth | D99: GER | E99: 232 | F99: 6 | H99: 769
A100: 99 | B100: 101 | C100: Jonathan Willett | D100: USA | E100: 227 | F100: 3 | H100: 516
A101: 100 | B101: 102 | C101: Paula Willin | D101: GER | E101: 226.5 | F101: 7 | H101: 750
A102: 101 | B102: 103 | C102: Rainer Doerr | D102: GER | E102: 224.4 | F102: 4 | H102: 782
A103: 102 | B103: 104 | C103: Lukas Lacina | D103: CZE | E103: 223.58 | F103: 6 | H103: 596
A104: 103 | B104: 105 | C104: Doug Simon | D104: USA | E104: 223.1 | F104: 3 | H104: 287
A105: 104 | B105: 106 | C105: Bill Wright | D105: USA | E105: 222.8 | F105: 3 | H105: 150
A106: 105 | B106: 108 | C106: Anna Bragagnolo | D106: ITA | E106: 218.8 | F106: 20 | H106: 111
A107: 106 | B107: 107 | C107: Bethany Sanchez | D107: USA | E107: 218.5 | F107: 9 | H107: 147
A108: 107 | B108: 127 | C108: Andy Absolom | D108: GBR | E108: 216.75 | F108: 7 | H108: 107
A109: 108 | B109: 110 | C109: Dario Giusti | D109: ITA | E109: 216.25 | F109: 3 | H109: 245
A110: 109 | B110: 111 | C110: Joey Hudoklin | D110: USA | E110: 216.1 | F110: 4 | H110: 493
A111: 110 | B111: 148 | C111: Gordy Brown | D111: GBR | E111: 214.8 | F111: 5 | H111: 378
A112: 111 | B112: 112 | C112: Manuel Zach | D112: GER | E112: 212.5 | F112: 4 | H112: 606
A113: 112 | B113: 113 | C113: Fabrizio "Nino" Nicco | D113: ITA | E113: 211.23 | F113: 7 | H113: 328
A114: 113 | B114: 114 | C114: Silvina Porsch | D114: GER | E114: 210.25 | F114: 6 | H114: 864
A115: 114 | B115: 115 | C115: Stefan Karlsson | D115: SWE | E115: 210 | F115: 2 | H115: 879
A116: 115 | B116: 116 | C116: Dylan Rocha Pires | D116: LUX | E116: 209.85 | F116: 7 | H116: 290
A117: 116 | B117: 117 | C117: Mark Regalbuti | D117: USA | E117: 206.6 | F117: 6 | H117: 621
A118: 117 | B118: 118 | C118: Gianluca Bertoncelli | D118: ITA | E118: 202.65 | F118: 5 | H118: 369
A119: 118 | B119: 119 | C119: Marco Chessa | D119: ITA | E119: 202.3 | F119: 3 | H119: 610
A120: 119 | B120: 93 | C120: Doug Korns | D120: USA | E120: 199.45 | F120: 6 | H120: 286
A121: 120 | B121: 120 | C121: Jiri Weiss | D121: CZE | E121: 195.955 | F121: 3 | H121: 484
A122: 121 | B122: 121 | C122: Alessandro Damiano | D122: ITA | E122: 194.5 | F122: 2 | H122: 60
A123: 122 | B123: 187 | C123: Char Powell | D123: USA | E123: 193.6 | F123: 5 | H123: 182
A124: 123 | B124: 122 | C124: Erwin Velasquez | D124: USA | E124: 190.2 | F124: 4 | H124: 314
A125: 124 | B125: 123 | C125: Edoardo Favorini | D125: ITA | E125: 189.9 | F125: 4 | H125: 293
A126: 125T | B126: 124T | C126: Yujiro Suzuki | D126: JPN | E126: 188 | F126: 3 | H126: 984
A127: 125T | B127: 124T | C127: Masao Yamaji | D127: JPN | E127: 188 | F127: 3 | H127: 643
A128: 127 | B128: 109 | C128: Charles Logan | D128: USA | E128: 186.05 | F128: 7 | H128: 183
A129: 128 | B129: 126 | C129: Dan Lustiger | D129: ISR | E129: 186 | F129: 2 | H129: 227
A130: 129 | B130: 128 | C130: Andrea Pecchiari | D130: ITA | E130: 183.75 | F130: 4 | H130: 92
A131: 130 | B131: 129 | C131: Dave Zeff | D131: USA | E131: 181.65 | F131: 4 | H131: =SUMPRODUCT((C$2:C$1000 < C131)+(C131="")*1000) -> 260
A132: 131 | B132: 130 | C132: Juliana Korver | D132: USA | E132: 179.4 | F132: 11 | H132: 527
A133: 132 | B133: 131 | C133: Andrea Izzo | D133: ITA | E133: 178.75 | F133: 3 | H133: 86
A134: 133 | B134: 132 | C134: Lorenzo Modarelli | D134: ITA | E134: 176.5 | F134: 6 | H134: 581
A135: 134T | B135: 173T | C135: Yutaka Harahsina | D135: JPN | E135: 175.5 | F135: 3 | H135: 989
A136: 134T | B136: 173T | C136: Tomokazu Yamamoto | D136: JPN | E136: 175.5 | F136: 3 | H136: 954
A137: 136 | B137: 150 | C137: Sophie Rickers | D137: GBR | E137: 175.5 | F137: 9 | H137: 873
A138: 137 | B138: 134 | C138: Stephan Stoll | D138: GER | E138: 172.975 | F138: 5 | H138: 890
A139: 138 | B139: 172 | C139: Ayal Benin | D139: ISR | E139: 169.8 | F139: 4 | H139: 135
A140: 139 | B140: 135 | C140: Lukas Zimovcak | D140: CZE | E140: 169.125 | F140: 4 | H140: 598
A141: 140 | B141: 136 | C141: Scott Zimmerman | D141: USA | E141: 166.5 | F141: 2 | H141: 854
A142: 141 | B142: 392 | C142: Raphael Legrand | D142: FRA | E142: 165.7 | F142: 2 | H142: 790
A143: 142 | B143: 137 | C143: Daniel Nothaas | D143: GER | E143: 165 | F143: 3 | H143: 233
A144: 143 | B144: 138 | C144: Tom Cole | D144: USA | E144: 163.6 | F144: 4 | H144: 944
A145: 144 | B145: 139 | C145: Simon Lühring | D145: GER | E145: 163.5 | F145: 4 | H145: 868
A146: 145 | B146: 140 | C146: Giovanni Coppo | D146: ITA | E146: 161 | F146: 2 | H146: 372
A147: 146 | B147: 100 | C147: Gerry Geare | D147: USA | E147: 161 | F147: 5 | H147: 367
A148: 147 | B148: 162 | C148: Ziv Lavy | D148: ISR | E148: 159.5 | F148: 4 | H148: 997
A149: 148 | B149: 141 | C149: Emma Kahle | D149: USA | E149: 159 | F149: 8 | H149: 305
A150: 149 | B150: 142 | C150: Dave Bolyard | D150: USA | E150: 157.5 | F150: 3 | H150: 251
A151: 150 | B151: 175 | C151: Oren Meron | D151: ISR | E151: 157 | F151: 2 | H151: 728
A152: 151 | B152: 143 | C152: Jack Cooksey | D152: USA | E152: 151.1 | F152: 4 | H152: 427
A153: 152 | B153: 144 | C153: Pipo Lopez | D153: PUR | E153: 148.5 | F153: 4 | H153: 775
A154: 153 | B154: 145 | C154: Francesco Romeo | D154: ITA | E154: 146.5 | F154: 2 | H154: 355
A155: 154 | B155: 146 | C155: Tony Pellicane | D155: USA | E155: 146 | F155: 3 | H155: 957
A156: 155 | B156: 147 | C156: Konrad Patris | D156: POL | E156: 144.7 | F156: 4 | H156: 557
A157: 156 | B157: 149 | C157: Rafael von der Grün | D157: GER | E157: 143.75 | F157: 4 | H157: 779
A158: 157 | B158: 151 | C158: Dominique Weissenberger | D158: GER | E158: 141.05 | F158: 3 | H158: 281
A159: 158 | B159: 152 | C159: Sophie Wolf | D159: GER | E159: 140.95 | F159: 6 | H159: 874
A160: 159 | B160: 153 | C160: Harvey Brandt | D160: USA | E160: 138.5 | F160: 3 | H160: 394
A161: 160 | B161: 154 | C161: Dennis Vollmer | D161: GER | E161: 138 | F161: 2 | H161: 275
A162: 161 | B162: 155 | C162: Danny Cameranesi | D162: USA | E162: 137.75 | F162: 3 | H162: 242
A163: 162 | B163: 156 | C163: Nico Schwarz | D163: GER | E163: 137.73 | F163: 4 | H163: 712
A164: 163 | B164: 157 | C164: Peter Karlsson | D164: SWE | E164: 135.5 | F164: 2 | H164: 758
A165: 164 | B165: 158 | C165: Paolo Mirabelli | D165: ITA | E165: 131.5 | F165: 2 | H165: 737
A166: 165 | B166: 159 | C166: Iwan de Moor | D166: NED | E166: 129.8 | F166: 3 | H166: 425
A167: 166 | B167: 206 | C167: Andre Zaharias | D167: GER | E167: 129 | F167: 3 | H167: 78
A168: 167 | B168: 160 | C168: Dario Marioni | D168: ITA | E168: 127.95 | F168: 5 | H168: 246
A169: 168 | B169: 161 | C169: Kate Gester | D169: USA | E169: 127.5 | F169: 7 | H169: 537
A170: 169 | B170: 163 | C170: Gregory Lo-a-sjoe | D170: NED | E170: 124.3 | F170: 3 | H170: 382
A171: 170 | B171: 164 | C171: Rick Moody | D171: USA | E171: 124.25 | F171: 2 | H171: 801
A172: 171 | B172: 166 | C172: Julien Menetrat | D172: FRA | E172: 123 | F172: 2 | H172: 528
A173: 172 | B173: 167 | C173: Julia Schuster | D173: GER | E173: 121 | F173: 1 | H173: 525
A174: 173 | B174: 168 | C174: Serge Marconi | D174: ITA | E174: 120.75 | F174: 2 | H174: 859
A175: 174 | B175: 169 | C175: Raffaele Pilla | D175: ITA | E175: 118.75 | F175: 3 | H175: 780
A176: 175 | B176: 170 | C176: Cindy St. Mary | D176: USA | E176: 118.75 | F176: 4 | H176: 205
A177: 176 | B177: 171 | C177: Hauke Raschen | D177: GER | E177: 115 | F177: 3 | H177: 395
A178: 177 | B178: 176 | C178: Tom Lasher | D178: USA | E178: 112.5 | F178: 2 | H178: 946
A179: 178 | B179: 177 | C179: Mattia Colombari | D179: ITA | E179: 112 | F179: 2 | H179: 659
A180: 179 | B180: 178 | C180: David Tomiak | D180: POL | E180: 110.9 | F180: 5 | H180: 262
A181: 180 | B181: 179 | C181: Alexander Enhuber | D181: GER | E181: 110 | F181: 2 | H181: 67
A182: 181 | B182: 180 | C182: Tomas Burvall | D182: SWE | E182: 109.5 | F182: 2 | H182: 950
A183: 182 | B183: 181 | C183: Lina Dittrich | D183: GER | E183: 107 | F183: 3 | H183: 575
A184: 183 | B184: 182 | C184: Simon Faber | D184: GER | E184: 107 | F184: 5 | H184: 866
A185: 184 | B185: 183 | C185: Randy Lahm | D185: USA | E185: 102 | F185: 4 | H185: 786
A186: 185 | B186: 235 | C186: Mikey Callaghan | D186: GBR | E186: 100.7 | F186: 4 | H186: 695
A187: 186T | B187: 184T | C187: Conrad Damon | D187: USA | E187: 100.4 | F187: 4 | H187: 214
A188: 186T | B188: 184T | C188: Dave Hesselberth | D188: USA | E188: 100.4 | F188: 4 | H188: 253
A189: 188 | B189: 186 | C189: Anna Duran-Korzycka | D189: POL | E189: 100.3 | F189: 5 | H189: 112
A190: 189T | B190: 188T | C190: Magnus Gjerde Petersen | D190: NOR | E190: 100 | F190: 1 | H190: 602
A191: 189T | B191: 188T | C191: Rico Schneider | D191: USA | E191: 100 | F191: 1 | H191: 804
A192: 191 | B192: 190 | C192: Naim Megassabi | D192: BEL | E192: 98.5 | F192: 2 | H192: 707
A193: 192 | B193: 165 | C193: Marie Geare | D193: USA | E193: 98.45 | F193: 6 | H193: 616
A194: 193 | B194: 191 | C194: Steve Rhodes | D194: GBR | E194: 98 | F194: 3 | H194: 898
A195: 194 | B195: 192 | C195: Mary Lowry | D195: USA | E195: 98 | F195: 4 | H195: =SUMPRODUCT((C$2:C$1000 < C195)+(C195="")*1000) -> 635
A196: 195 | B196: 193 | C196: Jan Zahradnicek | D196: CZE | E196: 97.4 | F196: 2 | H196: 451
A197: 196 | B197: 194 | C197: Roberto Borghesi | D197: ITA | E197: 97.4 | F197: 5 | H197: 813
A198: 197 | B198: 195 | C198: Andrew Lemann | D198: USA | E198: 97 | F198: 2 | H198: 104
A199: 198 | B199: 196 | C199: Chuck Richard | D199: USA | E199: 96.4 | F199: 3 | H199: 204
A200: 199 | B200: 197 | C200: Ian White | D200: USA | E200: 96.1 | F200: 2 | H200: 416
... 852 more rows

Sheet Countries (hidden)
A1: GER | B1: Germany
A2: COL | B2: Colombia
A3: NED | B3: Netherlands
A4: BRA | B4: Brazil
A5: FRA | B5: France
A6: ARG | B6: Argentina
A7: SUI | B7: Switzerland
A8: ALG | B8: Algeria
A9: CHI | B9: Chile
A10: BEL | B10: Belgium
A11: CRO | B11: Croatia
A12: MEX | B12: Mexico
A13: CRC | B13: Costa Rica
A14: USA | B14: United States
A15: POR | B15: Portugal
A16: CIV | B16: Ivory Coast
A17: ESP | B17: Spain
A18: URU | B18: Uruguay
A19: BIH | B19: Bosnia and Herzegovina
A20: GHA | B20: Ghana
A21: AUS | B21: Australia
A22: KOR | B22: South Korea
A23: NGA | B23: Nigeria
A24: GRE | B24: Greece
A25: ECU | B25: Ecuador
A26: ITA | B26: Italy
A27: ENG | B27: England
A28: RUS | B28: Russia
A29: JPN | B29: Japan
A30: HON | B30: Honduras
A31: IRN | B31: Iran
A32: CMR | B32: Cameroon

Sheet TODOS (hidden)
A1: Required Features
A3: Mark lowes Mark in Diff sheet
A5: moeglichkeit fuer 4 judges, einer davon als trainee, also ohne berechnung aber mit anzeige und drucken
A6: zeiteingabe ist komisch mit 24h vs. 12h. very unhandy.
A7: Deckblatt für Ordner
A8: Chart auf eigener Seite
A9: Sortierung Chart
A10: Berechnung der Diff Formel
A11: Farben Chart
A12: Anouncer Info Judges bei weniger wie 8 Spielern
A18: pool creator
A20: display namen in eigene zellen zum kopieren in scoresheet
